{"text_format":"1","workbook":"xlsx","n_sheets":6,"sheets":["SAPBEXqueriesDefunct","SAPBEXfiltersDefunct","BExRepositorySheet","Summary","Template","Query"],"not_rendered":{"charts":0,"images":4,"macros":1,"external_links":1,"defined_names":171,"comments":0,"pivot_tables":0},"unopened":[],"bounds":{"document_bytes":16777216,"sheet_cells":100000,"rows_first":2000,"rows_last":500,"rows_between":2000,"halvings":0,"cell_chars":16384,"cell_head_chars":4096},"cells_cut":0,"cells_raw":0,"read":"whole","date_system":"1900"}

{"sheet":"SAPBEXqueriesDefunct","index":0,"n_rows":6843,"n_cols":252,"rows_kept":281,"cut":true,"hidden":true,"merged":[],"bounds":{"rows_first":125,"rows_last":31,"rows_between":125,"halvings":4}}
[9]
[9,null,null,null,null,null,null,null,null,null,null,null,null,null,null,null,null,null,null,null,null,null,null,null,null,null,null,null,null,null,81,null,null,null,null,null,null,null,null,null,null,null,null,null,null,null,null,null,null,null,null,null,null,null,null,null,null,null,null,null,null,null,null,null,null,null,null,null,null,null,null,null,null,null,null,null,null,null,null,null,null,null,null,null,null,null,null,null,null,null,501,null,null,null,null,null,null,null,null,null,null,null,null,null,null,null,null,null,null,null,234,null,null,null,null,null,null,null,null,null,null,null,null,null,null,null,null,null,null,null,6840,null,null,null,null,null,null,null,null,null,null,null,null,null,null,null,null,null,null,null,2,null,null,null,null,null,null,null,null,null,null,null,null,null,null,null,null,null,null,null,null,null,null,null,null,null,null,null,null,null,29,null,null,null,null,null,null,null,null,null,null,null,null,null,null,null,null,null,null,null,null,null,null,null,null,null,null,null,null,null,null,null,null,null,null,null,null,null,null,null,null,null,null,null,null,null,null,null,null,null,279]
[24,null,null,null,null,null,null,null,null,null,null,null,null,null,null,null,null,null,null,null,null,null,null,null,null,null,null,null,null,null,59,null,null,null,null,null,null,null,null,null,null,null,null,null,null,null,null,null,null,null,null,null,null,null,null,null,null,null,null,null,null,null,null,null,null,null,null,null,null,null,null,null,null,null,null,null,null,null,null,null,null,null,null,null,null,null,null,null,null,null,13,null,null,null,null,null,null,null,null,null,null,null,null,null,null,null,null,null,null,null,14,null,null,null,null,null,null,null,null,null,null,null,null,null,null,null,null,null,null,null,13,null,null,null,null,null,null,null,null,null,null,null,null,null,null,null,null,null,null,null,11,null,null,null,null,null,null,null,null,null,null,null,null,null,null,null,null,null,null,null,null,null,null,null,null,null,null,null,null,null,21,null,null,null,null,null,null,null,null,null,null,null,null,null,null,null,null,null,null,null,null,null,null,null,null,null,null,null,null,null,null,null,null,null,null,null,null,null,null,null,null,null,null,null,null,null,null,null,null,null,2]
[null,229,"D9UV84VAX4ANMLF7VE1O5UCXL",true,true,"SAPBEXq0009",2,2,false,null,null,true,false,null,true,false,0,null,5,true,true,null,null,false,false,false,null,null,null,null,12,"0PAYRL_AREA","Payroll Area","X","","","0001","","","","","","","","0","03","","","","00000000","K","0PAYRL_AREA","A","","","H","","","","","","00000000","0000","","0","","","","","1","1","1","0","0","","","","","","D9UV84VAX459U94WMM0DOUL15","","","","","","","0000","","","",12,"D4O21W1IBUB3HEML1KWP5YGOP","D4O21W1IBUDEJ9LV077JD8NI1","Grade 1 - 4 F/T","0001","","S","","L","","","","","",null,null,null,null,null,null,12,"0ORGUNIT","0BBPPURGRPX","Ind.Purchasing Group","0000","X","2","0","0","","","","","0000","",null,null,null,null,null,12,"D4O21W1IBUDEJ9LV077JD8NI1","D5PZA7P4P40B5BG5ZCKAWYZUH","","","","","","00","X","0","0","","",null,null,null,null,null,null,22,"0ORGUNIT","253","Organizational Unit","","T","0","253","0ORGUNIT","1","","",null,null,null,null,null,null,null,null,null,null,null,null,null,null,null,null,null,null,12,"ZS_DT_1","1","P","I","EQ","20150930","30/09/2015","","","","0","","0","","0","Target date 1","60","","","ZEMP_STRT","20150930",null,null,null,null,null,null,null,null,null,null,null,null,null,null,null,null,null,null,null,null,null,null,null,null,null,null,null,null,12,"0000000107","D9UV84VAX3YCOO72QR3V300L5"]
[null,225,"D9UV84VAX4ANMLF7VE1O5UCXL",true,true,"SAPBEXq0012",2,2,false,null,null,true,false,null,true,false,0,null,5,true,true,null,null,false,false,false,null,null,null,null,12,"ZPERSAREA","ZPersonal Area","X","","","0002","","","","","","","","2","03","","","","00000000","K","ZPERSAREA","A","","","H","","","","","","00000000","0000","","0","","","","","1","1","1","0","0","","","","","","D9UV84VAX461IVGNY5FZR9ZAX","","","","","","","0000","","","",12,"D5PZA7P4P3ZJGP4ENT4OUJLKP","D5PZA7P4P40B5BG5ZCKAWYZUH","Total White Male Disabled Employees","0001","","S","","L","X","","","","",null,null,null,null,null,null,12,"0ORGUNIT","0BBPPURORGX","Ind. Purchasing Org.","0000","X","2","0","0","","","","","0000","",null,null,null,null,null,12,"D4O21W1IBUDEJ9LV077JD8NI1","D5PZA7P4P412TXRXAVZWZEE49","","","","","","00","X","0","0","","",null,null,null,null,null,null,22,"0ORGUNIT","253","Hierarchy Node(s)","","T","0","37","0HIER_NODE","1","","",null,null,null,null,null,null,null,null,null,null,null,null,null,null,null,null,null,null,12,"ZBUDH","1","P","I","EQ","20150930","30/09/2015","","","","0","","0","","0","Master Data Key Date","60","","","0DATE","20150930",null,null,null,null,null,null,null,null,null,null,null,null,null,null,null,null,null,null,null,null,null,null,null,null,null,null,null,null,12,"0000000100","X"]
[null,221,"D9UV84VAX4ANMLF7VE1O5UCXL",true,true,"SAPBEXq0013",2,2,false,null,null,true,false,null,true,false,0,null,5,true,true,null,null,false,false,false,null,null,null,null,12,"0ORGUNIT","Organizational Unit","X","","","0003","","Corporate Services","","","","","","1","03","X","ORGEH","000","20150930","K","0ORGUNIT","A","","","H","0ORGUNIT","A","","","","00000000","0000","","0","","1","","2","1","1","1","0","0","","","","","","D9UV84VAX46T7HSF9OVLTPDKP","","","","","","","0000","","","",12,"D4O21W1IBUB3HEML1KWP5YGOP","D4O21W1IBUKBOUJOW241Z37Y1","Grade 1 - 4 P/T","0002","","S","","L","","","","","",null,null,null,null,null,null,12,"0ORGUNIT","0BBP_BUYID","Buyer ID","0000","X","5","0","0","","","","","0000","",null,null,null,null,null,12,"D4O21W1IBUDEJ9LV077JD8NI1","D5PZA7P4P41UIK3OMFFJ1TSE1","","0","","","","00","X","0","0","","",null,null,null,null,null,null,null,null,null,null,null,null,null,null,null,null,null,null,null,null,null,null,null,null,null,null,null,null,null,null,null,null,null,null,null,null,12,"ZZPERAR","1","M","","","","","","","","0","","0","","0","ZPersonnel Area","60","","","ZPERSAREA","",null,null,null,null,null,null,null,null,null,null,null,null,null,null,null,null,null,null,null,null,null,null,null,null,null,null,null,null,12,"0000000101",""]
[null,217,"D9UV84VAX4ANMLF7VE1O5UCXL",true,true,"SAPBEXq0015",2,2,false,null,null,true,false,null,true,false,0,null,5,true,true,null,null,false,false,false,null,null,null,null,12,"0PERS_SAREA","Personnel Subarea","X","","","0004","","","","","","","U","1","03","","","","00000000","K","0PERS_SAREA","A","","","H","","","","","","00000000","0000","","0","","","","","1","1","1","0","0","","","","","","D9UV84VAX47KW446L8B7W4RUH","","","","","","","0000","","","",12,"D5PZA7P4P3ZJGP4ENT4OUJLKP","D5PZA7P4P412TXRXAVZWZEE49","Total White Female Disabled Employees","0002","","S","","L","X","","","","",null,null,null,null,null,null,12,"0ORGUNIT","0BBP_ISCOMP","Organizational Unit is Company","0000","X","1","0","0","","","","","0000","",null,null,null,null,null,12,"D4O21W1IBUDEJ9LV077JD8NI1","D5PZA7P4P42M76FFXYV5496NT","","0","","","","00","X","0","0","","",null,null,null,null,null,null,null,null,null,null,null,null,null,null,null,null,null,null,null,null,null,null,null,null,null,null,null,null,null,null,null,null,null,null,null,null,11,"ZS_DT_1","1","P","I","EQ","20150930","30/09/2015","","","","0","","0","","0","Target date 1","60","","","ZEMP_STRT","20150930",null,null,null,null,null,null,null,null,null,null,null,null,null,null,null,null,null,null,null,null,null,null,null,null,null,null,null,null,12,"0000000104","1"]
[null,213,"D9UV84VAX4ANMLF7VE1O5UCXL",true,true,"SAPBEXq0016",2,2,false,null,null,true,false,null,true,false,0,null,5,true,true,null,null,false,false,false,null,null,null,null,12,"ZTEILK","Checkbox for Part-Ti","X","","","0005","","","","","","","","1","03","","","","00000000","K","ZTEILK","A","","","H","","","","","","00000000","0000","","0","","","","","1","1","1","0","0","","","","","","D9UV84VAX48CKQFXWRQTYK649","","","","","","","0000","","","",12,"D5PZA7P4P3ZJGP4ENT4OUJLKP","D5PZA7P4P41UIK3OMFFJ1TSE1","Total White Disabled Employees","0003","","F","","L","","","","","",null,null,null,null,null,null,12,"0ORGUNIT","0BUS_AREA","Business area","0000","X","0","0","0","","","","","0000","",null,null,null,null,null,12,"D4O21W1IBUDEJ9LV077JD8NI1","D5PZA7P4P43DVSR79IAR6OKXL","","0","","","","00","X","0","0","","",null,null,null,null,null,null,null,null,null,null,null,null,null,null,null,null,null,null,null,null,null,null,null,null,null,null,null,null,null,null,null,null,null,null,null,null,11,"ZBUDH","1","P","I","EQ","20150930","30/09/2015","","","","0","","0","","0","Master Data Key Date","60","","","0DATE","20150930",null,null,null,null,null,null,null,null,null,null,null,null,null,null,null,null,null,null,null,null,null,null,null,null,null,null,null,null,12,"0000000103",""]
[null,209,"D9UV84VAX4ANMLF7VE1O5UCXL",true,true,"SAPBEXq0017",2,2,false,null,null,true,false,null,true,false,0,null,5,true,true,null,null,false,false,false,null,null,null,null,12,"ZPRIM_ID","ZPrimary Employee ID","X","","","0006","","","","","","","","2","03","","","","00000000","K","ZPRIM_ID","A","","","H","","","","","","00000000","0000","","0","","","","","1","1","1","0","0","","","","","","D9UV84VAX4949CRP8B6G0ZKE1","","","","","","","0000","","","",12,"D4O21W1IBUB3HEML1KWP5YGOP","DEMAFDB5LZ4S252XBVM7GJP4P","Grade 1 - 4 Total","0003","","S","","L","","","","","",null,null,null,null,null,null,12,"0ORGUNIT","0COMP_CODE","Company code","0000","X","0","0","0","","","","","0000","",null,null,null,null,null,12,"D4O21W1IBUDEJ9LV077JD8NI1","D5PZA7P4P445KF2YL1QD93Z7D","","0","","","","00","X","0","0","","",null,null,null,null,null,null,null,null,null,null,null,null,null,null,null,null,null,null,null,null,null,null,null,null,null,null,null,null,null,null,null,null,null,null,null,null,11,"ZZPERAR","1","M","","","","","","","","0","","0","","0","ZPersonnel Area","60","","","ZPERSAREA","",null,null,null,null,null,null,null,null,null,null,null,null,null,null,null,null,null,null,null,null,null,null,null,null,null,null,null,null,12,"0000000102","1"]
[null,205,"D9UVC1KT6I8278NY7VY8T21O9",true,true,"SAPBEXq0014",2,2,false,null,null,true,false,null,true,false,0,null,5,true,true,null,null,false,false,false,null,null,null,null,12,"0CNTRCTTYPE","Contract Type","X","","","0007","","","","","","","","1","03","","","","00000000","K","0CNTRCTTYPE","A","","","H","","","","","","00000000","0000","","0","","","","","1","1","1","0","0","","","","","","D9UV9459QXWEJPYDHUNPBXGQH","","","","","","","0000","","","",12,"D4O21W1IBUB3HEML1KWP5YGOP","D4O21W1IBUE67VXMBQN5FO1RT","Grade 5 - 7 F/T","0004","","S","","L","","","","","",null,null,null,null,null,null,12,"0ORGUNIT","0CO_MST_AR","Controlling Area of Master Cost Center","0000","X","0","0","0","","","","","0000","",null,null,null,null,null,12,"D4O21W1IBUDEJ9LV077JD8NI1","D5PZA7P4P44X91EPWL5ZBJDH5","","","","","","00","X","0","0","","",null,null,null,null,null,null,null,null,null,null,null,null,null,null,null,null,null,null,null,null,null,null,null,null,null,null,null,null,null,null,null,null,null,null,null,null,10,"ZS_DT_1","1","P","I","EQ","20150930","30/09/2015","","","","0","","0","","0","Target date 1","60","","","ZEMP_STRT","20150930",null,null,null,null,null,null,null,null,null,null,null,null,null,null,null,null,null,null,null,null,null,null,null,null,null,null,null,null,12,"0000000108",""]
[null,201,"D9UV84VAX4ANMLF7VE1O5UCXL",true,true,"SAPBEXq0018",2,2,false,null,null,true,false,null,true,false,0,null,5,true,true,null,null,false,false,false,null,null,null,null,12,"D5PZA7P4P3ZJGP4ENT4OUJLKP","WP Disability/Ethnicity Bandings Rev","","X","X","0001","","","","","","","U","","00","","","","","K","D5PZA7P4P3ZJGP4ENT4OUJLKP","A","","","","","","","","","00000000","0000","X","0","","","","","0","0","0","0","0","","","","","","D5PZA7P4P3ZJGP4ENT4OUJLKP","","","","","","","0000","","","",12,"D5PZA7P4P3ZJGP4ENT4OUJLKP","D5PZA7P4P42M76FFXYV5496NT","Total Ethnic Male Disabled Employees","0004","","S","","L","X","","","","",null,null,null,null,null,null,12,"0ORGUNIT","0CRMSALGRPX","Sls Group: Indicator","0000","X","2","0","0","","","","","0000","",null,null,null,null,null,12,"D4O21W1IBUDEJ9LV077JD8NI1","D5PZA7P4P45OXNQH84LLDYRQX","","","","","","00","X","0","0","","",null,null,null,null,null,null,null,null,null,null,null,null,null,null,null,null,null,null,null,null,null,null,null,null,null,null,null,null,null,null,null,null,null,null,null,null,10,"ZS_PSAR2","1","P","","","","","","","","0","","0","","0","Pers. Sub-Area - optional","60","","","0PERS_SAREA","",null,null,null,null,null,null,null,null,null,null,null,null,null,null,null,null,null,null,null,null,null,null,null,null,null,null,null,null,12,"0000009002","D4O21W1IBUB3HEML1KWP5YGOP"]
[null,197,"D9UV84VAX4ANMLF7VE1O5UCXL",true,true,"SAPBEXq0019",2,2,false,null,null,true,false,null,true,false,0,null,5,true,true,null,null,false,false,false,null,null,null,null,12,"D4O21W1IBUB3HEML1KWP5YGOP","WP Bandings","","X","Y","0001","","","","","","","U","","00","","","","","K","D4O21W1IBUB3HEML1KWP5YGOP","A","","","","","","","","","00000000","0000","","0","","","","","0","0","0","0","0","","","","","","D4O21W1IBUB3HEML1KWP5YGOP","","","","","","","0000","","","",12,"D5PZA7P4P3ZJGP4ENT4OUJLKP","D5PZA7P4P43DVSR79IAR6OKXL","Total Ethnic Female Disabled Employees","0005","","S","","L","X","","","","",null,null,null,null,null,null,12,"0ORGUNIT","0CRMSALOFFX","Sls Office:Indicator","0000","X","2","0","0","","","","","0000","",null,null,null,null,null,12,"D4O21W1IBUDEJ9LV077JD8NI1","D5PZA7P4P46GMA28JO17GE60P","","0","","","","00","X","0","0","","",null,null,null,null,null,null,null,null,null,null,null,null,null,null,null,null,null,null,null,null,null,null,null,null,null,null,null,null,null,null,null,null,null,null,null,null,10,"ZP_ORGUN","2","M","","","","","","","","0","","0","","0","Org Unit Hierarchy (Selection option, optional)","60","","","0ORGUNIT","",null,null,null,null,null,null,null,null,null,null,null,null,null,null,null,null,null,null,null,null,null,null,null,null,null,null,null,null,12,"0000009000",""]
[null,null,null,null,null,null,null,null,null,null,null,null,null,null,null,null,null,null,null,null,null,null,null,null,null,false,null,null,null,null,11,"0PAYRL_AREA","Payroll Area","X","","","0001","","","","","","","","0","03","","","","00000000","K","0PAYRL_AREA","A","","","H","","","","","","00000000","0000","","0","","","","","1","1","1","0","0","","","","","","D9UV84VAX459U94WMM0DOUL15","","","","","","","0000","","","",12,"D4O21W1IBUB3HEML1KWP5YGOP","D4O21W1IBUL3DGVG7LJO1IM7T","Grade 5 - 7 P/T","0005","","S","","L","","","","","",null,null,null,null,null,null,12,"0ORGUNIT","0CRMSALORGX","Sales Org. Indicator","0000","X","2","0","0","","","","","0000","",null,null,null,null,null,12,"D4O21W1IBUDEJ9LV077JD8NI1","D5PZA7P4P478AWDZV7GTITKAH","","2","","","","00","X","0","0","","",null,null,null,null,null,null,null,null,null,null,null,null,null,null,null,null,null,null,null,null,null,null,null,null,null,null,null,null,null,null,null,null,null,null,null,null,10,"ZBUDH","1","P","I","EQ","20150930","30/09/2015","","","","0","","0","","0","Master Data Key Date","60","","","0DATE","20150930",null,null,null,null,null,null,null,null,null,null,null,null,null,null,null,null,null,null,null,null,null,null,null,null,null,null,null,null,12,"0000000010",""]
[null,null,null,null,null,null,null,null,null,null,null,null,null,null,null,null,null,null,null,null,null,null,null,null,null,false,null,null,null,null,11,"ZPERSAREA","ZPersonal Area","X","","","0002","","","","","","","","2","03","","","","00000000","K","ZPERSAREA","A","","","H","","","","","","00000000","0000","","0","","","","","1","1","1","0","0","","","","","","D9UV84VAX461IVGNY5FZR9ZAX","","","","","","","0000","","","",12,"D5PZA7P4P3ZJGP4ENT4OUJLKP","D5PZA7P4P445KF2YL1QD93Z7D","Total Ethnic Disabled Employees","0006","","F","","L","","","","","",null,null,null,null,null,null,12,"0ORGUNIT","0CRMSRVTGRP","Ex. CRM Service Org.","0000","X","1","0","0","","","","","0000","",null,null,null,null,null,12,"D4O21W1IBUDEJ9LV077JD8NI1","D5PZA7P4P47ZZIPR6QWFL8YK9","","","","","","00","X","0","0","","",null,null,null,null,null,null,null,null,null,null,null,null,null,null,null,null,null,null,null,null,null,null,null,null,null,null,null,null,null,null,null,null,null,null,null,null,10,"ZZPERAR","1","M","","","","","","","","0","","0","","0","ZPersonnel Area","60","","","ZPERSAREA","",null,null,null,null,null,null,null,null,null,null,null,null,null,null,null,null,null,null,null,null,null,null,null,null,null,null,null,null,12,"0000000021",""]
[null,null,null,null,null,null,null,null,null,null,null,null,null,null,null,null,null,null,null,null,null,null,null,null,null,false,null,null,null,null,11,"0ORGUNIT","Organizational Unit","X","","","0003","","Chief Executive Srv, Chief Executive Organisation Structu...","","","","","","1","03","X","ORGEH","000","20150930","K","0ORGUNIT","A","","","H","0ORGUNIT","A","","","","00000000","0000","","0","","X","","2","1","1","1","0","0","","","","","","D9UV84VAX46T7HSF9OVLTPDKP","","","","","","","0000","","","",12,"D4O21W1IBUB3HEML1KWP5YGOP","DEMAGSP8VDTMCQ2Z9KSRG7UGP","Grade 5 - 7 Total","0006","","S","","L","","","","","",null,null,null,null,null,null,12,"0ORGUNIT","0CRM_SALGRP","CRM Sales Group","0000","X","1","0","0","","","","","0000","",null,null,null,null,null,12,"D4O21W1IBUDEJ9LV077JD8NI1","D5PZA7P4P48RO51IIAC1NOCU1","","","","","","00","X","0","0","","",null,null,null,null,null,null,null,null,null,null,null,null,null,null,null,null,null,null,null,null,null,null,null,null,null,null,null,null,null,null,null,null,null,null,null,null,9,"ZS_DT_1","1","P","I","EQ","20150930","30/09/2015","","","","0","","0","","0","Target date 1","60","","","ZEMP_STRT","20150930",null,null,null,null,null,null,null,null,null,null,null,null,null,null,null,null,null,null,null,null,null,null,null,null,null,null,null,null,12,"0000000022",""]
[null,null,null,null,null,null,null,null,null,null,null,null,null,null,null,null,null,null,null,null,null,null,null,null,null,false,null,null,null,null,11,"0PERS_SAREA","Personnel Subarea","X","","","0004","","","","","","","U","1","03","","","","00000000","K","0PERS_SAREA","A","","","H","","","","","","00000000","0000","","0","","","","","1","1","1","0","0","","","","","","D9UV84VAX47KW446L8B7W4RUH","","","","","","","0000","","","",12,"D5PZA7P4P3ZJGP4ENT4OUJLKP","D5PZA7P4P44X91EPWL5ZBJDH5","Disabled Male Employees","0007","","S","","L","X","","","","",null,null,null,null,null,null,12,"0ORGUNIT","0CRM_SALOFF","CRM Sales Office","0000","X","1","0","0","","","","","0000","",null,null,null,null,null,12,"D4O21W1IBUDEJ9LV077JD8NI1","D5PZA7P4P49JCRD9TTRNQ3R3T","","","","","","00","X","0","0","","",null,null,null,null,null,null,null,null,null,null,null,null,null,null,null,null,null,null,null,null,null,null,null,null,null,null,null,null,null,null,null,null,null,null,null,null,9,"ZBUDH","1","P","I","EQ","20150930","30/09/2015","","","","0","","0","","0","Master Data Key Date","60","","","0DATE","20150930",null,null,null,null,null,null,null,null,null,null,null,null,null,null,null,null,null,null,null,null,null,null,null,null,null,null,null,null,12,"0000000023",""]
[null,null,null,null,null,null,null,null,null,null,null,null,null,null,null,null,null,null,null,null,null,null,null,null,null,false,null,null,null,null,11,"ZTEILK","Checkbox for Part-Ti","X","","","0005","","","","","","","","1","03","","","","00000000","K","ZTEILK","A","","","H","","","","","","00000000","0000","","0","","","","","1","1","1","0","0","","","","","","D9UV84VAX48CKQFXWRQTYK649","","","","","","","0000","","","",12,"D4O21W1IBUB3HEML1KWP5YGOP","D4O21W1IBUEXWI9DNA2RI3G1L","Grade 8 F/T","0007","","S","","L","","","","","",null,null,null,null,null,null,12,"0ORGUNIT","0CRM_SALORG","CRM Sales Org.","0000","X","1","0","0","","","","","0000","",null,null,null,null,null,12,"D4O21W1IBUDEJ9LV077JD8NI1","D5PZA7P4P4AB1DP15D79SJ5DL","","0","","","","00","X","0","0","","",null,null,null,null,null,null,null,null,null,null,null,null,null,null,null,null,null,null,null,null,null,null,null,null,null,null,null,null,null,null,null,null,null,null,null,null,9,"ZZPERAR","1","M","","","","","","","","0","","0","","0","ZPersonnel Area","60","","","ZPERSAREA","",null,null,null,null,null,null,null,null,null,null,null,null,null,null,null,null,null,null,null,null,null,null,null,null,null,null,null,null,12,"0000000030",""]
[null,null,null,null,null,null,null,null,null,null,null,null,null,null,null,null,null,null,null,null,null,null,null,null,null,false,null,null,null,null,11,"ZPRIM_ID","ZPrimary Employee ID","X","","","0006","","","","","","","","2","03","","","","00000000","K","ZPRIM_ID","A","","","H","","","","","","00000000","0000","","0","","","","","1","1","1","0","0","","","","","","D9UV84VAX4949CRP8B6G0ZKE1","","","","","","","0000","","","",12,"D4O21W1IBUB3HEML1KWP5YGOP","D4O21W1IBULV2377J4ZA3Y0HL","Grade 8 P/T","0008","","S","","L","","","","","",null,null,null,null,null,null,12,"0ORGUNIT","0CRM_SRVORG","Service Org. CRM","0000","X","1","0","0","","","","","0000","",null,null,null,null,null,12,"D4O21W1IBUDEJ9LV077JD8NI1","D5PZA7P4P4B2Q00SGWMVUYJND","","0","","","","00","X","0","0","","",null,null,null,null,null,null,null,null,null,null,null,null,null,null,null,null,null,null,null,null,null,null,null,null,null,null,null,null,null,null,null,null,null,null,null,null,8,"ZS_DT_1","1","P","I","EQ","20150930","30/09/2015","","","","0","","0","","0","Target date 1","60","","","ZEMP_STRT","20150930",null,null,null,null,null,null,null,null,null,null,null,null,null,null,null,null,null,null,null,null,null,null,null,null,null,null,null,null,12,"0000000040",""]
[null,null,null,null,null,null,null,null,null,null,null,null,null,null,null,null,null,null,null,null,null,null,null,null,null,false,null,null,null,null,11,"0CNTRCTTYPE","Contract Type","X","","","0007","","","","","","","","1","03","","","","00000000","K","0CNTRCTTYPE","A","","","H","","","","","","00000000","0000","","0","","","","","1","1","1","0","0","","","","","","D9UV9459QXWEJPYDHUNPBXGQH","","","","","","","0000","","","",12,"D5PZA7P4P3ZJGP4ENT4OUJLKP","D5PZA7P4P45OXNQH84LLDYRQX","Disabled Female Employees","0008","","S","","L","X","","","","",null,null,null,null,null,null,12,"0ORGUNIT","0LOGSYS","Source System","0000","X","1","0","0","","","","","0000","",null,null,null,null,null,12,"D4O21W1IBUDEJ9LV077JD8NI1","D5PZA7P4P4BUEMCJSG2HXDXX5","","0","","","","00","X","0","0","","",null,null,null,null,null,null,null,null,null,null,null,null,null,null,null,null,null,null,null,null,null,null,null,null,null,null,null,null,null,null,null,null,null,null,null,null,8,"ZBUDH","1","P","I","EQ","20150930","30/09/2015","","","","0","","0","","0","Master Data Key Date","60","","","0DATE","20150930",null,null,null,null,null,null,null,null,null,null,null,null,null,null,null,null,null,null,null,null,null,null,null,null,null,null,null,null,12,"0000000041",""]
[null,null,null,null,null,null,null,null,null,null,null,null,null,null,null,null,null,null,null,null,null,null,null,null,null,false,null,null,null,null,11,"D5PZA7P4P3ZJGP4ENT4OUJLKP","WP Disability/Ethnicity Bandings Rev","","X","X","0001","","","","","","","U","","00","","","","","K","D5PZA7P4P3ZJGP4ENT4OUJLKP","A","","","","","","","","","00000000","0000","X","0","","","","","0","0","0","0","0","","","","","","D5PZA7P4P3ZJGP4ENT4OUJLKP","","","","","","","0000","","","",12,"D4O21W1IBUB3HEML1KWP5YGOP","D4O21W1IBV18QHQDXXNJGHXX5","Grade 8 Total","0009","","S","","L","","","","","",null,null,null,null,null,null,12,"0ORGUNIT","0MAST_CCTR","Master Cost Center","0000","X","0","0","0","","","","","0000","",null,null,null,null,null,12,"D4O21W1IBUDEJ9LV077JD8NI1","D5PZA7P4P4CM38OB3ZI3ZTC6X","","0","","","","00","X","0","0","","",null,null,null,null,null,null,null,null,null,null,null,null,null,null,null,null,null,null,null,null,null,null,null,null,null,null,null,null,null,null,null,null,null,null,null,null,8,"ZZPERAR","1","M","","","","","","","","0","","0","","0","ZPersonnel Area","60","","","ZPERSAREA","",null,null,null,null,null,null,null,null,null,null,null,null,null,null,null,null,null,null,null,null,null,null,null,null,null,null,null,null,12,"0000000042","0"]
[null,null,null,null,null,null,null,null,null,null,null,null,null,null,null,null,null,null,null,null,null,null,null,null,null,false,null,null,null,null,11,"D4O21W1IBUB3HEML1KWP5YGOP","WP Bandings","","X","Y","0001","","","","","","","U","","00","","","","","K","D4O21W1IBUB3HEML1KWP5YGOP","A","","","","","","","","","00000000","0000","","0","","","","","0","0","0","0","0","","","","","","D4O21W1IBUB3HEML1KWP5YGOP","","","","","","","0000","","","",12,"D5PZA7P4P3ZJGP4ENT4OUJLKP","D5PZA7P4P46GMA28JO17GE60P","Total Disabled Employees","0009","","F","","L","","","","","",null,null,null,null,null,null,12,"0ORGUNIT","0PERS_AREA","Personnel Area","0000","X","1","0","0","","","","","0000","",null,null,null,null,null,12,"D4O21W1IBUDEJ9LV077JD8NI1","D5PZA7P4P4DDRV02FIXQ28QGP","","","","","","00","X","0","0","","",null,null,null,null,null,null,null,null,null,null,null,null,null,null,null,null,null,null,null,null,null,null,null,null,null,null,null,null,null,null,null,null,null,null,null,null,7,"ZS_DT_1","1","P","I","EQ","20150930","30/09/2015","","","","0","","0","","0","Target date 1","60","","","ZEMP_STRT","20150930",null,null,null,null,null,null,null,null,null,null,null,null,null,null,null,null,null,null,null,null,null,null,null,null,null,null,null,null,12,"0000000043","0"]
[null,null,null,null,null,null,null,null,null,null,null,null,null,null,null,null,null,null,null,null,null,null,null,null,null,false,null,null,null,null,10,"0PAYRL_AREA","Payroll Area","X","","","0001","","","","","","","","0","03","","","","00000000","K","0PAYRL_AREA","A","","","H","","","","","","00000000","0000","","0","","","","","1","1","1","0","0","","","","","","D9UVC1KT6I2OEWDMZ3WYC29RT","","","","","","","0000","","","",12,"D4O21W1IBUB3HEML1KWP5YGOP","D4O21W1IBUFPL4L4YTIDKIUBD","ACZ Grade 8 F/T","0010","","S","","L","","","","","",null,null,null,null,null,null,12,"0ORGUNIT","0PERS_SAREA","Personnel Subarea","0000","X","1","0","0","","","","","0000","",null,null,null,null,null,12,"D4O21W1IBUDEJ9LV077JD8NI1","D5PZA7P4P4E5GHBTR2DC4O4QH","","","","","","00","X","0","0","","",null,null,null,null,null,null,null,null,null,null,null,null,null,null,null,null,null,null,null,null,null,null,null,null,null,null,null,null,null,null,null,null,null,null,null,null,7,"ZBUDH","1","P","I","EQ","20150930","30/09/2015","","","","0","","0","","0","Master Data Key Date","60","","","0DATE","20150930",null,null,null,null,null,null,null,null,null,null,null,null,null,null,null,null,null,null,null,null,null,null,null,null,null,null,null,null,12,"0000000109","0"]
[null,null,null,null,null,null,null,null,null,null,null,null,null,null,null,null,null,null,null,null,null,null,null,null,null,null,null,null,null,null,10,"ZPERSAREA","ZPersonal Area","X","","","0002","","Education","","","","","","2","03","","","","00000000","K","ZPERSAREA","A","","","H","","","","","","00000000","0000","","0","","1","","","1","1","1","0","0","","","","","","D9UVC1KT6I3G3IPEANCKEHO1L","","","","","","","0000","","","",12,"D5PZA7P4P3ZJGP4ENT4OUJLKP","D5PZA7P4P478AWDZV7GTITKAH","Total Disabled Employees %","0010","","F","","L","","","","","",null,null,null,null,null,null,12,"0ORGUNIT","0PLANT","Plant","0000","X","0","0","0","","","","","0000","",null,null,null,null,null,12,"D4O21W1IBUDEJ9LV077JD8NI1","D5PZA7P4P4EX53NL2LSY73J09","","0","","","","00","X","0","0","","",null,null,null,null,null,null,null,null,null,null,null,null,null,null,null,null,null,null,null,null,null,null,null,null,null,null,null,null,null,null,null,null,null,null,null,null,7,"ZZPERAR","1","M","","","","","","","","0","","0","","0","ZPersonnel Area","60","","","ZPERSAREA","",null,null,null,null,null,null,null,null,null,null,null,null,null,null,null,null,null,null,null,null,null,null,null,null,null,null,null,null,12,"0000000113",""]
[null,null,null,null,null,null,null,null,null,null,null,null,null,null,null,null,null,null,null,null,null,null,null,null,null,null,null,null,null,null,10,"0ORGUNIT","Organizational Unit","X","","","0003","","","","","","","","1","03","X","ORGEH","000","20150930","K","0ORGUNIT","A","","","H","0ORGUNIT","A","","","","00000000","0000","","0","","","","2","1","1","1","0","0","","","","","","D9UVC1KT6I47S515M6S6GX2BD","","","","","","","0000","","","",12,"D5PZA7P4P3ZJGP4ENT4OUJLKP","D5PZAGQNPNJN6QK9OBJM8YLMH","Not Disclosed","0011","","S","","L","X","","","","",null,null,null,null,null,null,12,"0ORGUNIT","0PURCH_ORG","Purchasing org.","0000","X","0","0","0","","","","","0000","",null,null,null,null,null,12,"D4O21W1IBUDEJ9LV077JD8NI1","D5PZA7P4P4FOTPZCE58K9IXA1","","2","","","","00","X","0","0","","",null,null,null,null,null,null,null,null,null,null,null,null,null,null,null,null,null,null,null,null,null,null,null,null,null,null,null,null,null,null,null,null,null,null,null,null,6,"ZS_DT_1","1","P","I","EQ","20150930","30/09/2015","","","","0","","0","","0","Target date 1","60","","","ZEMP_STRT","20150930",null,null,null,null,null,null,null,null,null,null,null,null,null,null,null,null,null,null,null,null,null,null,null,null,null,null,null,null,12,"0000000120",""]
[null,null,null,null,null,null,null,null,null,null,null,null,null,null,null,null,null,null,null,null,null,null,null,null,null,null,null,null,null,null,10,"0PERS_SAREA","Personnel Subarea","X","","","0004","","","","","","","U","1","03","","","","00000000","K","0PERS_SAREA","A","","","H","","","","","","00000000","0000","","0","","","","","1","1","1","0","0","","","","","","D9UVC1KT6I4ZGRCWXQ7SJCGL5","","","","","","","0000","","","",12,"D4O21W1IBUB3HEML1KWP5YGOP","D4O21W1IBUMMQPIYUOEW6DERD","ACZ Grade 8 P/T","0011","","S","","L","","","","","",null,null,null,null,null,null,12,"0ORGUNIT","0PUR_GROUP","Purchasing group","0000","X","0","0","0","","","","","0000","",null,null,null,null,null,12,"D4O21W1IBUDEJ9LV077JD8NI1","D5PZA7P4P4GGICB3POO6BYBJT","","","","","","00","X","0","0","","",null,null,null,null,null,null,null,null,null,null,null,null,null,null,null,null,null,null,null,null,null,null,null,null,null,null,null,null,null,null,null,null,null,null,null,null,6,"ZBUDH","1","P","I","EQ","20150930","30/09/2015","","","","0","","0","","0","Master Data Key Date","60","","","0DATE","20150930",null,null,null,null,null,null,null,null,null,null,null,null,null,null,null,null,null,null,null,null,null,null,null,null,null,null,null,null,12,"0000000121",""]
[null,null,null,null,null,null,null,null,null,null,null,null,null,null,null,null,null,null,null,null,null,null,null,null,null,null,null,null,null,null,10,"ZTEILK","Checkbox for Part-Ti","X","","","0005","","","","","","","","1","03","","","","00000000","K","ZTEILK","A","","","H","","","","","","00000000","0000","","0","","","","","1","1","1","0","0","","","","","","D9UVC1KT6I5R5DOO99NELRUUX","","","","","","","0000","","","",12,"D4O21W1IBUB3HEML1KWP5YGOP","D4O21W1IBV0H1VEMME7XE2JND","ACZ Grade 8 Total","0012","","S","","L","","","","","",null,null,null,null,null,null,12,"0ORGUNIT","0SALESORG","Sales Organization","0000","X","0","0","0","","","","","0000","",null,null,null,null,null,12,"D4O21W1IBUDEJ9LV077JD8NI1","D5PZA7P4P4H86YMV183SEDPTL","","","","","","00","X","0","0","","",null,null,null,null,null,null,null,null,null,null,null,null,null,null,null,null,null,null,null,null,null,null,null,null,null,null,null,null,null,null,null,null,null,null,null,null,6,"ZZPERAR","1","M","","","","","","","","0","","0","","0","ZPersonnel Area","60","","","ZPERSAREA","",null,null,null,null,null,null,null,null,null,null,null,null,null,null,null,null,null,null,null,null,null,null,null,null,null,null,null,null,12,"0000010001","D9UV84VAX4ANMLF7VE1O5UCXL"]
[null,null,null,null,null,null,null,null,null,null,null,null,null,null,null,null,null,null,null,null,null,null,null,null,null,null,null,null,null,null,10,"ZPRIM_ID","ZPrimary Employee ID","X","","","0006","","","","","","","","2","03","","","","00000000","K","ZPRIM_ID","A","","","H","","","","","","00000000","0000","","0","","","","","1","1","1","0","0","","","","","","D9UVC1KT6I6IU00FKT30O794P","","","","","","","0000","","","",12,"D5PZA7P4P3ZJGP4ENT4OUJLKP","D5PZA7P4P48RO51IIAC1NOCU1","Total White Male Non Disabled Employees","0012","","S","","L","X","","","","",null,null,null,null,null,null,12,"0ORGUNIT","0SALES_GRP","Sales group","0000","X","0","0","0","","","","","0000","",null,null,null,null,null,12,"D4O21W1IBUDEJ9LV077JD8NI1","D5PZAGQNPNJN6QK9OBJM8YLMH","","","","","","00","X","0","0","","",null,null,null,null,null,null,null,null,null,null,null,null,null,null,null,null,null,null,null,null,null,null,null,null,null,null,null,null,null,null,null,null,null,null,null,null,5,"ZS_DT_1","1","P","I","EQ","20150930","30/09/2015","","","","0","","0","","0","Target date 1","60","","","ZEMP_STRT","20150930",null,null,null,null,null,null,null,null,null,null,null,null,null,null,null,null,null,null,null,null,null,null,null,null,null,null,null,null,12,"0000010002","D9UV84VAX3YCOO72QR3V300L5"]
[null,null,null,null,null,null,null,null,null,null,null,null,null,null,null,null,null,null,null,null,null,null,null,null,null,null,null,null,null,null,10,"0CNTRCTTYPE","Contract Type","X","","","0007","","","","","","","","1","03","","","","00000000","K","0CNTRCTTYPE","A","","","H","","","","","","00000000","0000","","0","","","","","1","1","1","0","0","","","","","","D9UVC5JVXYA1OWWP25NEADP15","","","","","","","0000","","","",12,"D4O21W1IBUB3HEML1KWP5YGOP","D4O21W1IBUH8YD8NLWDLPDMUX","Grade 9 - 15 F/T","0013","","S","","L","","","","","",null,null,null,null,null,null,12,"0ORGUNIT","0SALES_OFF","Sales Office","0000","X","0","0","0","","","","","0000","",null,null,null,null,null,12,"D4O21W1IBUE67VXMBQN5FO1RT","D5PZA7P4P40B5BG5ZCKAWYZUH","","","","","","00","X","0","0","","",null,null,null,null,null,null,null,null,null,null,null,null,null,null,null,null,null,null,null,null,null,null,null,null,null,null,null,null,null,null,null,null,null,null,null,null,5,"ZBUDH","1","P","I","EQ","20150930","30/09/2015","","","","0","","0","","0","Master Data Key Date","60","","","0DATE","20150930",null,null,null,null,null,null,null,null,null,null,null,null,null,null,null,null,null,null,null,null,null,null,null,null,null,null,null,null,12,"0000000105",""]
[null,null,null,null,null,null,null,null,null,null,null,null,null,null,null,null,null,null,null,null,null,null,null,null,null,null,null,null,null,null,10,"D5PZA7P4P3ZJGP4ENT4OUJLKP","WP Disability/Ethnicity Bandings Rev","","X","X","0001","","","","","","","U","","00","","","","","K","D5PZA7P4P3ZJGP4ENT4OUJLKP","A","","","","","","","","","00000000","0000","X","0","","","","","0","0","0","0","0","","","","","","D5PZA7P4P3ZJGP4ENT4OUJLKP","","","","","","","0000","","","",12,"D5PZA7P4P3ZJGP4ENT4OUJLKP","D5PZA7P4P49JCRD9TTRNQ3R3T","Total White Female Non Disabled Employees","0013","","S","","L","X","","","","",null,null,null,null,null,null,12,"0CNTRCTTYPE","0CNTRCTISFT","Fixed-Term Contract","0000","X","2","0","0","","","","","0000","",null,null,null,null,null,12,"D4O21W1IBUE67VXMBQN5FO1RT","D5PZA7P4P412TXRXAVZWZEE49","","","","","","00","X","0","0","","",null,null,null,null,null,null,null,null,null,null,null,null,null,null,null,null,null,null,null,null,null,null,null,null,null,null,null,null,null,null,null,null,null,null,null,null,5,"ZZPERAR","1","M","","","","","","","","0","","0","","0","ZPersonnel Area","60","","","ZPERSAREA","",null,null,null,null,null,null,null,null,null,null,null,null,null,null,null,null,null,null,null,null,null,null,null,null,null,null,null,null,12,"0000000106",""]
[null,null,null,null,null,null,null,null,null,null,null,null,null,null,null,null,null,null,null,null,null,null,null,null,null,null,null,null,null,null,10,"D4O2P4A3SH8H6WZIVSYIIRP4P","WP Teachers Bandings","","X","Y","0001","","","","","","","U","","00","","","","","K","D4O2P4A3SH8H6WZIVSYIIRP4P","A","","","","","","","","","00000000","0000","","0","","","","","0","0","0","0","0","","","","","","D4O2P4A3SH8H6WZIVSYIIRP4P","","","","","","","0000","","","",12,"D5PZA7P4P3ZJGP4ENT4OUJLKP","D5PZA7P4P4AB1DP15D79SJ5DL","Total White Non Disabled Employees","0014","","F","","L","","","","","",null,null,null,null,null,null,11,"0ORGUNIT","0BBPPURGRPX","Ind.Purchasing Group","0000","X","2","0","0","","","","","0000","",null,null,null,null,null,12,"D4O21W1IBUE67VXMBQN5FO1RT","D5PZA7P4P41UIK3OMFFJ1TSE1","","0","","","","00","X","0","0","","",null,null,null,null,null,null,null,null,null,null,null,null,null,null,null,null,null,null,null,null,null,null,null,null,null,null,null,null,null,null,null,null,null,null,null,null,4,"ZS_DT_1","1","P","I","EQ","20150930","30/09/2015","","","","0","","0","","0","Target date 1","60","","","ZEMP_STRT","20150930",null,null,null,null,null,null,null,null,null,null,null,null,null,null,null,null,null,null,null,null,null,null,null,null,null,null,null,null,12,"0000000112","0"]
[null,null,null,null,null,null,null,null,null,null,null,null,null,null,null,null,null,null,null,null,null,null,null,null,null,null,null,null,null,null,9,"0PAYRL_AREA","Payroll Area","X","","","0001","","","","","","","","0","03","","","","00000000","K","0PAYRL_AREA","A","","","H","","","","","","00000000","0000","","0","","","","","1","1","1","0","0","","","","","","D9UV84VAX459U94WMM0DOUL15","","","","","","","0000","","","",12,"D4O21W1IBUB3HEML1KWP5YGOP","DEN03PYIT5FSSAA2U7ST53H15","Grade 9 - 15 P/T","0014","","S","","L","","","","","",null,null,null,null,null,null,11,"0ORGUNIT","0BBPPURORGX","Ind. Purchasing Org.","0000","X","2","0","0","","","","","0000","",null,null,null,null,null,12,"D4O21W1IBUE67VXMBQN5FO1RT","D5PZA7P4P42M76FFXYV5496NT","","0","","","","00","X","0","0","","",null,null,null,null,null,null,null,null,null,null,null,null,null,null,null,null,null,null,null,null,null,null,null,null,null,null,null,null,null,null,null,null,null,null,null,null,4,"ZBUDH","1","P","I","EQ","20150930","30/09/2015","","","","0","","0","","0","Master Data Key Date","60","","","0DATE","20150930",null,null,null,null,null,null,null,null,null,null,null,null,null,null,null,null,null,null,null,null,null,null,null,null,null,null,null,null,12,"0000000200","X"]
[null,null,null,null,null,null,null,null,null,null,null,null,null,null,null,null,null,null,null,null,null,null,null,null,null,null,null,null,null,null,9,"ZPERSAREA","ZPersonal Area","X","","","0002","","Social Work","","","","","","2","03","","","","00000000","K","ZPERSAREA","A","","","H","","","","","","00000000","0000","","0","","1","","","1","1","1","0","0","","","","","","D9UV84VAX461IVGNY5FZR9ZAX","","","","","","","0000","","","",12,"D5PZA7P4P3ZJGP4ENT4OUJLKP","D5PZA7P4P4B2Q00SGWMVUYJND","Total Ethnic Male Non Disabled Employees","0015","","S","","L","X","","","","",null,null,null,null,null,null,11,"0ORGUNIT","0BBP_BUYID","Buyer ID","0000","X","5","0","0","","","","","0000","",null,null,null,null,null,12,"D4O21W1IBUE67VXMBQN5FO1RT","D5PZA7P4P43DVSR79IAR6OKXL","","0","","","","00","X","0","0","","",null,null,null,null,null,null,null,null,null,null,null,null,null,null,null,null,null,null,null,null,null,null,null,null,null,null,null,null,null,null,null,null,null,null,null,null,4,"ZZPERAR","1","M","","","","","","","","0","","0","","0","ZPersonnel Area","60","","","ZPERSAREA","",null,null,null,null,null,null,null,null,null,null,null,null,null,null,null,null,null,null,null,null,null,null,null,null,null,null,null,null,12,"0000004000","X"]
[null,null,null,null,null,null,null,null,null,null,null,null,null,null,null,null,null,null,null,null,null,null,null,null,null,null,null,null,null,null,9,"0ORGUNIT","Organizational Unit","X","","","0003","","","","","","","","1","03","X","ORGEH","000","20150930","K","0ORGUNIT","A","","","H","0ORGUNIT","A","","","","00000000","0000","","0","","","","2","1","1","1","0","0","","","","","","D9UV84VAX46T7HSF9OVLTPDKP","","","","","","","0000","","","",12,"D4O21W1IBUB3HEML1KWP5YGOP","D4O21W1IBUO63Y6HHRA4B87AX","Grade 9 - 15 Total","0015","","S","","L","","","","","",null,null,null,null,null,null,11,"0ORGUNIT","0BBP_ISCOMP","Organizational Unit is Company","0000","X","1","0","0","","","","","0000","",null,null,null,null,null,12,"D4O21W1IBUE67VXMBQN5FO1RT","D5PZA7P4P445KF2YL1QD93Z7D","","0","","","","00","X","0","0","","",null,null,null,null,null,null,null,null,null,null,null,null,null,null,null,null,null,null,null,null,null,null,null,null,null,null,null,null,null,null,null,null,null,null,null,null,null,null,null,null,null,null,null,null,null,null,null,null,null,null,null,null,null,null,null,null,null,null,null,null,null,null,null,null,null,null,null,null,null,null,null,null,null,null,null,null,null,null,null,null,null,null,null,null,null,null,12,"0000009001","Workforce Profile Disability Excl Casual & Sessional"]
[null,null,null,null,null,null,null,null,null,null,null,null,null,null,null,null,null,null,null,null,null,null,null,null,null,null,null,null,null,null,9,"0PERS_SAREA","Personnel Subarea","X","","","0004","","","","","","","U","1","03","","","","00000000","K","0PERS_SAREA","A","","","H","","","","","","00000000","0000","","0","","","","","1","1","1","0","0","","","","","","D9UV84VAX47KW446L8B7W4RUH","","","","","","","0000","","","",12,"D5PZA7P4P3ZJGP4ENT4OUJLKP","D5PZA7P4P4BUEMCJSG2HXDXX5","Total Ethnic Female Non Disabled Employees","0016","","S","","L","X","","","","",null,null,null,null,null,null,11,"0ORGUNIT","0BUS_AREA","Business area","0000","X","0","0","0","","","","","0000","",null,null,null,null,null,12,"D4O21W1IBUE67VXMBQN5FO1RT","D5PZA7P4P44X91EPWL5ZBJDH5","","","","","","00","X","0","0","","",null,null,null,null,null,null,null,null,null,null,null,null,null,null,null,null,null,null,null,null,null,null,null,null,null,null,null,null,null,null,null,null,null,null,null,null,null,null,null,null,null,null,null,null,null,null,null,null,null,null,null,null,null,null,null,null,null,null,null,null,null,null,null,null,null,null,null,null,null,null,null,null,null,null,null,null,null,null,null,null,null,null,null,null,null,null,12,"0000000114","1"]
[null,null,null,null,null,null,null,null,null,null,null,null,null,null,null,null,null,null,null,null,null,null,null,null,null,null,null,null,null,null,9,"ZTEILK","Checkbox for Part-Ti","X","","","0005","","","","","","","","1","03","","","","00000000","K","ZTEILK","A","","","H","","","","","","00000000","0000","","0","","","","","1","1","1","0","0","","","","","","D9UV84VAX48CKQFXWRQTYK649","","","","","","","0000","","","",12,"D4O21W1IBUB3HEML1KWP5YGOP","D4O21W1IBUGH9QWWACXZMY8L5","ACZ Grade 9 - 15 F/T","0016","","S","","L","","","","","",null,null,null,null,null,null,11,"0ORGUNIT","0COMP_CODE","Company code","0000","X","0","0","0","","","","","0000","",null,null,null,null,null,12,"D4O21W1IBUE67VXMBQN5FO1RT","D5PZA7P4P45OXNQH84LLDYRQX","","","","","","00","X","0","0","","",null,null,null,null,null,null,null,null,null,null,null,null,null,null,null,null,null,null,null,null,null,null,null,null,null,null,null,null,null,null,null,null,null,null,null,null,null,null,null,null,null,null,null,null,null,null,null,null,null,null,null,null,null,null,null,null,null,null,null,null,null,null,null,null,null,null,null,null,null,null,null,null,null,null,null,null,null,null,null,null,null,null,null,null,null,null,11,"0000000107","D9UV84VAX3YCOO72QR3V300L5"]
[null,null,null,null,null,null,null,null,null,null,null,null,null,null,null,null,null,null,null,null,null,null,null,null,null,null,null,null,null,null,9,"ZPRIM_ID","ZPrimary Employee ID","X","","","0006","","","","","","","","2","03","","","","00000000","K","ZPRIM_ID","A","","","H","","","","","","00000000","0000","","0","","","","","1","1","1","0","0","","","","","","D9UV84VAX4949CRP8B6G0ZKE1","","","","","","","0000","","","",12,"D4O21W1IBUB3HEML1KWP5YGOP","D4O21W1IBUNEFBUQ67UI8ST15","ACZ Grade 9 - 15 P/T","0017","","S","","L","","","","","",null,null,null,null,null,null,11,"0ORGUNIT","0CO_MST_AR","Controlling Area of Master Cost Center","0000","X","0","0","0","","","","","0000","",null,null,null,null,null,12,"D4O21W1IBUE67VXMBQN5FO1RT","D5PZA7P4P46GMA28JO17GE60P","","0","","","","00","X","0","0","","",null,null,null,null,null,null,null,null,null,null,null,null,null,null,null,null,null,null,null,null,null,null,null,null,null,null,null,null,null,null,null,null,null,null,null,null,null,null,null,null,null,null,null,null,null,null,null,null,null,null,null,null,null,null,null,null,null,null,null,null,null,null,null,null,null,null,null,null,null,null,null,null,null,null,null,null,null,null,null,null,null,null,null,null,null,null,11,"0000000100","X"]
[null,null,null,null,null,null,null,null,null,null,null,null,null,null,null,null,null,null,null,null,null,null,null,null,null,null,null,null,null,null,9,"0CNTRCTTYPE","Contract Type","X","","","0007","","","","","","","","1","03","","","","00000000","K","0CNTRCTTYPE","A","","","H","","","","","","00000000","0000","","0","","","","","1","1","1","0","0","","","","","","D9UV9459QXWEJPYDHUNPBXGQH","","","","","","","0000","","","",12,"D5PZA7P4P3ZJGP4ENT4OUJLKP","D5PZA7P4P4CM38OB3ZI3ZTC6X","Total Ethnic Non Disabled Employees","0017","","F","","L","","","","","",null,null,null,null,null,null,11,"0ORGUNIT","0CRMSALGRPX","Sls Group: Indicator","0000","X","2","0","0","","","","","0000","",null,null,null,null,null,12,"D4O21W1IBUE67VXMBQN5FO1RT","D5PZA7P4P478AWDZV7GTITKAH","","2","","","","00","X","0","0","","",null,null,null,null,null,null,null,null,null,null,null,null,null,null,null,null,null,null,null,null,null,null,null,null,null,null,null,null,null,null,null,null,null,null,null,null,null,null,null,null,null,null,null,null,null,null,null,null,null,null,null,null,null,null,null,null,null,null,null,null,null,null,null,null,null,null,null,null,null,null,null,null,null,null,null,null,null,null,null,null,null,null,null,null,null,null,11,"0000000101",""]
[null,null,null,null,null,null,null,null,null,null,null,null,null,null,null,null,null,null,null,null,null,null,null,null,null,null,null,null,null,null,9,"D5PZA7P4P3ZJGP4ENT4OUJLKP","WP Disability/Ethnicity Bandings Rev","","X","X","0001","","","","","","","U","","00","","","","","K","D5PZA7P4P3ZJGP4ENT4OUJLKP","A","","","","","","","","","00000000","0000","X","0","","","","","0","0","0","0","0","","","","","","D5PZA7P4P3ZJGP4ENT4OUJLKP","","","","","","","0000","","","",12,"D5PZA7P4P3ZJGP4ENT4OUJLKP","D5PZA7P4P4DDRV02FIXQ28QGP","Total Male Non Disabled Employees","0018","","S","","L","X","","","","",null,null,null,null,null,null,11,"0ORGUNIT","0CRMSALOFFX","Sls Office:Indicator","0000","X","2","0","0","","","","","0000","",null,null,null,null,null,12,"D4O21W1IBUE67VXMBQN5FO1RT","D5PZA7P4P47ZZIPR6QWFL8YK9","","","","","","00","X","0","0","","",null,null,null,null,null,null,null,null,null,null,null,null,null,null,null,null,null,null,null,null,null,null,null,null,null,null,null,null,null,null,null,null,null,null,null,null,null,null,null,null,null,null,null,null,null,null,null,null,null,null,null,null,null,null,null,null,null,null,null,null,null,null,null,null,null,null,null,null,null,null,null,null,null,null,null,null,null,null,null,null,null,null,null,null,null,null,11,"0000000104","1"]
[null,null,null,null,null,null,null,null,null,null,null,null,null,null,null,null,null,null,null,null,null,null,null,null,null,null,null,null,null,null,9,"D4O21W1IBUB3HEML1KWP5YGOP","WP Bandings","","X","Y","0001","","","","","","","U","","00","","","","","K","D4O21W1IBUB3HEML1KWP5YGOP","A","","","","","","","","","00000000","0000","","0","","","","","0","0","0","0","0","","","","","","D4O21W1IBUB3HEML1KWP5YGOP","","","","","","","0000","","","",12,"D4O21W1IBUB3HEML1KWP5YGOP","DEN04FDC1K04NBJW47LA7T915","ACZ Grade 9 - 15 Total","0018","","S","","L","","","","","",null,null,null,null,null,null,11,"0ORGUNIT","0CRMSALORGX","Sales Org. Indicator","0000","X","2","0","0","","","","","0000","",null,null,null,null,null,12,"D4O21W1IBUE67VXMBQN5FO1RT","D5PZA7P4P48RO51IIAC1NOCU1","","","","","","00","X","0","0","","",null,null,null,null,null,null,null,null,null,null,null,null,null,null,null,null,null,null,null,null,null,null,null,null,null,null,null,null,null,null,null,null,null,null,null,null,null,null,null,null,null,null,null,null,null,null,null,null,null,null,null,null,null,null,null,null,null,null,null,null,null,null,null,null,null,null,null,null,null,null,null,null,null,null,null,null,null,null,null,null,null,null,null,null,null,null,11,"0000000103",""]
[null,null,null,null,null,null,null,null,null,null,null,null,null,null,null,null,null,null,null,null,null,null,null,null,null,null,null,null,null,null,8,"0PAYRL_AREA","Payroll Area","X","","","0001","","","","","","","","0","03","","","","00000000","K","0PAYRL_AREA","A","","","H","","","","","","00000000","0000","","0","","","","","1","1","1","0","0","","","","","","D9UV84VAX459U94WMM0DOUL15","","","","","","","0000","","","",12,"D5PZA7P4P3ZJGP4ENT4OUJLKP","D5PZA7P4P4E5GHBTR2DC4O4QH","Total Female Non Disabled Employees","0019","","S","","L","X","","","","",null,null,null,null,null,null,11,"0ORGUNIT","0CRMSRVTGRP","Ex. CRM Service Org.","0000","X","1","0","0","","","","","0000","",null,null,null,null,null,12,"D4O21W1IBUE67VXMBQN5FO1RT","D5PZA7P4P49JCRD9TTRNQ3R3T","","","","","","00","X","0","0","","",null,null,null,null,null,null,null,null,null,null,null,null,null,null,null,null,null,null,null,null,null,null,null,null,null,null,null,null,null,null,null,null,null,null,null,null,null,null,null,null,null,null,null,null,null,null,null,null,null,null,null,null,null,null,null,null,null,null,null,null,null,null,null,null,null,null,null,null,null,null,null,null,null,null,null,null,null,null,null,null,null,null,null,null,null,null,11,"0000000102","1"]
[null,null,null,null,null,null,null,null,null,null,null,null,null,null,null,null,null,null,null,null,null,null,null,null,null,null,null,null,null,null,8,"ZPERSAREA","ZPersonal Area","X","","","0002","","Land and Environmental","","","","","","2","03","","","","00000000","K","ZPERSAREA","A","","","H","","","","","","00000000","0000","","0","","1","","","1","1","1","0","0","","","","","","D9UV84VAX461IVGNY5FZR9ZAX","","","","","","","0000","","","",12,"D4O21W1IBUB3HEML1KWP5YGOP","D4O21W1IBUWMMRRU0P1V1XKAH","Other (Not Migrated) F/T","0019","","F","","L","","","","","",null,null,null,null,null,null,11,"0ORGUNIT","0CRM_SALGRP","CRM Sales Group","0000","X","1","0","0","","","","","0000","",null,null,null,null,null,12,"D4O21W1IBUE67VXMBQN5FO1RT","D5PZA7P4P4AB1DP15D79SJ5DL","","0","","","","00","X","0","0","","",null,null,null,null,null,null,null,null,null,null,null,null,null,null,null,null,null,null,null,null,null,null,null,null,null,null,null,null,null,null,null,null,null,null,null,null,null,null,null,null,null,null,null,null,null,null,null,null,null,null,null,null,null,null,null,null,null,null,null,null,null,null,null,null,null,null,null,null,null,null,null,null,null,null,null,null,null,null,null,null,null,null,null,null,null,null,11,"0000000108",""]
[null,null,null,null,null,null,null,null,null,null,null,null,null,null,null,null,null,null,null,null,null,null,null,null,null,null,null,null,null,null,8,"0ORGUNIT","Organizational Unit","X","","","0003","","","","","","","","1","03","X","ORGEH","000","20150930","K","0ORGUNIT","A","","","H","0ORGUNIT","A","","","","00000000","0000","","0","","","","2","1","1","1","0","0","","","","","","D9UV84VAX46T7HSF9OVLTPDKP","","","","","","","0000","","","",12,"D5PZA7P4P3ZJGP4ENT4OUJLKP","D5PZA7P4P4EX53NL2LSY73J09","Total Non Disabled Employees","0020","","F","","L","","","","","",null,null,null,null,null,null,11,"0ORGUNIT","0CRM_SALOFF","CRM Sales Office","0000","X","1","0","0","","","","","0000","",null,null,null,null,null,12,"D4O21W1IBUE67VXMBQN5FO1RT","D5PZA7P4P4B2Q00SGWMVUYJND","","0","","","","00","X","0","0","","",null,null,null,null,null,null,null,null,null,null,null,null,null,null,null,null,null,null,null,null,null,null,null,null,null,null,null,null,null,null,null,null,null,null,null,null,null,null,null,null,null,null,null,null,null,null,null,null,null,null,null,null,null,null,null,null,null,null,null,null,null,null,null,null,null,null,null,null,null,null,null,null,null,null,null,null,null,null,null,null,null,null,null,null,null,null,11,"0000009002","D4O21W1IBUB3HEML1KWP5YGOP"]
[null,null,null,null,null,null,null,null,null,null,null,null,null,null,null,null,null,null,null,null,null,null,null,null,null,null,null,null,null,null,8,"0PERS_SAREA","Personnel Subarea","X","","","0004","","","","","","","U","1","03","","","","00000000","K","0PERS_SAREA","A","","","H","","","","","","00000000","0000","","0","","","","","1","1","1","0","0","","","","","","D9UV84VAX47KW446L8B7W4RUH","","","","","","","0000","","","",12,"D4O21W1IBUB3HEML1KWP5YGOP","DEN07Y1DTSNAWTLQYCBLILED5","Other (Not Migrated) P/T","0020","","F","","L","","","","","",null,null,null,null,null,null,11,"0ORGUNIT","0CRM_SALORG","CRM Sales Org.","0000","X","1","0","0","","","","","0000","",null,null,null,null,null,12,"D4O21W1IBUE67VXMBQN5FO1RT","D5PZA7P4P4BUEMCJSG2HXDXX5","","0","","","","00","X","0","0","","",null,null,null,null,null,null,null,null,null,null,null,null,null,null,null,null,null,null,null,null,null,null,null,null,null,null,null,null,null,null,null,null,null,null,null,null,null,null,null,null,null,null,null,null,null,null,null,null,null,null,null,null,null,null,null,null,null,null,null,null,null,null,null,null,null,null,null,null,null,null,null,null,null,null,null,null,null,null,null,null,null,null,null,null,null,null,11,"0000009000",""]
[null,null,null,null,null,null,null,null,null,null,null,null,null,null,null,null,null,null,null,null,null,null,null,null,null,null,null,null,null,null,8,"ZTEILK","Checkbox for Part-Ti","X","","","0005","","","","","","","","1","03","","","","00000000","K","ZTEILK","A","","","H","","","","","","00000000","0000","","0","","","","","1","1","1","0","0","","","","","","D9UV84VAX48CKQFXWRQTYK649","","","","","","","0000","","","",12,"D5PZA7P4P3ZJGP4ENT4OUJLKP","D5PZA7P4P4FOTPZCE58K9IXA1","Total Non Disabled Employees %","0021","","F","","L","","","","","",null,null,null,null,null,null,11,"0ORGUNIT","0CRM_SRVORG","Service Org. CRM","0000","X","1","0","0","","","","","0000","",null,null,null,null,null,12,"D4O21W1IBUE67VXMBQN5FO1RT","D5PZA7P4P4CM38OB3ZI3ZTC6X","","0","","","","00","X","0","0","","",null,null,null,null,null,null,null,null,null,null,null,null,null,null,null,null,null,null,null,null,null,null,null,null,null,null,null,null,null,null,null,null,null,null,null,null,null,null,null,null,null,null,null,null,null,null,null,null,null,null,null,null,null,null,null,null,null,null,null,null,null,null,null,null,null,null,null,null,null,null,null,null,null,null,null,null,null,null,null,null,null,null,null,null,null,null,11,"0000000010",""]
[null,null,null,null,null,null,null,null,null,null,null,null,null,null,null,null,null,null,null,null,null,null,null,null,null,null,null,null,null,null,8,"ZPRIM_ID","ZPrimary Employee ID","X","","","0006","","","","","","","","2","03","","","","00000000","K","ZPRIM_ID","A","","","H","","","","","","00000000","0000","","0","","","","","1","1","1","0","0","","","","","","D9UV84VAX4949CRP8B6G0ZKE1","","","","","","","0000","","","",12,"D4O21W1IBUB3HEML1KWP5YGOP","DEN07Y1DTSPLYOL0WYMFPVL6H","Other (Not Migrated) Total","0021","","F","","L","","","","","",null,null,null,null,null,null,11,"0ORGUNIT","0LOGSYS","Source System","0000","X","1","0","0","","","","","0000","",null,null,null,null,null,12,"D4O21W1IBUE67VXMBQN5FO1RT","D5PZA7P4P4DDRV02FIXQ28QGP","","","","","","00","X","0","0","","",null,null,null,null,null,null,null,null,null,null,null,null,null,null,null,null,null,null,null,null,null,null,null,null,null,null,null,null,null,null,null,null,null,null,null,null,null,null,null,null,null,null,null,null,null,null,null,null,null,null,null,null,null,null,null,null,null,null,null,null,null,null,null,null,null,null,null,null,null,null,null,null,null,null,null,null,null,null,null,null,null,null,null,null,null,null,11,"0000000021",""]
[null,null,null,null,null,null,null,null,null,null,null,null,null,null,null,null,null,null,null,null,null,null,null,null,null,null,null,null,null,null,8,"0CNTRCTTYPE","Contract Type","X","","","0007","","","","","","","","1","03","","","","00000000","K","0CNTRCTTYPE","A","","","H","","","","","","00000000","0000","","0","","","","","1","1","1","0","0","","","","","","D9UV9459QXWEJPYDHUNPBXGQH","","","","","","","0000","","","",12,"D5PZA7P4P3ZJGP4ENT4OUJLKP","D5PZA7P4P4GGICB3POO6BYBJT","Total Male Employees","0022","","S","","L","X","","","","",null,null,null,null,null,null,11,"0ORGUNIT","0MAST_CCTR","Master Cost Center","0000","X","0","0","0","","","","","0000","",null,null,null,null,null,12,"D4O21W1IBUE67VXMBQN5FO1RT","D5PZA7P4P4E5GHBTR2DC4O4QH","","","","","","00","X","0","0","","",null,null,null,null,null,null,null,null,null,null,null,null,null,null,null,null,null,null,null,null,null,null,null,null,null,null,null,null,null,null,null,null,null,null,null,null,null,null,null,null,null,null,null,null,null,null,null,null,null,null,null,null,null,null,null,null,null,null,null,null,null,null,null,null,null,null,null,null,null,null,null,null,null,null,null,null,null,null,null,null,null,null,null,null,null,null,11,"0000000022",""]
[null,null,null,null,null,null,null,null,null,null,null,null,null,null,null,null,null,null,null,null,null,null,null,null,null,null,null,null,null,null,8,"D5PZA7P4P3ZJGP4ENT4OUJLKP","WP Disability/Ethnicity Bandings Rev","","X","X","0001","","","","","","","U","","00","","","","","K","D5PZA7P4P3ZJGP4ENT4OUJLKP","A","","","","","","","","","00000000","0000","X","0","","","","","0","0","0","0","0","","","","","","D5PZA7P4P3ZJGP4ENT4OUJLKP","","","","","","","0000","","","",12,"D4O21W1IBUB3HEML1KWP5YGOP","D4O21W1IBUY600FCNRX36SCU1","Total Teaching Staff F/T","0022","","S","","L","","","","","",null,null,null,null,null,null,11,"0ORGUNIT","0PERS_AREA","Personnel Area","0000","X","1","0","0","","","","","0000","",null,null,null,null,null,12,"D4O21W1IBUE67VXMBQN5FO1RT","D5PZA7P4P4EX53NL2LSY73J09","","0","","","","00","X","0","0","","",null,null,null,null,null,null,null,null,null,null,null,null,null,null,null,null,null,null,null,null,null,null,null,null,null,null,null,null,null,null,null,null,null,null,null,null,null,null,null,null,null,null,null,null,null,null,null,null,null,null,null,null,null,null,null,null,null,null,null,null,null,null,null,null,null,null,null,null,null,null,null,null,null,null,null,null,null,null,null,null,null,null,null,null,null,null,11,"0000000023",""]
[null,null,null,null,null,null,null,null,null,null,null,null,null,null,null,null,null,null,null,null,null,null,null,null,null,null,null,null,null,null,8,"D4O21W1IBUB3HEML1KWP5YGOP","WP Bandings","","X","Y","0001","","","","","","","U","","00","","","","","K","D4O21W1IBUB3HEML1KWP5YGOP","A","","","","","","","","","00000000","0000","","0","","","","","0","0","0","0","0","","","","","","D4O21W1IBUB3HEML1KWP5YGOP","","","","","","","0000","","","",12,"D4O21W1IBUB3HEML1KWP5YGOP","DEN0OSIFULCZTDTFE8U7RBQIH","Total Teaching Staff P/T","0023","","S","","L","","","","","",null,null,null,null,null,null,11,"0ORGUNIT","0PERS_SAREA","Personnel Subarea","0000","X","1","0","0","","","","","0000","",null,null,null,null,null,12,"D4O21W1IBUE67VXMBQN5FO1RT","D5PZA7P4P4FOTPZCE58K9IXA1","","2","","","","00","X","0","0","","",null,null,null,null,null,null,null,null,null,null,null,null,null,null,null,null,null,null,null,null,null,null,null,null,null,null,null,null,null,null,null,null,null,null,null,null,null,null,null,null,null,null,null,null,null,null,null,null,null,null,null,null,null,null,null,null,null,null,null,null,null,null,null,null,null,null,null,null,null,null,null,null,null,null,null,null,null,null,null,null,null,null,null,null,null,null,11,"0000000030",""]
[null,null,null,null,null,null,null,null,null,null,null,null,null,null,null,null,null,null,null,null,null,null,null,null,null,null,null,null,null,null,7,"0PAYRL_AREA","Payroll Area","X","","","0001","","","","","","","","0","03","","","","00000000","K","0PAYRL_AREA","A","","","H","","","","","","00000000","0000","","0","","","","","1","1","1","0","0","","","","","","D9UV84VAX459U94WMM0DOUL15","","","","","","","0000","","","",12,"D5PZA7P4P3ZJGP4ENT4OUJLKP","D5PZA7P4P4H86YMV183SEDPTL","Total Female Employees","0023","","S","","L","X","","","","",null,null,null,null,null,null,11,"0ORGUNIT","0PLANT","Plant","0000","X","0","0","0","","","","","0000","",null,null,null,null,null,12,"D4O21W1IBUE67VXMBQN5FO1RT","D5PZA7P4P4GGICB3POO6BYBJT","","","","","","00","X","0","0","","",null,null,null,null,null,null,null,null,null,null,null,null,null,null,null,null,null,null,null,null,null,null,null,null,null,null,null,null,null,null,null,null,null,null,null,null,null,null,null,null,null,null,null,null,null,null,null,null,null,null,null,null,null,null,null,null,null,null,null,null,null,null,null,null,null,null,null,null,null,null,null,null,null,null,null,null,null,null,null,null,null,null,null,null,null,null,11,"0000000040",""]
[null,null,null,null,null,null,null,null,null,null,null,null,null,null,null,null,null,null,null,null,null,null,null,null,null,null,null,null,null,null,7,"ZPERSAREA","ZPersonal Area","X","","","0002","","Financial","","","","","","2","03","","","","00000000","K","ZPERSAREA","A","","","H","","","","","","00000000","0000","","0","","1","","","1","1","1","0","0","","","","","","D9UV84VAX461IVGNY5FZR9ZAX","","","","","","","0000","","","",12,"D5PZA7P4P3ZJGP4ENT4OUJLKP","D5PZA7P4P47ZZIPR6QWFL8YK9","Total Workforce","0024","","S","","L","X","","","","",null,null,null,null,null,null,11,"0ORGUNIT","0PURCH_ORG","Purchasing org.","0000","X","0","0","0","","","","","0000","",null,null,null,null,null,12,"D4O21W1IBUE67VXMBQN5FO1RT","D5PZA7P4P4H86YMV183SEDPTL","","","","","","00","X","0","0","","",null,null,null,null,null,null,null,null,null,null,null,null,null,null,null,null,null,null,null,null,null,null,null,null,null,null,null,null,null,null,null,null,null,null,null,null,null,null,null,null,null,null,null,null,null,null,null,null,null,null,null,null,null,null,null,null,null,null,null,null,null,null,null,null,null,null,null,null,null,null,null,null,null,null,null,null,null,null,null,null,null,null,null,null,null,null,11,"0000000041",""]
[null,null,null,null,null,null,null,null,null,null,null,null,null,null,null,null,null,null,null,null,null,null,null,null,null,null,null,null,null,null,7,"0ORGUNIT","Organizational Unit","X","","","0003","","","","","","","","1","03","X","ORGEH","000","20150930","K","0ORGUNIT","A","","","H","0ORGUNIT","A","","","","00000000","0000","","0","","","","2","1","1","1","0","0","","","","","","D9UV84VAX46T7HSF9OVLTPDKP","","","","","","","0000","","","",12,"D4O21W1IBUB3HEML1KWP5YGOP","DEN0OSIFULDRI056PS9TTR4S9","Total Teaching Staff","0024","","S","","L","","","","","",null,null,null,null,null,null,11,"0ORGUNIT","0PUR_GROUP","Purchasing group","0000","X","0","0","0","","","","","0000","",null,null,null,null,null,12,"D4O21W1IBUE67VXMBQN5FO1RT","D5PZAGQNPNJN6QK9OBJM8YLMH","","","","","","00","X","0","0","","",null,null,null,null,null,null,null,null,null,null,null,null,null,null,null,null,null,null,null,null,null,null,null,null,null,null,null,null,null,null,null,null,null,null,null,null,null,null,null,null,null,null,null,null,null,null,null,null,null,null,null,null,null,null,null,null,null,null,null,null,null,null,null,null,null,null,null,null,null,null,null,null,null,null,null,null,null,null,null,null,null,null,null,null,null,null,11,"0000000042","0"]
[null,null,null,null,null,null,null,null,null,null,null,null,null,null,null,null,null,null,null,null,null,null,null,null,null,null,null,null,null,null,7,"0PERS_SAREA","Personnel Subarea","X","","","0004","","","","","","","U","1","03","","","","00000000","K","0PERS_SAREA","A","","","H","","","","","","00000000","0000","","0","","","","","1","1","1","0","0","","","","","","D9UV84VAX47KW446L8B7W4RUH","","","","","","","0000","","","",12,"D4O21W1IBUB3HEML1KWP5YGOP","DEN0OSIFULEJ6MGY1BPFW6J21","Total Non-Teaching Staff F/T","0025","","S","","L","","","","","",null,null,null,null,null,null,11,"0ORGUNIT","0SALESORG","Sales Organization","0000","X","0","0","0","","","","","0000","",null,null,null,null,null,12,"D4O21W1IBUEXWI9DNA2RI3G1L","D5PZA7P4P40B5BG5ZCKAWYZUH","","","","","","00","X","0","0","","",null,null,null,null,null,null,null,null,null,null,null,null,null,null,null,null,null,null,null,null,null,null,null,null,null,null,null,null,null,null,null,null,null,null,null,null,null,null,null,null,null,null,null,null,null,null,null,null,null,null,null,null,null,null,null,null,null,null,null,null,null,null,null,null,null,null,null,null,null,null,null,null,null,null,null,null,null,null,null,null,null,null,null,null,null,null,11,"0000000043","0"]
[null,null,null,null,null,null,null,null,null,null,null,null,null,null,null,null,null,null,null,null,null,null,null,null,null,null,null,null,null,null,7,"ZTEILK","Checkbox for Part-Ti","X","","","0005","","","","","","","","1","03","","","","00000000","K","ZTEILK","A","","","H","","","","","","00000000","0000","","0","","","","","1","1","1","0","0","","","","","","D9UV84VAX48CKQFXWRQTYK649","","","","","","","0000","","","",12,"D4O21W1IBUB3HEML1KWP5YGOP","DEN07Y1DTSOUA299LF6TNG6WP","Total Non-Teaching Staff P/T","0026","","S","","L","","","","","",null,null,null,null,null,null,11,"0ORGUNIT","0SALES_GRP","Sales group","0000","X","0","0","0","","","","","0000","",null,null,null,null,null,12,"D4O21W1IBUEXWI9DNA2RI3G1L","D5PZA7P4P412TXRXAVZWZEE49","","","","","","00","X","0","0","","",null,null,null,null,null,null,null,null,null,null,null,null,null,null,null,null,null,null,null,null,null,null,null,null,null,null,null,null,null,null,null,null,null,null,null,null,null,null,null,null,null,null,null,null,null,null,null,null,null,null,null,null,null,null,null,null,null,null,null,null,null,null,null,null,null,null,null,null,null,null,null,null,null,null,null,null,null,null,null,null,null,null,null,null,null,null,11,"0000000109","0"]
[null,null,null,null,null,null,null,null,null,null,null,null,null,null,null,null,null,null,null,null,null,null,null,null,null,null,null,null,null,null,7,"ZPRIM_ID","ZPrimary Employee ID","X","","","0006","","","","","","","","2","03","","","","00000000","K","ZPRIM_ID","A","","","H","","","","","","00000000","0000","","0","","","","","1","1","1","0","0","","","","","","D9UV84VAX4949CRP8B6G0ZKE1","","","","","","","0000","","","",12,"D4O21W1IBUB3HEML1KWP5YGOP","DEN07Y1DTSR5BX8JK1HNUQDQ1","Total Non-Teaching Staff","0027","","S","","L","","","","","",null,null,null,null,null,null,11,"0ORGUNIT","0SALES_OFF","Sales Office","0000","X","0","0","0","","","","","0000","",null,null,null,null,null,12,"D4O21W1IBUEXWI9DNA2RI3G1L","D5PZA7P4P41UIK3OMFFJ1TSE1","","0","","","","00","X","0","0","","",null,null,null,null,null,null,null,null,null,null,null,null,null,null,null,null,null,null,null,null,null,null,null,null,null,null,null,null,null,null,null,null,null,null,null,null,null,null,null,null,null,null,null,null,null,null,null,null,null,null,null,null,null,null,null,null,null,null,null,null,null,null,null,null,null,null,null,null,null,null,null,null,null,null,null,null,null,null,null,null,null,null,null,null,null,null,11,"0000000113",""]
[null,null,null,null,null,null,null,null,null,null,null,null,null,null,null,null,null,null,null,null,null,null,null,null,null,null,null,null,null,null,7,"0CNTRCTTYPE","Contract Type","X","","","0007","","","","","","","","1","03","","","","00000000","K","0CNTRCTTYPE","A","","","H","","","","","","00000000","0000","","0","","","","","1","1","1","0","0","","","","","","D9UV9459QXWEJPYDHUNPBXGQH","","","","","","","0000","","","",12,"D4O21W1IBUB3HEML1KWP5YGOP","D4O21W1IBUXEBE3LC8HH4CYK9","Total - All WPBR Grades F/T","0028","","F","","L","","","","","",null,null,null,null,null,null,11,"0CNTRCTTYPE","0CNTRCTISFT","Fixed-Term Contract","0000","X","2","0","0","","","","","0000","",null,null,null,null,null,12,"D4O21W1IBUEXWI9DNA2RI3G1L","D5PZA7P4P42M76FFXYV5496NT","","0","","","","00","X","0","0","","",null,null,null,null,null,null,null,null,null,null,null,null,null,null,null,null,null,null,null,null,null,null,null,null,null,null,null,null,null,null,null,null,null,null,null,null,null,null,null,null,null,null,null,null,null,null,null,null,null,null,null,null,null,null,null,null,null,null,null,null,null,null,null,null,null,null,null,null,null,null,null,null,null,null,null,null,null,null,null,null,null,null,null,null,null,null,11,"0000000120",""]
[null,null,null,null,null,null,null,null,null,null,null,null,null,null,null,null,null,null,null,null,null,null,null,null,null,null,null,null,null,null,7,"D5PZA7P4P3ZJGP4ENT4OUJLKP","WP Disability/Ethnicity Bandings Rev","","X","X","0001","","","","","","","U","","00","","","","","K","D5PZA7P4P3ZJGP4ENT4OUJLKP","A","","","","","","","","","00000000","0000","X","0","","","","","0","0","0","0","0","","","","","","D5PZA7P4P3ZJGP4ENT4OUJLKP","","","","","","","0000","","","",12,"D4O21W1IBUB3HEML1KWP5YGOP","DEN07Y1DTSO2LFXI9VR7L0SMX","Total - All WPBR Grades P/T","0029","","F","","L","","","","","",null,null,null,null,null,null,10,"0ORGUNIT","0BBPPURGRPX","Ind.Purchasing Group","0000","X","2","0","0","","","","","0000","",null,null,null,null,null,12,"D4O21W1IBUEXWI9DNA2RI3G1L","D5PZA7P4P43DVSR79IAR6OKXL","","0","","","","00","X","0","0","","",null,null,null,null,null,null,null,null,null,null,null,null,null,null,null,null,null,null,null,null,null,null,null,null,null,null,null,null,null,null,null,null,null,null,null,null,null,null,null,null,null,null,null,null,null,null,null,null,null,null,null,null,null,null,null,null,null,null,null,null,null,null,null,null,null,null,null,null,null,null,null,null,null,null,null,null,null,null,null,null,null,null,null,null,null,null,11,"0000000121",""]
[null,null,null,null,null,null,null,null,null,null,null,null,null,null,null,null,null,null,null,null,null,null,null,null,null,null,null,null,null,null,7,"D4O21W1IBUB3HEML1KWP5YGOP","WP Bandings","","X","Y","0001","","","","","","","U","","00","","","","","K","D4O21W1IBUB3HEML1KWP5YGOP","A","","","","","","","","","00000000","0000","","0","","","","","0","0","0","0","0","","","","","","D4O21W1IBUB3HEML1KWP5YGOP","","","","","","","0000","","","",12,"D4O21W1IBUB3HEML1KWP5YGOP","DEN07Y1DTSQDNAWS8I21SAZG9","Total Workforce - All WPBR Grades","0030","","F","","L","","","","","",null,null,null,null,null,null,10,"0ORGUNIT","0BBPPURORGX","Ind. Purchasing Org.","0000","X","2","0","0","","","","","0000","",null,null,null,null,null,12,"D4O21W1IBUEXWI9DNA2RI3G1L","D5PZA7P4P445KF2YL1QD93Z7D","","0","","","","00","X","0","0","","",null,null,null,null,null,null,null,null,null,null,null,null,null,null,null,null,null,null,null,null,null,null,null,null,null,null,null,null,null,null,null,null,null,null,null,null,null,null,null,null,null,null,null,null,null,null,null,null,null,null,null,null,null,null,null,null,null,null,null,null,null,null,null,null,null,null,null,null,null,null,null,null,null,null,null,null,null,null,null,null,null,null,null,null,null,null,11,"0000010001","D9UV84VAX4ANMLF7VE1O5UCXL"]
[null,null,null,null,null,null,null,null,null,null,null,null,null,null,null,null,null,null,null,null,null,null,null,null,null,null,null,null,null,null,6,"0PAYRL_AREA","Payroll Area","X","","","0001","","","","","","","","0","03","","","","00000000","K","0PAYRL_AREA","A","","","H","","","","","","00000000","0000","","0","","","","","1","1","1","0","0","","","","","","D9UV84VAX459U94WMM0DOUL15","","","","","","","0000","","","",12,"D4O21W1IBUB3HEML1KWP5YGOP","D4O21W1IBV8XKOZZ5BZO4RWMX","Total Workforce (All) F/T","0031","","S","","L","","","","","",null,null,null,null,null,null,10,"0ORGUNIT","0BBP_BUYID","Buyer ID","0000","X","5","0","0","","","","","0000","",null,null,null,null,null,12,"D4O21W1IBUEXWI9DNA2RI3G1L","D5PZA7P4P44X91EPWL5ZBJDH5","","","","","","00","X","0","0","","",null,null,null,null,null,null,null,null,null,null,null,null,null,null,null,null,null,null,null,null,null,null,null,null,null,null,null,null,null,null,null,null,null,null,null,null,null,null,null,null,null,null,null,null,null,null,null,null,null,null,null,null,null,null,null,null,null,null,null,null,null,null,null,null,null,null,null,null,null,null,null,null,null,null,null,null,null,null,null,null,null,null,null,null,null,null,11,"0000010002","D9UV84VAX3YCOO72QR3V300L5"]
[null,null,null,null,null,null,null,null,null,null,null,null,null,null,null,null,null,null,null,null,null,null,null,null,null,null,null,null,null,null,6,"ZPERSAREA","ZPersonal Area","X","","","0002","","Education","","","","","","2","03","","","","00000000","K","ZPERSAREA","A","","","H","","","","","","00000000","0000","","0","","1","","","1","1","1","0","0","","","","","","D9UV84VAX461IVGNY5FZR9ZAX","","","","","","","0000","","","",12,"D4O21W1IBUB3HEML1KWP5YGOP","DEN07Y1DTSRX0JKAVKX9X5RZT","Total Workforce (All) P/T","0032","","S","","L","","","","","",null,null,null,null,null,null,10,"0ORGUNIT","0BBP_ISCOMP","Organizational Unit is Company","0000","X","1","0","0","","","","","0000","",null,null,null,null,null,12,"D4O21W1IBUEXWI9DNA2RI3G1L","D5PZA7P4P45OXNQH84LLDYRQX","","","","","","00","X","0","0","","",null,null,null,null,null,null,null,null,null,null,null,null,null,null,null,null,null,null,null,null,null,null,null,null,null,null,null,null,null,null,null,null,null,null,null,null,null,null,null,null,null,null,null,null,null,null,null,null,null,null,null,null,null,null,null,null,null,null,null,null,null,null,null,null,null,null,null,null,null,null,null,null,null,null,null,null,null,null,null,null,null,null,null,null,null,null,11,"0000000105",""]
[null,null,null,null,null,null,null,null,null,null,null,null,null,null,null,null,null,null,null,null,null,null,null,null,null,null,null,null,null,null,6,"0ORGUNIT","Organizational Unit","X","","","0003","","","","","","","","1","03","X","ORGEH","000","20150930","K","0ORGUNIT","A","","","H","0ORGUNIT","A","","","","00000000","0000","","0","","","","2","1","1","1","0","0","","","","","","D9UV84VAX46T7HSF9OVLTPDKP","","","","","","","0000","","","",12,"D4O21W1IBUB3HEML1KWP5YGOP","DEN07Y1DTSSOP5W274CVZL69L","Total Workforce (All)","0033","","S","","L","","","","","",null,null,null,null,null,null,10,"0ORGUNIT","0BUS_AREA","Business area","0000","X","0","0","0","","","","","0000","",null,null,null,null,null,12,"D4O21W1IBUEXWI9DNA2RI3G1L","D5PZA7P4P46GMA28JO17GE60P","","0","","","","00","X","0","0","","",null,null,null,null,null,null,null,null,null,null,null,null,null,null,null,null,null,null,null,null,null,null,null,null,null,null,null,null,null,null,null,null,null,null,null,null,null,null,null,null,null,null,null,null,null,null,null,null,null,null,null,null,null,null,null,null,null,null,null,null,null,null,null,null,null,null,null,null,null,null,null,null,null,null,null,null,null,null,null,null,null,null,null,null,null,null,11,"0000000106",""]
[null,null,null,null,null,null,null,null,null,null,null,null,null,null,null,null,null,null,null,null,null,null,null,null,null,null,null,null,null,null,6,"0PERS_SAREA","Personnel Subarea","X","","","0004","","","","","","","U","1","03","","","","00000000","K","0PERS_SAREA","A","","","H","","","","","","00000000","0000","","0","","","","","1","1","1","0","0","","","","","","D9UV84VAX47KW446L8B7W4RUH","","","","","","","0000","","","",11,"D4O21W1IBUB3HEML1KWP5YGOP","D4O21W1IBUDEJ9LV077JD8NI1","Grade 1 - 4 F/T","0001","","S","","L","","","","","",null,null,null,null,null,null,10,"0ORGUNIT","0COMP_CODE","Company code","0000","X","0","0","0","","","","","0000","",null,null,null,null,null,12,"D4O21W1IBUEXWI9DNA2RI3G1L","D5PZA7P4P478AWDZV7GTITKAH","","2","","","","00","X","0","0","","",null,null,null,null,null,null,null,null,null,null,null,null,null,null,null,null,null,null,null,null,null,null,null,null,null,null,null,null,null,null,null,null,null,null,null,null,null,null,null,null,null,null,null,null,null,null,null,null,null,null,null,null,null,null,null,null,null,null,null,null,null,null,null,null,null,null,null,null,null,null,null,null,null,null,null,null,null,null,null,null,null,null,null,null,null,null,11,"0000000112","0"]
[null,null,null,null,null,null,null,null,null,null,null,null,null,null,null,null,null,null,null,null,null,null,null,null,null,null,null,null,null,null,6,"ZTEILK","Checkbox for Part-Ti","X","","","0005","","","","","","","","1","03","","","","00000000","K","ZTEILK","A","","","H","","","","","","00000000","0000","","0","","","","","1","1","1","0","0","","","","","","D9UV84VAX48CKQFXWRQTYK649","","","","","","","0000","","","",11,"D5PZA7P4P3ZJGP4ENT4OUJLKP","D5PZA7P4P40B5BG5ZCKAWYZUH","Total White Male Disabled Employees","0001","","S","","L","X","","","","",null,null,null,null,null,null,10,"0ORGUNIT","0CO_MST_AR","Controlling Area of Master Cost Center","0000","X","0","0","0","","","","","0000","",null,null,null,null,null,12,"D4O21W1IBUEXWI9DNA2RI3G1L","D5PZA7P4P47ZZIPR6QWFL8YK9","","","","","","00","X","0","0","","",null,null,null,null,null,null,null,null,null,null,null,null,null,null,null,null,null,null,null,null,null,null,null,null,null,null,null,null,null,null,null,null,null,null,null,null,null,null,null,null,null,null,null,null,null,null,null,null,null,null,null,null,null,null,null,null,null,null,null,null,null,null,null,null,null,null,null,null,null,null,null,null,null,null,null,null,null,null,null,null,null,null,null,null,null,null,11,"0000000200","X"]
[null,null,null,null,null,null,null,null,null,null,null,null,null,null,null,null,null,null,null,null,null,null,null,null,null,null,null,null,null,null,6,"ZPRIM_ID","ZPrimary Employee ID","X","","","0006","","","","","","","","2","03","","","","00000000","K","ZPRIM_ID","A","","","H","","","","","","00000000","0000","","0","","","","","1","1","1","0","0","","","","","","D9UV84VAX4949CRP8B6G0ZKE1","","","","","","","0000","","","",11,"D4O21W1IBUB3HEML1KWP5YGOP","D4O21W1IBUKBOUJOW241Z37Y1","Grade 1 - 4 P/T","0002","","S","","L","","","","","",null,null,null,null,null,null,10,"0ORGUNIT","0CRMSALGRPX","Sls Group: Indicator","0000","X","2","0","0","","","","","0000","",null,null,null,null,null,12,"D4O21W1IBUEXWI9DNA2RI3G1L","D5PZA7P4P48RO51IIAC1NOCU1","","","","","","00","X","0","0","","",null,null,null,null,null,null,null,null,null,null,null,null,null,null,null,null,null,null,null,null,null,null,null,null,null,null,null,null,null,null,null,null,null,null,null,null,null,null,null,null,null,null,null,null,null,null,null,null,null,null,null,null,null,null,null,null,null,null,null,null,null,null,null,null,null,null,null,null,null,null,null,null,null,null,null,null,null,null,null,null,null,null,null,null,null,null,11,"0000004000","X"]
[null,null,null,null,null,null,null,null,null,null,null,null,null,null,null,null,null,null,null,null,null,null,null,null,null,null,null,null,null,null,6,"0CNTRCTTYPE","Contract Type","X","","","0007","","","","","","","","1","03","","","","00000000","K","0CNTRCTTYPE","A","","","H","","","","","","00000000","0000","","0","","","","","1","1","1","0","0","","","","","","D9UV9459QXWEJPYDHUNPBXGQH","","","","","","","0000","","","",11,"D5PZA7P4P3ZJGP4ENT4OUJLKP","D5PZA7P4P412TXRXAVZWZEE49","Total White Female Disabled Employees","0002","","S","","L","X","","","","",null,null,null,null,null,null,10,"0ORGUNIT","0CRMSALOFFX","Sls Office:Indicator","0000","X","2","0","0","","","","","0000","",null,null,null,null,null,12,"D4O21W1IBUEXWI9DNA2RI3G1L","D5PZA7P4P49JCRD9TTRNQ3R3T","","","","","","00","X","0","0","","",null,null,null,null,null,null,null,null,null,null,null,null,null,null,null,null,null,null,null,null,null,null,null,null,null,null,null,null,null,null,null,null,null,null,null,null,null,null,null,null,null,null,null,null,null,null,null,null,null,null,null,null,null,null,null,null,null,null,null,null,null,null,null,null,null,null,null,null,null,null,null,null,null,null,null,null,null,null,null,null,null,null,null,null,null,null,11,"0000009001","Workforce Profile Disability Excl Casual & Sessional"]
[null,null,null,null,null,null,null,null,null,null,null,null,null,null,null,null,null,null,null,null,null,null,null,null,null,null,null,null,null,null,6,"D5PZA7P4P3ZJGP4ENT4OUJLKP","WP Disability/Ethnicity Bandings Rev","","X","X","0001","","","","","","","U","","00","","","","","K","D5PZA7P4P3ZJGP4ENT4OUJLKP","A","","","","","","","","","00000000","0000","X","0","","","","","0","0","0","0","0","","","","","","D5PZA7P4P3ZJGP4ENT4OUJLKP","","","","","","","0000","","","",11,"D5PZA7P4P3ZJGP4ENT4OUJLKP","D5PZA7P4P41UIK3OMFFJ1TSE1","Total White Disabled Employees","0003","","F","","L","","","","","",null,null,null,null,null,null,10,"0ORGUNIT","0CRMSALORGX","Sales Org. Indicator","0000","X","2","0","0","","","","","0000","",null,null,null,null,null,12,"D4O21W1IBUEXWI9DNA2RI3G1L","D5PZA7P4P4AB1DP15D79SJ5DL","","0","","","","00","X","0","0","","",null,null,null,null,null,null,null,null,null,null,null,null,null,null,null,null,null,null,null,null,null,null,null,null,null,null,null,null,null,null,null,null,null,null,null,null,null,null,null,null,null,null,null,null,null,null,null,null,null,null,null,null,null,null,null,null,null,null,null,null,null,null,null,null,null,null,null,null,null,null,null,null,null,null,null,null,null,null,null,null,null,null,null,null,null,null,11,"0000000114","1"]
[null,null,null,null,null,null,null,null,null,null,null,null,null,null,null,null,null,null,null,null,null,null,null,null,null,null,null,null,null,null,6,"D4O21W1IBUB3HEML1KWP5YGOP","WP Bandings","","X","Y","0001","","","","","","","U","","00","","","","","K","D4O21W1IBUB3HEML1KWP5YGOP","A","","","","","","","","","00000000","0000","","0","","","","","0","0","0","0","0","","","","","","D4O21W1IBUB3HEML1KWP5YGOP","","","","","","","0000","","","",11,"D4O21W1IBUB3HEML1KWP5YGOP","DEMAFDB5LZ4S252XBVM7GJP4P","Grade 1 - 4 Total","0003","","S","","L","","","","","",null,null,null,null,null,null,10,"0ORGUNIT","0CRMSRVTGRP","Ex. CRM Service Org.","0000","X","1","0","0","","","","","0000","",null,null,null,null,null,12,"D4O21W1IBUEXWI9DNA2RI3G1L","D5PZA7P4P4B2Q00SGWMVUYJND","","0","","","","00","X","0","0","","",null,null,null,null,null,null,null,null,null,null,null,null,null,null,null,null,null,null,null,null,null,null,null,null,null,null,null,null,null,null,null,null,null,null,null,null,null,null,null,null,null,null,null,null,null,null,null,null,null,null,null,null,null,null,null,null,null,null,null,null,null,null,null,null,null,null,null,null,null,null,null,null,null,null,null,null,null,null,null,null,null,null,null,null,null,null,10,"0000000107","D9UVC1KT6HWIXXRKESG1SN3LL"]
[null,null,null,null,null,null,null,null,null,null,null,null,null,null,null,null,null,null,null,null,null,null,null,null,null,null,null,null,null,null,5,"0PAYRL_AREA","Payroll Area","X","","","0001","","","","","","","","0","03","","","","00000000","K","0PAYRL_AREA","A","","","H","","","","","","00000000","0000","","0","","","","","1","1","1","0","0","","","","","","D9UV84VAX459U94WMM0DOUL15","","","","","","","0000","","","",11,"D4O21W1IBUB3HEML1KWP5YGOP","D4O21W1IBUE67VXMBQN5FO1RT","Grade 5 - 7 F/T","0004","","S","","L","","","","","",null,null,null,null,null,null,10,"0ORGUNIT","0CRM_SALGRP","CRM Sales Group","0000","X","1","0","0","","","","","0000","",null,null,null,null,null,12,"D4O21W1IBUEXWI9DNA2RI3G1L","D5PZA7P4P4BUEMCJSG2HXDXX5","","0","","","","00","X","0","0","","",null,null,null,null,null,null,null,null,null,null,null,null,null,null,null,null,null,null,null,null,null,null,null,null,null,null,null,null,null,null,null,null,null,null,null,null,null,null,null,null,null,null,null,null,null,null,null,null,null,null,null,null,null,null,null,null,null,null,null,null,null,null,null,null,null,null,null,null,null,null,null,null,null,null,null,null,null,null,null,null,null,null,null,null,null,null,10,"0000000100","X"]
[null,null,null,null,null,null,null,null,null,null,null,null,null,null,null,null,null,null,null,null,null,null,null,null,null,null,null,null,null,null,5,"ZPERSAREA","ZPersonal Area","X","","","0002","","Development and Regeneration","","","","","","2","03","","","","00000000","K","ZPERSAREA","A","","","H","","","","","","00000000","0000","","0","","1","","","1","1","1","0","0","","","","","","D9UV84VAX461IVGNY5FZR9ZAX","","","","","","","0000","","","",11,"D5PZA7P4P3ZJGP4ENT4OUJLKP","D5PZA7P4P42M76FFXYV5496NT","Total Ethnic Male Disabled Employees","0004","","S","","L","X","","","","",null,null,null,null,null,null,10,"0ORGUNIT","0CRM_SALOFF","CRM Sales Office","0000","X","1","0","0","","","","","0000","",null,null,null,null,null,12,"D4O21W1IBUEXWI9DNA2RI3G1L","D5PZA7P4P4CM38OB3ZI3ZTC6X","","0","","","","00","X","0","0","","",null,null,null,null,null,null,null,null,null,null,null,null,null,null,null,null,null,null,null,null,null,null,null,null,null,null,null,null,null,null,null,null,null,null,null,null,null,null,null,null,null,null,null,null,null,null,null,null,null,null,null,null,null,null,null,null,null,null,null,null,null,null,null,null,null,null,null,null,null,null,null,null,null,null,null,null,null,null,null,null,null,null,null,null,null,null,10,"0000000101",""]
[null,null,null,null,null,null,null,null,null,null,null,null,null,null,null,null,null,null,null,null,null,null,null,null,null,null,null,null,null,null,5,"0ORGUNIT","Organizational Unit","X","","","0003","","","","","","","","1","03","X","ORGEH","000","20150930","K","0ORGUNIT","A","","","H","0ORGUNIT","A","","","","00000000","0000","","0","","","","2","1","1","1","0","0","","","","","","D9UV84VAX46T7HSF9OVLTPDKP","","","","","","","0000","","","",11,"D5PZA7P4P3ZJGP4ENT4OUJLKP","D5PZA7P4P43DVSR79IAR6OKXL","Total Ethnic Female Disabled Employees","0005","","S","","L","X","","","","",null,null,null,null,null,null,10,"0ORGUNIT","0CRM_SALORG","CRM Sales Org.","0000","X","1","0","0","","","","","0000","",null,null,null,null,null,12,"D4O21W1IBUEXWI9DNA2RI3G1L","D5PZA7P4P4DDRV02FIXQ28QGP","","","","","","00","X","0","0","","",null,null,null,null,null,null,null,null,null,null,null,null,null,null,null,null,null,null,null,null,null,null,null,null,null,null,null,null,null,null,null,null,null,null,null,null,null,null,null,null,null,null,null,null,null,null,null,null,null,null,null,null,null,null,null,null,null,null,null,null,null,null,null,null,null,null,null,null,null,null,null,null,null,null,null,null,null,null,null,null,null,null,null,null,null,null,10,"0000000104","1"]
[null,null,null,null,null,null,null,null,null,null,null,null,null,null,null,null,null,null,null,null,null,null,null,null,null,null,null,null,null,null,5,"0PERS_SAREA","Personnel Subarea","X","","","0004","","","","","","","U","1","03","","","","00000000","K","0PERS_SAREA","A","","","H","","","","","","00000000","0000","","0","","","","","1","1","1","0","0","","","","","","D9UV84VAX47KW446L8B7W4RUH","","","","","","","0000","","","",11,"D4O21W1IBUB3HEML1KWP5YGOP","D4O21W1IBUL3DGVG7LJO1IM7T","Grade 5 - 7 P/T","0005","","S","","L","","","","","",null,null,null,null,null,null,10,"0ORGUNIT","0CRM_SRVORG","Service Org. CRM","0000","X","1","0","0","","","","","0000","",null,null,null,null,null,12,"D4O21W1IBUEXWI9DNA2RI3G1L","D5PZA7P4P4E5GHBTR2DC4O4QH","","","","","","00","X","0","0","","",null,null,null,null,null,null,null,null,null,null,null,null,null,null,null,null,null,null,null,null,null,null,null,null,null,null,null,null,null,null,null,null,null,null,null,null,null,null,null,null,null,null,null,null,null,null,null,null,null,null,null,null,null,null,null,null,null,null,null,null,null,null,null,null,null,null,null,null,null,null,null,null,null,null,null,null,null,null,null,null,null,null,null,null,null,null,10,"0000000103",""]
[null,null,null,null,null,null,null,null,null,null,null,null,null,null,null,null,null,null,null,null,null,null,null,null,null,null,null,null,null,null,5,"ZTEILK","Checkbox for Part-Ti","X","","","0005","","","","","","","","1","03","","","","00000000","K","ZTEILK","A","","","H","","","","","","00000000","0000","","0","","","","","1","1","1","0","0","","","","","","D9UV84VAX48CKQFXWRQTYK649","","","","","","","0000","","","",11,"D5PZA7P4P3ZJGP4ENT4OUJLKP","D5PZA7P4P445KF2YL1QD93Z7D","Total Ethnic Disabled Employees","0006","","F","","L","","","","","",null,null,null,null,null,null,10,"0ORGUNIT","0LOGSYS","Source System","0000","X","1","0","0","","","","","0000","",null,null,null,null,null,12,"D4O21W1IBUEXWI9DNA2RI3G1L","D5PZA7P4P4EX53NL2LSY73J09","","0","","","","00","X","0","0","","",null,null,null,null,null,null,null,null,null,null,null,null,null,null,null,null,null,null,null,null,null,null,null,null,null,null,null,null,null,null,null,null,null,null,null,null,null,null,null,null,null,null,null,null,null,null,null,null,null,null,null,null,null,null,null,null,null,null,null,null,null,null,null,null,null,null,null,null,null,null,null,null,null,null,null,null,null,null,null,null,null,null,null,null,null,null,10,"0000000102","1"]
[null,null,null,null,null,null,null,null,null,null,null,null,null,null,null,null,null,null,null,null,null,null,null,null,null,null,null,null,null,null,5,"ZPRIM_ID","ZPrimary Employee ID","X","","","0006","","","","","","","","2","03","","","","00000000","K","ZPRIM_ID","A","","","H","","","","","","00000000","0000","","0","","","","","1","1","1","0","0","","","","","","D9UV84VAX4949CRP8B6G0ZKE1","","","","","","","0000","","","",11,"D4O21W1IBUB3HEML1KWP5YGOP","DEMAGSP8VDTMCQ2Z9KSRG7UGP","Grade 5 - 7 Total","0006","","S","","L","","","","","",null,null,null,null,null,null,10,"0ORGUNIT","0MAST_CCTR","Master Cost Center","0000","X","0","0","0","","","","","0000","",null,null,null,null,null,12,"D4O21W1IBUEXWI9DNA2RI3G1L","D5PZA7P4P4FOTPZCE58K9IXA1","","2","","","","00","X","0","0","","",null,null,null,null,null,null,null,null,null,null,null,null,null,null,null,null,null,null,null,null,null,null,null,null,null,null,null,null,null,null,null,null,null,null,null,null,null,null,null,null,null,null,null,null,null,null,null,null,null,null,null,null,null,null,null,null,null,null,null,null,null,null,null,null,null,null,null,null,null,null,null,null,null,null,null,null,null,null,null,null,null,null,null,null,null,null,10,"0000000108",""]
[null,null,null,null,null,null,null,null,null,null,null,null,null,null,null,null,null,null,null,null,null,null,null,null,null,null,null,null,null,null,5,"0CNTRCTTYPE","Contract Type","X","","","0007","","","","","","","","1","03","","","","00000000","K","0CNTRCTTYPE","A","","","H","","","","","","00000000","0000","","0","","","","","1","1","1","0","0","","","","","","D9UV9459QXWEJPYDHUNPBXGQH","","","","","","","0000","","","",11,"D5PZA7P4P3ZJGP4ENT4OUJLKP","D5PZA7P4P44X91EPWL5ZBJDH5","Disabled Male Employees","0007","","S","","L","X","","","","",null,null,null,null,null,null,10,"0ORGUNIT","0PERS_AREA","Personnel Area","0000","X","1","0","0","","","","","0000","",null,null,null,null,null,12,"D4O21W1IBUEXWI9DNA2RI3G1L","D5PZA7P4P4GGICB3POO6BYBJT","","","","","","00","X","0","0","","",null,null,null,null,null,null,null,null,null,null,null,null,null,null,null,null,null,null,null,null,null,null,null,null,null,null,null,null,null,null,null,null,null,null,null,null,null,null,null,null,null,null,null,null,null,null,null,null,null,null,null,null,null,null,null,null,null,null,null,null,null,null,null,null,null,null,null,null,null,null,null,null,null,null,null,null,null,null,null,null,null,null,null,null,null,null,10,"0000009002","D4O2P4A3SH8H6WZIVSYIIRP4P"]
[null,null,null,null,null,null,null,null,null,null,null,null,null,null,null,null,null,null,null,null,null,null,null,null,null,null,null,null,null,null,5,"D5PZA7P4P3ZJGP4ENT4OUJLKP","WP Disability/Ethnicity Bandings Rev","","X","X","0001","","","","","","","U","","00","","","","","K","D5PZA7P4P3ZJGP4ENT4OUJLKP","A","","","","","","","","","00000000","0000","X","0","","","","","0","0","0","0","0","","","","","","D5PZA7P4P3ZJGP4ENT4OUJLKP","","","","","","","0000","","","",11,"D4O21W1IBUB3HEML1KWP5YGOP","D4O21W1IBUEXWI9DNA2RI3G1L","Grade 8 F/T","0007","","S","","L","","","","","",null,null,null,null,null,null,10,"0ORGUNIT","0PERS_SAREA","Personnel Subarea","0000","X","1","0","0","","","","","0000","",null,null,null,null,null,12,"D4O21W1IBUEXWI9DNA2RI3G1L","D5PZA7P4P4H86YMV183SEDPTL","","","","","","00","X","0","0","","",null,null,null,null,null,null,null,null,null,null,null,null,null,null,null,null,null,null,null,null,null,null,null,null,null,null,null,null,null,null,null,null,null,null,null,null,null,null,null,null,null,null,null,null,null,null,null,null,null,null,null,null,null,null,null,null,null,null,null,null,null,null,null,null,null,null,null,null,null,null,null,null,null,null,null,null,null,null,null,null,null,null,null,null,null,null,10,"0000009000",""]
[null,null,null,null,null,null,null,null,null,null,null,null,null,null,null,null,null,null,null,null,null,null,null,null,null,null,null,null,null,null,5,"D4O21W1IBUB3HEML1KWP5YGOP","WP Bandings","","X","Y","0001","","","","","","","U","","00","","","","","K","D4O21W1IBUB3HEML1KWP5YGOP","A","","","","","","","","","00000000","0000","","0","","","","","0","0","0","0","0","","","","","","D4O21W1IBUB3HEML1KWP5YGOP","","","","","","","0000","","","",11,"D4O21W1IBUB3HEML1KWP5YGOP","D4O21W1IBULV2377J4ZA3Y0HL","Grade 8 P/T","0008","","S","","L","","","","","",null,null,null,null,null,null,10,"0ORGUNIT","0PLANT","Plant","0000","X","0","0","0","","","","","0000","",null,null,null,null,null,12,"D4O21W1IBUEXWI9DNA2RI3G1L","D5PZAGQNPNJN6QK9OBJM8YLMH","","","","","","00","X","0","0","","",null,null,null,null,null,null,null,null,null,null,null,null,null,null,null,null,null,null,null,null,null,null,null,null,null,null,null,null,null,null,null,null,null,null,null,null,null,null,null,null,null,null,null,null,null,null,null,null,null,null,null,null,null,null,null,null,null,null,null,null,null,null,null,null,null,null,null,null,null,null,null,null,null,null,null,null,null,null,null,null,null,null,null,null,null,null,10,"0000000010",""]
[null,null,null,null,null,null,null,null,null,null,null,null,null,null,null,null,null,null,null,null,null,null,null,null,null,null,null,null,null,null,4,"0PAYRL_AREA","Payroll Area","X","","","0001","","","","","","","","0","03","","","","00000000","K","0PAYRL_AREA","A","","","H","","","","","","00000000","0000","","0","","","","","1","1","1","0","0","","","","","","D9UV84VAX459U94WMM0DOUL15","","","","","","","0000","","","",11,"D5PZA7P4P3ZJGP4ENT4OUJLKP","D5PZA7P4P45OXNQH84LLDYRQX","Disabled Female Employees","0008","","S","","L","X","","","","",null,null,null,null,null,null,10,"0ORGUNIT","0PURCH_ORG","Purchasing org.","0000","X","0","0","0","","","","","0000","",null,null,null,null,null,12,"D4O21W1IBUFPL4L4YTIDKIUBD","D5PZA7P4P40B5BG5ZCKAWYZUH","","","","","","00","X","0","0","","",null,null,null,null,null,null,null,null,null,null,null,null,null,null,null,null,null,null,null,null,null,null,null,null,null,null,null,null,null,null,null,null,null,null,null,null,null,null,null,null,null,null,null,null,null,null,null,null,null,null,null,null,null,null,null,null,null,null,null,null,null,null,null,null,null,null,null,null,null,null,null,null,null,null,null,null,null,null,null,null,null,null,null,null,null,null,10,"0000000021",""]
[null,null,null,null,null,null,null,null,null,null,null,null,null,null,null,null,null,null,null,null,null,null,null,null,null,null,null,null,null,null,4,"ZPERSAREA","ZPersonal Area","X","","","0002","","","","","","","","2","03","","","","00000000","K","ZPERSAREA","A","","","H","","","","","","00000000","0000","","0","","","","","1","1","1","0","0","","","","","","D9UV84VAX461IVGNY5FZR9ZAX","","","","","","","0000","","","",11,"D4O21W1IBUB3HEML1KWP5YGOP","D4O21W1IBV18QHQDXXNJGHXX5","Grade 8 Total","0009","","S","","L","","","","","",null,null,null,null,null,null,10,"0ORGUNIT","0PUR_GROUP","Purchasing group","0000","X","0","0","0","","","","","0000","",null,null,null,null,null,12,"D4O21W1IBUFPL4L4YTIDKIUBD","D5PZA7P4P412TXRXAVZWZEE49","","","","","","00","X","0","0","","",null,null,null,null,null,null,null,null,null,null,null,null,null,null,null,null,null,null,null,null,null,null,null,null,null,null,null,null,null,null,null,null,null,null,null,null,null,null,null,null,null,null,null,null,null,null,null,null,null,null,null,null,null,null,null,null,null,null,null,null,null,null,null,null,null,null,null,null,null,null,null,null,null,null,null,null,null,null,null,null,null,null,null,null,null,null,10,"0000000022",""]
[null,null,null,null,null,null,null,null,null,null,null,null,null,null,null,null,null,null,null,null,null,null,null,null,null,null,null,null,null,null,4,"0ORGUNIT","Organizational Unit","X","","","0003","","Chief Executive Srv, Chief Executive Organisation Structu...","","","","","","1","03","X","ORGEH","000","20150930","K","0ORGUNIT","A","","","H","0ORGUNIT","A","","","","00000000","0000","","0","","X","","2","1","1","1","0","0","","","","","","D9UV84VAX46T7HSF9OVLTPDKP","","","","","","","0000","","","",11,"D5PZA7P4P3ZJGP4ENT4OUJLKP","D5PZA7P4P46GMA28JO17GE60P","Total Disabled Employees","0009","","F","","L","","","","","",null,null,null,null,null,null,10,"0ORGUNIT","0SALESORG","Sales Organization","0000","X","0","0","0","","","","","0000","",null,null,null,null,null,12,"D4O21W1IBUFPL4L4YTIDKIUBD","D5PZA7P4P41UIK3OMFFJ1TSE1","","0","","","","00","X","0","0","","",null,null,null,null,null,null,null,null,null,null,null,null,null,null,null,null,null,null,null,null,null,null,null,null,null,null,null,null,null,null,null,null,null,null,null,null,null,null,null,null,null,null,null,null,null,null,null,null,null,null,null,null,null,null,null,null,null,null,null,null,null,null,null,null,null,null,null,null,null,null,null,null,null,null,null,null,null,null,null,null,null,null,null,null,null,null,10,"0000000023",""]
[null,null,null,null,null,null,null,null,null,null,null,null,null,null,null,null,null,null,null,null,null,null,null,null,null,null,null,null,null,null,4,"0PERS_SAREA","Personnel Subarea","X","","","0004","","","","","","","U","1","03","","","","00000000","K","0PERS_SAREA","A","","","H","","","","","","00000000","0000","","0","","","","","1","1","1","0","0","","","","","","D9UV84VAX47KW446L8B7W4RUH","","","","","","","0000","","","",11,"D4O21W1IBUB3HEML1KWP5YGOP","D4O21W1IBUFPL4L4YTIDKIUBD","ACZ Grade 8 F/T","0010","","S","","L","","","","","",null,null,null,null,null,null,10,"0ORGUNIT","0SALES_GRP","Sales group","0000","X","0","0","0","","","","","0000","",null,null,null,null,null,12,"D4O21W1IBUFPL4L4YTIDKIUBD","D5PZA7P4P42M76FFXYV5496NT","","0","","","","00","X","0","0","","",null,null,null,null,null,null,null,null,null,null,null,null,null,null,null,null,null,null,null,null,null,null,null,null,null,null,null,null,null,null,null,null,null,null,null,null,null,null,null,null,null,null,null,null,null,null,null,null,null,null,null,null,null,null,null,null,null,null,null,null,null,null,null,null,null,null,null,null,null,null,null,null,null,null,null,null,null,null,null,null,null,null,null,null,null,null,10,"0000000030",""]
[null,null,null,null,null,null,null,null,null,null,null,null,null,null,null,null,null,null,null,null,null,null,null,null,null,null,null,null,null,null,4,"ZTEILK","Checkbox for Part-Ti","X","","","0005","","","","","","","","1","03","","","","00000000","K","ZTEILK","A","","","H","","","","","","00000000","0000","","0","","","","","1","1","1","0","0","","","","","","D9UV84VAX48CKQFXWRQTYK649","","","","","","","0000","","","",11,"D5PZA7P4P3ZJGP4ENT4OUJLKP","D5PZA7P4P478AWDZV7GTITKAH","Total Disabled Employees %","0010","","F","","L","","","","","",null,null,null,null,null,null,10,"0ORGUNIT","0SALES_OFF","Sales Office","0000","X","0","0","0","","","","","0000","",null,null,null,null,null,12,"D4O21W1IBUFPL4L4YTIDKIUBD","D5PZA7P4P43DVSR79IAR6OKXL","","0","","","","00","X","0","0","","",null,null,null,null,null,null,null,null,null,null,null,null,null,null,null,null,null,null,null,null,null,null,null,null,null,null,null,null,null,null,null,null,null,null,null,null,null,null,null,null,null,null,null,null,null,null,null,null,null,null,null,null,null,null,null,null,null,null,null,null,null,null,null,null,null,null,null,null,null,null,null,null,null,null,null,null,null,null,null,null,null,null,null,null,null,null,10,"0000000040",""]
[null,null,null,null,null,null,null,null,null,null,null,null,null,null,null,null,null,null,null,null,null,null,null,null,null,null,null,null,null,null,4,"ZPRIM_ID","ZPrimary Employee ID","X","","","0006","","","","","","","","2","03","","","","00000000","K","ZPRIM_ID","A","","","H","","","","","","00000000","0000","","0","","","","","1","1","1","0","0","","","","","","D9UV84VAX4949CRP8B6G0ZKE1","","","","","","","0000","","","",11,"D5PZA7P4P3ZJGP4ENT4OUJLKP","D5PZAGQNPNJN6QK9OBJM8YLMH","Not Disclosed","0011","","S","","L","X","","","","",null,null,null,null,null,null,10,"0CNTRCTTYPE","0CNTRCTISFT","Fixed-Term Contract","0000","X","2","0","0","","","","","0000","",null,null,null,null,null,12,"D4O21W1IBUFPL4L4YTIDKIUBD","D5PZA7P4P445KF2YL1QD93Z7D","","0","","","","00","X","0","0","","",null,null,null,null,null,null,null,null,null,null,null,null,null,null,null,null,null,null,null,null,null,null,null,null,null,null,null,null,null,null,null,null,null,null,null,null,null,null,null,null,null,null,null,null,null,null,null,null,null,null,null,null,null,null,null,null,null,null,null,null,null,null,null,null,null,null,null,null,null,null,null,null,null,null,null,null,null,null,null,null,null,null,null,null,null,null,10,"0000000041",""]
[null,null,null,null,null,null,null,null,null,null,null,null,null,null,null,null,null,null,null,null,null,null,null,null,null,null,null,null,null,null,4,"0CNTRCTTYPE","Contract Type","X","","","0007","","","","","","","","1","03","","","","00000000","K","0CNTRCTTYPE","A","","","H","","","","","","00000000","0000","","0","","","","","1","1","1","0","0","","","","","","D9UV9459QXWEJPYDHUNPBXGQH","","","","","","","0000","","","",11,"D4O21W1IBUB3HEML1KWP5YGOP","D4O21W1IBUMMQPIYUOEW6DERD","ACZ Grade 8 P/T","0011","","S","","L","","","","","",null,null,null,null,null,null,9,"0ORGUNIT","0BBPPURGRPX","Ind.Purchasing Group","0000","X","2","0","0","","","","","0000","",null,null,null,null,null,12,"D4O21W1IBUFPL4L4YTIDKIUBD","D5PZA7P4P44X91EPWL5ZBJDH5","","","","","","00","X","0","0","","",null,null,null,null,null,null,null,null,null,null,null,null,null,null,null,null,null,null,null,null,null,null,null,null,null,null,null,null,null,null,null,null,null,null,null,null,null,null,null,null,null,null,null,null,null,null,null,null,null,null,null,null,null,null,null,null,null,null,null,null,null,null,null,null,null,null,null,null,null,null,null,null,null,null,null,null,null,null,null,null,null,null,null,null,null,null,10,"0000000042","0"]
[null,null,null,null,null,null,null,null,null,null,null,null,null,null,null,null,null,null,null,null,null,null,null,null,null,null,null,null,null,null,4,"D5PZA7P4P3ZJGP4ENT4OUJLKP","WP Disability/Ethnicity Bandings Rev","","X","X","0001","","","","","","","U","","00","","","","","K","D5PZA7P4P3ZJGP4ENT4OUJLKP","A","","","","","","","","","00000000","0000","X","0","","","","","0","0","0","0","0","","","","","","D5PZA7P4P3ZJGP4ENT4OUJLKP","","","","","","","0000","","","",11,"D4O21W1IBUB3HEML1KWP5YGOP","D4O21W1IBV0H1VEMME7XE2JND","ACZ Grade 8 Total","0012","","S","","L","","","","","",null,null,null,null,null,null,9,"0ORGUNIT","0BBPPURORGX","Ind. Purchasing Org.","0000","X","2","0","0","","","","","0000","",null,null,null,null,null,12,"D4O21W1IBUFPL4L4YTIDKIUBD","D5PZA7P4P45OXNQH84LLDYRQX","","","","","","00","X","0","0","","",null,null,null,null,null,null,null,null,null,null,null,null,null,null,null,null,null,null,null,null,null,null,null,null,null,null,null,null,null,null,null,null,null,null,null,null,null,null,null,null,null,null,null,null,null,null,null,null,null,null,null,null,null,null,null,null,null,null,null,null,null,null,null,null,null,null,null,null,null,null,null,null,null,null,null,null,null,null,null,null,null,null,null,null,null,null,10,"0000000043","0"]
[null,null,null,null,null,null,null,null,null,null,null,null,null,null,null,null,null,null,null,null,null,null,null,null,null,null,null,null,null,null,4,"D4O21W1IBUB3HEML1KWP5YGOP","WP Bandings","","X","Y","0001","","","","","","","U","","00","","","","","K","D4O21W1IBUB3HEML1KWP5YGOP","A","","","","","","","","","00000000","0000","","0","","","","","0","0","0","0","0","","","","","","D4O21W1IBUB3HEML1KWP5YGOP","","","","","","","0000","","","",11,"D5PZA7P4P3ZJGP4ENT4OUJLKP","D5PZA7P4P48RO51IIAC1NOCU1","Total White Male Non Disabled Employees","0012","","S","","L","X","","","","",null,null,null,null,null,null,9,"0ORGUNIT","0BBP_BUYID","Buyer ID","0000","X","5","0","0","","","","","0000","",null,null,null,null,null,12,"D4O21W1IBUFPL4L4YTIDKIUBD","D5PZA7P4P46GMA28JO17GE60P","","0","","","","00","X","0","0","","",null,null,null,null,null,null,null,null,null,null,null,null,null,null,null,null,null,null,null,null,null,null,null,null,null,null,null,null,null,null,null,null,null,null,null,null,null,null,null,null,null,null,null,null,null,null,null,null,null,null,null,null,null,null,null,null,null,null,null,null,null,null,null,null,null,null,null,null,null,null,null,null,null,null,null,null,null,null,null,null,null,null,null,null,null,null,10,"0000000109","0"]
[null,null,null,null,null,null,null,null,null,null,null,null,null,null,null,null,null,null,null,null,null,null,null,null,null,null,null,null,null,null,null,null,null,null,null,null,null,null,null,null,null,null,null,null,null,null,null,null,null,null,null,null,null,null,null,null,null,null,null,null,null,null,null,null,null,null,null,null,null,null,null,null,null,null,null,null,null,null,null,null,null,null,null,null,null,null,null,null,null,null,11,"D4O21W1IBUB3HEML1KWP5YGOP","D4O21W1IBUH8YD8NLWDLPDMUX","Grade 9 - 15 F/T","0013","","S","","L","","","","","",null,null,null,null,null,null,9,"0ORGUNIT","0BBP_ISCOMP","Organizational Unit is Company","0000","X","1","0","0","","","","","0000","",null,null,null,null,null,12,"D4O21W1IBUFPL4L4YTIDKIUBD","D5PZA7P4P478AWDZV7GTITKAH","","2","","","","00","X","0","0","","",null,null,null,null,null,null,null,null,null,null,null,null,null,null,null,null,null,null,null,null,null,null,null,null,null,null,null,null,null,null,null,null,null,null,null,null,null,null,null,null,null,null,null,null,null,null,null,null,null,null,null,null,null,null,null,null,null,null,null,null,null,null,null,null,null,null,null,null,null,null,null,null,null,null,null,null,null,null,null,null,null,null,null,null,null,null,10,"0000000113",""]
[null,null,null,null,null,null,null,null,null,null,null,null,null,null,null,null,null,null,null,null,null,null,null,null,null,null,null,null,null,null,null,null,null,null,null,null,null,null,null,null,null,null,null,null,null,null,null,null,null,null,null,null,null,null,null,null,null,null,null,null,null,null,null,null,null,null,null,null,null,null,null,null,null,null,null,null,null,null,null,null,null,null,null,null,null,null,null,null,null,null,11,"D5PZA7P4P3ZJGP4ENT4OUJLKP","D5PZA7P4P49JCRD9TTRNQ3R3T","Total White Female Non Disabled Employees","0013","","S","","L","X","","","","",null,null,null,null,null,null,9,"0ORGUNIT","0BUS_AREA","Business area","0000","X","0","0","0","","","","","0000","",null,null,null,null,null,12,"D4O21W1IBUFPL4L4YTIDKIUBD","D5PZA7P4P47ZZIPR6QWFL8YK9","","","","","","00","X","0","0","","",null,null,null,null,null,null,null,null,null,null,null,null,null,null,null,null,null,null,null,null,null,null,null,null,null,null,null,null,null,null,null,null,null,null,null,null,null,null,null,null,null,null,null,null,null,null,null,null,null,null,null,null,null,null,null,null,null,null,null,null,null,null,null,null,null,null,null,null,null,null,null,null,null,null,null,null,null,null,null,null,null,null,null,null,null,null,10,"0000000120",""]
[null,null,null,null,null,null,null,null,null,null,null,null,null,null,null,null,null,null,null,null,null,null,null,null,null,null,null,null,null,null,null,null,null,null,null,null,null,null,null,null,null,null,null,null,null,null,null,null,null,null,null,null,null,null,null,null,null,null,null,null,null,null,null,null,null,null,null,null,null,null,null,null,null,null,null,null,null,null,null,null,null,null,null,null,null,null,null,null,null,null,11,"D5PZA7P4P3ZJGP4ENT4OUJLKP","D5PZA7P4P4AB1DP15D79SJ5DL","Total White Non Disabled Employees","0014","","F","","L","","","","","",null,null,null,null,null,null,9,"0ORGUNIT","0COMP_CODE","Company code","0000","X","0","0","0","","","","","0000","",null,null,null,null,null,12,"D4O21W1IBUFPL4L4YTIDKIUBD","D5PZA7P4P48RO51IIAC1NOCU1","","","","","","00","X","0","0","","",null,null,null,null,null,null,null,null,null,null,null,null,null,null,null,null,null,null,null,null,null,null,null,null,null,null,null,null,null,null,null,null,null,null,null,null,null,null,null,null,null,null,null,null,null,null,null,null,null,null,null,null,null,null,null,null,null,null,null,null,null,null,null,null,null,null,null,null,null,null,null,null,null,null,null,null,null,null,null,null,null,null,null,null,null,null,10,"0000000121",""]
[null,null,null,null,null,null,null,null,null,null,null,null,null,null,null,null,null,null,null,null,null,null,null,null,null,null,null,null,null,null,null,null,null,null,null,null,null,null,null,null,null,null,null,null,null,null,null,null,null,null,null,null,null,null,null,null,null,null,null,null,null,null,null,null,null,null,null,null,null,null,null,null,null,null,null,null,null,null,null,null,null,null,null,null,null,null,null,null,null,null,11,"D4O21W1IBUB3HEML1KWP5YGOP","DEN03PYIT5FSSAA2U7ST53H15","Grade 9 - 15 P/T","0014","","S","","L","","","","","",null,null,null,null,null,null,9,"0ORGUNIT","0CO_MST_AR","Controlling Area of Master Cost Center","0000","X","0","0","0","","","","","0000","",null,null,null,null,null,12,"D4O21W1IBUFPL4L4YTIDKIUBD","D5PZA7P4P49JCRD9TTRNQ3R3T","","","","","","00","X","0","0","","",null,null,null,null,null,null,null,null,null,null,null,null,null,null,null,null,null,null,null,null,null,null,null,null,null,null,null,null,null,null,null,null,null,null,null,null,null,null,null,null,null,null,null,null,null,null,null,null,null,null,null,null,null,null,null,null,null,null,null,null,null,null,null,null,null,null,null,null,null,null,null,null,null,null,null,null,null,null,null,null,null,null,null,null,null,null,10,"0000010001","D9UVC1KT6I8278NY7VY8T21O9"]
[null,null,null,null,null,null,null,null,null,null,null,null,null,null,null,null,null,null,null,null,null,null,null,null,null,null,null,null,null,null,null,null,null,null,null,null,null,null,null,null,null,null,null,null,null,null,null,null,null,null,null,null,null,null,null,null,null,null,null,null,null,null,null,null,null,null,null,null,null,null,null,null,null,null,null,null,null,null,null,null,null,null,null,null,null,null,null,null,null,null,11,"D5PZA7P4P3ZJGP4ENT4OUJLKP","D5PZA7P4P4B2Q00SGWMVUYJND","Total Ethnic Male Non Disabled Employees","0015","","S","","L","X","","","","",null,null,null,null,null,null,9,"0ORGUNIT","0CRMSALGRPX","Sls Group: Indicator","0000","X","2","0","0","","","","","0000","",null,null,null,null,null,12,"D4O21W1IBUFPL4L4YTIDKIUBD","D5PZA7P4P4AB1DP15D79SJ5DL","","0","","","","00","X","0","0","","",null,null,null,null,null,null,null,null,null,null,null,null,null,null,null,null,null,null,null,null,null,null,null,null,null,null,null,null,null,null,null,null,null,null,null,null,null,null,null,null,null,null,null,null,null,null,null,null,null,null,null,null,null,null,null,null,null,null,null,null,null,null,null,null,null,null,null,null,null,null,null,null,null,null,null,null,null,null,null,null,null,null,null,null,null,null,10,"0000010002","D9UVC1KT6HWIXXRKESG1SN3LL"]
[null,null,null,null,null,null,null,null,null,null,null,null,null,null,null,null,null,null,null,null,null,null,null,null,null,null,null,null,null,null,null,null,null,null,null,null,null,null,null,null,null,null,null,null,null,null,null,null,null,null,null,null,null,null,null,null,null,null,null,null,null,null,null,null,null,null,null,null,null,null,null,null,null,null,null,null,null,null,null,null,null,null,null,null,null,null,null,null,null,null,11,"D4O21W1IBUB3HEML1KWP5YGOP","D4O21W1IBUO63Y6HHRA4B87AX","Grade 9 - 15 Total","0015","","S","","L","","","","","",null,null,null,null,null,null,9,"0ORGUNIT","0CRMSALOFFX","Sls Office:Indicator","0000","X","2","0","0","","","","","0000","",null,null,null,null,null,12,"D4O21W1IBUFPL4L4YTIDKIUBD","D5PZA7P4P4B2Q00SGWMVUYJND","","0","","","","00","X","0","0","","",null,null,null,null,null,null,null,null,null,null,null,null,null,null,null,null,null,null,null,null,null,null,null,null,null,null,null,null,null,null,null,null,null,null,null,null,null,null,null,null,null,null,null,null,null,null,null,null,null,null,null,null,null,null,null,null,null,null,null,null,null,null,null,null,null,null,null,null,null,null,null,null,null,null,null,null,null,null,null,null,null,null,null,null,null,null,10,"0000000105",""]
[null,null,null,null,null,null,null,null,null,null,null,null,null,null,null,null,null,null,null,null,null,null,null,null,null,null,null,null,null,null,null,null,null,null,null,null,null,null,null,null,null,null,null,null,null,null,null,null,null,null,null,null,null,null,null,null,null,null,null,null,null,null,null,null,null,null,null,null,null,null,null,null,null,null,null,null,null,null,null,null,null,null,null,null,null,null,null,null,null,null,11,"D5PZA7P4P3ZJGP4ENT4OUJLKP","D5PZA7P4P4BUEMCJSG2HXDXX5","Total Ethnic Female Non Disabled Employees","0016","","S","","L","X","","","","",null,null,null,null,null,null,9,"0ORGUNIT","0CRMSALORGX","Sales Org. Indicator","0000","X","2","0","0","","","","","0000","",null,null,null,null,null,12,"D4O21W1IBUFPL4L4YTIDKIUBD","D5PZA7P4P4BUEMCJSG2HXDXX5","","0","","","","00","X","0","0","","",null,null,null,null,null,null,null,null,null,null,null,null,null,null,null,null,null,null,null,null,null,null,null,null,null,null,null,null,null,null,null,null,null,null,null,null,null,null,null,null,null,null,null,null,null,null,null,null,null,null,null,null,null,null,null,null,null,null,null,null,null,null,null,null,null,null,null,null,null,null,null,null,null,null,null,null,null,null,null,null,null,null,null,null,null,null,10,"0000000106",""]
[null,null,null,null,null,null,null,null,null,null,null,null,null,null,null,null,null,null,null,null,null,null,null,null,null,null,null,null,null,null,null,null,null,null,null,null,null,null,null,null,null,null,null,null,null,null,null,null,null,null,null,null,null,null,null,null,null,null,null,null,null,null,null,null,null,null,null,null,null,null,null,null,null,null,null,null,null,null,null,null,null,null,null,null,null,null,null,null,null,null,11,"D4O21W1IBUB3HEML1KWP5YGOP","D4O21W1IBUGH9QWWACXZMY8L5","ACZ Grade 9 - 15 F/T","0016","","S","","L","","","","","",null,null,null,null,null,null,9,"0ORGUNIT","0CRMSRVTGRP","Ex. CRM Service Org.","0000","X","1","0","0","","","","","0000","",null,null,null,null,null,12,"D4O21W1IBUFPL4L4YTIDKIUBD","D5PZA7P4P4CM38OB3ZI3ZTC6X","","0","","","","00","X","0","0","","",null,null,null,null,null,null,null,null,null,null,null,null,null,null,null,null,null,null,null,null,null,null,null,null,null,null,null,null,null,null,null,null,null,null,null,null,null,null,null,null,null,null,null,null,null,null,null,null,null,null,null,null,null,null,null,null,null,null,null,null,null,null,null,null,null,null,null,null,null,null,null,null,null,null,null,null,null,null,null,null,null,null,null,null,null,null,10,"0000000112","0"]
[null,null,null,null,null,null,null,null,null,null,null,null,null,null,null,null,null,null,null,null,null,null,null,null,null,null,null,null,null,null,null,null,null,null,null,null,null,null,null,null,null,null,null,null,null,null,null,null,null,null,null,null,null,null,null,null,null,null,null,null,null,null,null,null,null,null,null,null,null,null,null,null,null,null,null,null,null,null,null,null,null,null,null,null,null,null,null,null,null,null,11,"D4O21W1IBUB3HEML1KWP5YGOP","D4O21W1IBUNEFBUQ67UI8ST15","ACZ Grade 9 - 15 P/T","0017","","S","","L","","","","","",null,null,null,null,null,null,9,"0ORGUNIT","0CRM_SALGRP","CRM Sales Group","0000","X","1","0","0","","","","","0000","",null,null,null,null,null,12,"D4O21W1IBUFPL4L4YTIDKIUBD","D5PZA7P4P4DDRV02FIXQ28QGP","","","","","","00","X","0","0","","",null,null,null,null,null,null,null,null,null,null,null,null,null,null,null,null,null,null,null,null,null,null,null,null,null,null,null,null,null,null,null,null,null,null,null,null,null,null,null,null,null,null,null,null,null,null,null,null,null,null,null,null,null,null,null,null,null,null,null,null,null,null,null,null,null,null,null,null,null,null,null,null,null,null,null,null,null,null,null,null,null,null,null,null,null,null,10,"0000000200","X"]
[null,null,null,null,null,null,null,null,null,null,null,null,null,null,null,null,null,null,null,null,null,null,null,null,null,null,null,null,null,null,null,null,null,null,null,null,null,null,null,null,null,null,null,null,null,null,null,null,null,null,null,null,null,null,null,null,null,null,null,null,null,null,null,null,null,null,null,null,null,null,null,null,null,null,null,null,null,null,null,null,null,null,null,null,null,null,null,null,null,null,11,"D5PZA7P4P3ZJGP4ENT4OUJLKP","D5PZA7P4P4CM38OB3ZI3ZTC6X","Total Ethnic Non Disabled Employees","0017","","F","","L","","","","","",null,null,null,null,null,null,9,"0ORGUNIT","0CRM_SALOFF","CRM Sales Office","0000","X","1","0","0","","","","","0000","",null,null,null,null,null,12,"D4O21W1IBUFPL4L4YTIDKIUBD","D5PZA7P4P4E5GHBTR2DC4O4QH","","","","","","00","X","0","0","","",null,null,null,null,null,null,null,null,null,null,null,null,null,null,null,null,null,null,null,null,null,null,null,null,null,null,null,null,null,null,null,null,null,null,null,null,null,null,null,null,null,null,null,null,null,null,null,null,null,null,null,null,null,null,null,null,null,null,null,null,null,null,null,null,null,null,null,null,null,null,null,null,null,null,null,null,null,null,null,null,null,null,null,null,null,null,10,"0000004000","X"]
[null,null,null,null,null,null,null,null,null,null,null,null,null,null,null,null,null,null,null,null,null,null,null,null,null,null,null,null,null,null,null,null,null,null,null,null,null,null,null,null,null,null,null,null,null,null,null,null,null,null,null,null,null,null,null,null,null,null,null,null,null,null,null,null,null,null,null,null,null,null,null,null,null,null,null,null,null,null,null,null,null,null,null,null,null,null,null,null,null,null,11,"D5PZA7P4P3ZJGP4ENT4OUJLKP","D5PZA7P4P4DDRV02FIXQ28QGP","Total Male Non Disabled Employees","0018","","S","","L","X","","","","",null,null,null,null,null,null,9,"0ORGUNIT","0CRM_SALORG","CRM Sales Org.","0000","X","1","0","0","","","","","0000","",null,null,null,null,null,12,"D4O21W1IBUFPL4L4YTIDKIUBD","D5PZA7P4P4EX53NL2LSY73J09","","0","","","","00","X","0","0","","",null,null,null,null,null,null,null,null,null,null,null,null,null,null,null,null,null,null,null,null,null,null,null,null,null,null,null,null,null,null,null,null,null,null,null,null,null,null,null,null,null,null,null,null,null,null,null,null,null,null,null,null,null,null,null,null,null,null,null,null,null,null,null,null,null,null,null,null,null,null,null,null,null,null,null,null,null,null,null,null,null,null,null,null,null,null,10,"0000009001","Workforce Profile Disability Teach Excl Cas & Ses"]
[null,null,null,null,null,null,null,null,null,null,null,null,null,null,null,null,null,null,null,null,null,null,null,null,null,null,null,null,null,null,null,null,null,null,null,null,null,null,null,null,null,null,null,null,null,null,null,null,null,null,null,null,null,null,null,null,null,null,null,null,null,null,null,null,null,null,null,null,null,null,null,null,null,null,null,null,null,null,null,null,null,null,null,null,null,null,null,null,null,null,11,"D4O21W1IBUB3HEML1KWP5YGOP","DEN04FDC1K04NBJW47LA7T915","ACZ Grade 9 - 15 Total","0018","","S","","L","","","","","",null,null,null,null,null,null,9,"0ORGUNIT","0CRM_SRVORG","Service Org. CRM","0000","X","1","0","0","","","","","0000","",null,null,null,null,null,12,"D4O21W1IBUFPL4L4YTIDKIUBD","D5PZA7P4P4FOTPZCE58K9IXA1","","2","","","","00","X","0","0","","",null,null,null,null,null,null,null,null,null,null,null,null,null,null,null,null,null,null,null,null,null,null,null,null,null,null,null,null,null,null,null,null,null,null,null,null,null,null,null,null,null,null,null,null,null,null,null,null,null,null,null,null,null,null,null,null,null,null,null,null,null,null,null,null,null,null,null,null,null,null,null,null,null,null,null,null,null,null,null,null,null,null,null,null,null,null,10,"0000000114","1"]
[null,null,null,null,null,null,null,null,null,null,null,null,null,null,null,null,null,null,null,null,null,null,null,null,null,null,null,null,null,null,null,null,null,null,null,null,null,null,null,null,null,null,null,null,null,null,null,null,null,null,null,null,null,null,null,null,null,null,null,null,null,null,null,null,null,null,null,null,null,null,null,null,null,null,null,null,null,null,null,null,null,null,null,null,null,null,null,null,null,null,11,"D5PZA7P4P3ZJGP4ENT4OUJLKP","D5PZA7P4P4E5GHBTR2DC4O4QH","Total Female Non Disabled Employees","0019","","S","","L","X","","","","",null,null,null,null,null,null,9,"0ORGUNIT","0LOGSYS","Source System","0000","X","1","0","0","","","","","0000","",null,null,null,null,null,12,"D4O21W1IBUFPL4L4YTIDKIUBD","D5PZA7P4P4GGICB3POO6BYBJT","","","","","","00","X","0","0","","",null,null,null,null,null,null,null,null,null,null,null,null,null,null,null,null,null,null,null,null,null,null,null,null,null,null,null,null,null,null,null,null,null,null,null,null,null,null,null,null,null,null,null,null,null,null,null,null,null,null,null,null,null,null,null,null,null,null,null,null,null,null,null,null,null,null,null,null,null,null,null,null,null,null,null,null,null,null,null,null,null,null,null,null,null,null,9,"0000000107","D9UV84VAX3YCOO72QR3V300L5"]
[null,null,null,null,null,null,null,null,null,null,null,null,null,null,null,null,null,null,null,null,null,null,null,null,null,null,null,null,null,null,null,null,null,null,null,null,null,null,null,null,null,null,null,null,null,null,null,null,null,null,null,null,null,null,null,null,null,null,null,null,null,null,null,null,null,null,null,null,null,null,null,null,null,null,null,null,null,null,null,null,null,null,null,null,null,null,null,null,null,null,11,"D4O21W1IBUB3HEML1KWP5YGOP","D4O21W1IBUWMMRRU0P1V1XKAH","Other (Not Migrated) F/T","0019","","F","","L","","","","","",null,null,null,null,null,null,9,"0ORGUNIT","0MAST_CCTR","Master Cost Center","0000","X","0","0","0","","","","","0000","",null,null,null,null,null,12,"D4O21W1IBUFPL4L4YTIDKIUBD","D5PZA7P4P4H86YMV183SEDPTL","","","","","","00","X","0","0","","",null,null,null,null,null,null,null,null,null,null,null,null,null,null,null,null,null,null,null,null,null,null,null,null,null,null,null,null,null,null,null,null,null,null,null,null,null,null,null,null,null,null,null,null,null,null,null,null,null,null,null,null,null,null,null,null,null,null,null,null,null,null,null,null,null,null,null,null,null,null,null,null,null,null,null,null,null,null,null,null,null,null,null,null,null,null,9,"0000000100","X"]
[null,null,null,null,null,null,null,null,null,null,null,null,null,null,null,null,null,null,null,null,null,null,null,null,null,null,null,null,null,null,null,null,null,null,null,null,null,null,null,null,null,null,null,null,null,null,null,null,null,null,null,null,null,null,null,null,null,null,null,null,null,null,null,null,null,null,null,null,null,null,null,null,null,null,null,null,null,null,null,null,null,null,null,null,null,null,null,null,null,null,11,"D5PZA7P4P3ZJGP4ENT4OUJLKP","D5PZA7P4P4EX53NL2LSY73J09","Total Non Disabled Employees","0020","","F","","L","","","","","",null,null,null,null,null,null,9,"0ORGUNIT","0PERS_AREA","Personnel Area","0000","X","1","0","0","","","","","0000","",null,null,null,null,null,12,"D4O21W1IBUFPL4L4YTIDKIUBD","D5PZAGQNPNJN6QK9OBJM8YLMH","","","","","","00","X","0","0","","",null,null,null,null,null,null,null,null,null,null,null,null,null,null,null,null,null,null,null,null,null,null,null,null,null,null,null,null,null,null,null,null,null,null,null,null,null,null,null,null,null,null,null,null,null,null,null,null,null,null,null,null,null,null,null,null,null,null,null,null,null,null,null,null,null,null,null,null,null,null,null,null,null,null,null,null,null,null,null,null,null,null,null,null,null,null,9,"0000000101",""]
[null,null,null,null,null,null,null,null,null,null,null,null,null,null,null,null,null,null,null,null,null,null,null,null,null,null,null,null,null,null,null,null,null,null,null,null,null,null,null,null,null,null,null,null,null,null,null,null,null,null,null,null,null,null,null,null,null,null,null,null,null,null,null,null,null,null,null,null,null,null,null,null,null,null,null,null,null,null,null,null,null,null,null,null,null,null,null,null,null,null,11,"D4O21W1IBUB3HEML1KWP5YGOP","DEN07Y1DTSNAWTLQYCBLILED5","Other (Not Migrated) P/T","0020","","F","","L","","","","","",null,null,null,null,null,null,9,"0ORGUNIT","0PERS_SAREA","Personnel Subarea","0000","X","1","0","0","","","","","0000","",null,null,null,null,null,12,"D4O21W1IBUGH9QWWACXZMY8L5","D5PZA7P4P40B5BG5ZCKAWYZUH","","","","","","00","X","0","0","","",null,null,null,null,null,null,null,null,null,null,null,null,null,null,null,null,null,null,null,null,null,null,null,null,null,null,null,null,null,null,null,null,null,null,null,null,null,null,null,null,null,null,null,null,null,null,null,null,null,null,null,null,null,null,null,null,null,null,null,null,null,null,null,null,null,null,null,null,null,null,null,null,null,null,null,null,null,null,null,null,null,null,null,null,null,null,9,"0000000104","1"]
[null,null,null,null,null,null,null,null,null,null,null,null,null,null,null,null,null,null,null,null,null,null,null,null,null,null,null,null,null,null,null,null,null,null,null,null,null,null,null,null,null,null,null,null,null,null,null,null,null,null,null,null,null,null,null,null,null,null,null,null,null,null,null,null,null,null,null,null,null,null,null,null,null,null,null,null,null,null,null,null,null,null,null,null,null,null,null,null,null,null,11,"D5PZA7P4P3ZJGP4ENT4OUJLKP","D5PZA7P4P4FOTPZCE58K9IXA1","Total Non Disabled Employees %","0021","","F","","L","","","","","",null,null,null,null,null,null,9,"0ORGUNIT","0PLANT","Plant","0000","X","0","0","0","","","","","0000","",null,null,null,null,null,12,"D4O21W1IBUGH9QWWACXZMY8L5","D5PZA7P4P412TXRXAVZWZEE49","","","","","","00","X","0","0","","",null,null,null,null,null,null,null,null,null,null,null,null,null,null,null,null,null,null,null,null,null,null,null,null,null,null,null,null,null,null,null,null,null,null,null,null,null,null,null,null,null,null,null,null,null,null,null,null,null,null,null,null,null,null,null,null,null,null,null,null,null,null,null,null,null,null,null,null,null,null,null,null,null,null,null,null,null,null,null,null,null,null,null,null,null,null,9,"0000000103",""]
[null,null,null,null,null,null,null,null,null,null,null,null,null,null,null,null,null,null,null,null,null,null,null,null,null,null,null,null,null,null,null,null,null,null,null,null,null,null,null,null,null,null,null,null,null,null,null,null,null,null,null,null,null,null,null,null,null,null,null,null,null,null,null,null,null,null,null,null,null,null,null,null,null,null,null,null,null,null,null,null,null,null,null,null,null,null,null,null,null,null,11,"D4O21W1IBUB3HEML1KWP5YGOP","DEN07Y1DTSPLYOL0WYMFPVL6H","Other (Not Migrated) Total","0021","","F","","L","","","","","",null,null,null,null,null,null,9,"0ORGUNIT","0PURCH_ORG","Purchasing org.","0000","X","0","0","0","","","","","0000","",null,null,null,null,null,12,"D4O21W1IBUGH9QWWACXZMY8L5","D5PZA7P4P41UIK3OMFFJ1TSE1","","0","","","","00","X","0","0","","",null,null,null,null,null,null,null,null,null,null,null,null,null,null,null,null,null,null,null,null,null,null,null,null,null,null,null,null,null,null,null,null,null,null,null,null,null,null,null,null,null,null,null,null,null,null,null,null,null,null,null,null,null,null,null,null,null,null,null,null,null,null,null,null,null,null,null,null,null,null,null,null,null,null,null,null,null,null,null,null,null,null,null,null,null,null,9,"0000000102","1"]
[null,null,null,null,null,null,null,null,null,null,null,null,null,null,null,null,null,null,null,null,null,null,null,null,null,null,null,null,null,null,null,null,null,null,null,null,null,null,null,null,null,null,null,null,null,null,null,null,null,null,null,null,null,null,null,null,null,null,null,null,null,null,null,null,null,null,null,null,null,null,null,null,null,null,null,null,null,null,null,null,null,null,null,null,null,null,null,null,null,null,11,"D5PZA7P4P3ZJGP4ENT4OUJLKP","D5PZA7P4P4GGICB3POO6BYBJT","Total Male Employees","0022","","S","","L","X","","","","",null,null,null,null,null,null,9,"0ORGUNIT","0PUR_GROUP","Purchasing group","0000","X","0","0","0","","","","","0000","",null,null,null,null,null,12,"D4O21W1IBUGH9QWWACXZMY8L5","D5PZA7P4P42M76FFXYV5496NT","","0","","","","00","X","0","0","","",null,null,null,null,null,null,null,null,null,null,null,null,null,null,null,null,null,null,null,null,null,null,null,null,null,null,null,null,null,null,null,null,null,null,null,null,null,null,null,null,null,null,null,null,null,null,null,null,null,null,null,null,null,null,null,null,null,null,null,null,null,null,null,null,null,null,null,null,null,null,null,null,null,null,null,null,null,null,null,null,null,null,null,null,null,null,9,"0000000108",""]
[null,null,null,null,null,null,null,null,null,null,null,null,null,null,null,null,null,null,null,null,null,null,null,null,null,null,null,null,null,null,null,null,null,null,null,null,null,null,null,null,null,null,null,null,null,null,null,null,null,null,null,null,null,null,null,null,null,null,null,null,null,null,null,null,null,null,null,null,null,null,null,null,null,null,null,null,null,null,null,null,null,null,null,null,null,null,null,null,null,null,11,"D4O21W1IBUB3HEML1KWP5YGOP","D4O21W1IBUY600FCNRX36SCU1","Total Teaching Staff F/T","0022","","S","","L","","","","","",null,null,null,null,null,null,9,"0ORGUNIT","0SALESORG","Sales Organization","0000","X","0","0","0","","","","","0000","",null,null,null,null,null,12,"D4O21W1IBUGH9QWWACXZMY8L5","D5PZA7P4P43DVSR79IAR6OKXL","","0","","","","00","X","0","0","","",null,null,null,null,null,null,null,null,null,null,null,null,null,null,null,null,null,null,null,null,null,null,null,null,null,null,null,null,null,null,null,null,null,null,null,null,null,null,null,null,null,null,null,null,null,null,null,null,null,null,null,null,null,null,null,null,null,null,null,null,null,null,null,null,null,null,null,null,null,null,null,null,null,null,null,null,null,null,null,null,null,null,null,null,null,null,9,"0000009002","D4O21W1IBUB3HEML1KWP5YGOP"]
[null,null,null,null,null,null,null,null,null,null,null,null,null,null,null,null,null,null,null,null,null,null,null,null,null,null,null,null,null,null,null,null,null,null,null,null,null,null,null,null,null,null,null,null,null,null,null,null,null,null,null,null,null,null,null,null,null,null,null,null,null,null,null,null,null,null,null,null,null,null,null,null,null,null,null,null,null,null,null,null,null,null,null,null,null,null,null,null,null,null,11,"D4O21W1IBUB3HEML1KWP5YGOP","DEN0OSIFULCZTDTFE8U7RBQIH","Total Teaching Staff P/T","0023","","S","","L","","","","","",null,null,null,null,null,null,9,"0ORGUNIT","0SALES_GRP","Sales group","0000","X","0","0","0","","","","","0000","",null,null,null,null,null,12,"D4O21W1IBUGH9QWWACXZMY8L5","D5PZA7P4P445KF2YL1QD93Z7D","","0","","","","00","X","0","0","","",null,null,null,null,null,null,null,null,null,null,null,null,null,null,null,null,null,null,null,null,null,null,null,null,null,null,null,null,null,null,null,null,null,null,null,null,null,null,null,null,null,null,null,null,null,null,null,null,null,null,null,null,null,null,null,null,null,null,null,null,null,null,null,null,null,null,null,null,null,null,null,null,null,null,null,null,null,null,null,null,null,null,null,null,null,null,9,"0000009000",""]
[null,null,null,null,null,null,null,null,null,null,null,null,null,null,null,null,null,null,null,null,null,null,null,null,null,null,null,null,null,null,null,null,null,null,null,null,null,null,null,null,null,null,null,null,null,null,null,null,null,null,null,null,null,null,null,null,null,null,null,null,null,null,null,null,null,null,null,null,null,null,null,null,null,null,null,null,null,null,null,null,null,null,null,null,null,null,null,null,null,null,11,"D5PZA7P4P3ZJGP4ENT4OUJLKP","D5PZA7P4P4H86YMV183SEDPTL","Total Female Employees","0023","","S","","L","X","","","","",null,null,null,null,null,null,9,"0ORGUNIT","0SALES_OFF","Sales Office","0000","X","0","0","0","","","","","0000","",null,null,null,null,null,12,"D4O21W1IBUGH9QWWACXZMY8L5","D5PZA7P4P44X91EPWL5ZBJDH5","","","","","","00","X","0","0","","",null,null,null,null,null,null,null,null,null,null,null,null,null,null,null,null,null,null,null,null,null,null,null,null,null,null,null,null,null,null,null,null,null,null,null,null,null,null,null,null,null,null,null,null,null,null,null,null,null,null,null,null,null,null,null,null,null,null,null,null,null,null,null,null,null,null,null,null,null,null,null,null,null,null,null,null,null,null,null,null,null,null,null,null,null,null,9,"0000000010",""]
[null,null,null,null,null,null,null,null,null,null,null,null,null,null,null,null,null,null,null,null,null,null,null,null,null,null,null,null,null,null,null,null,null,null,null,null,null,null,null,null,null,null,null,null,null,null,null,null,null,null,null,null,null,null,null,null,null,null,null,null,null,null,null,null,null,null,null,null,null,null,null,null,null,null,null,null,null,null,null,null,null,null,null,null,null,null,null,null,null,null,11,"D5PZA7P4P3ZJGP4ENT4OUJLKP","D5PZA7P4P47ZZIPR6QWFL8YK9","Total Workforce","0024","","S","","L","X","","","","",null,null,null,null,null,null,9,"0CNTRCTTYPE","0CNTRCTISFT","Fixed-Term Contract","0000","X","2","0","0","","","","","0000","",null,null,null,null,null,12,"D4O21W1IBUGH9QWWACXZMY8L5","D5PZA7P4P45OXNQH84LLDYRQX","","","","","","00","X","0","0","","",null,null,null,null,null,null,null,null,null,null,null,null,null,null,null,null,null,null,null,null,null,null,null,null,null,null,null,null,null,null,null,null,null,null,null,null,null,null,null,null,null,null,null,null,null,null,null,null,null,null,null,null,null,null,null,null,null,null,null,null,null,null,null,null,null,null,null,null,null,null,null,null,null,null,null,null,null,null,null,null,null,null,null,null,null,null,9,"0000000021",""]
[null,null,null,null,null,null,null,null,null,null,null,null,null,null,null,null,null,null,null,null,null,null,null,null,null,null,null,null,null,null,null,null,null,null,null,null,null,null,null,null,null,null,null,null,null,null,null,null,null,null,null,null,null,null,null,null,null,null,null,null,null,null,null,null,null,null,null,null,null,null,null,null,null,null,null,null,null,null,null,null,null,null,null,null,null,null,null,null,null,null,11,"D4O21W1IBUB3HEML1KWP5YGOP","DEN0OSIFULDRI056PS9TTR4S9","Total Teaching Staff","0024","","S","","L","","","","","",null,null,null,null,null,null,8,"0ORGUNIT","0BBPPURGRPX","Ind.Purchasing Group","0000","X","2","0","0","","","","","0000","",null,null,null,null,null,12,"D4O21W1IBUGH9QWWACXZMY8L5","D5PZA7P4P46GMA28JO17GE60P","","0","","","","00","X","0","0","","",null,null,null,null,null,null,null,null,null,null,null,null,null,null,null,null,null,null,null,null,null,null,null,null,null,null,null,null,null,null,null,null,null,null,null,null,null,null,null,null,null,null,null,null,null,null,null,null,null,null,null,null,null,null,null,null,null,null,null,null,null,null,null,null,null,null,null,null,null,null,null,null,null,null,null,null,null,null,null,null,null,null,null,null,null,null,9,"0000000022",""]
[null,null,null,null,null,null,null,null,null,null,null,null,null,null,null,null,null,null,null,null,null,null,null,null,null,null,null,null,null,null,null,null,null,null,null,null,null,null,null,null,null,null,null,null,null,null,null,null,null,null,null,null,null,null,null,null,null,null,null,null,null,null,null,null,null,null,null,null,null,null,null,null,null,null,null,null,null,null,null,null,null,null,null,null,null,null,null,null,null,null,11,"D4O21W1IBUB3HEML1KWP5YGOP","DEN0OSIFULEJ6MGY1BPFW6J21","Total Non-Teaching Staff F/T","0025","","S","","L","","","","","",null,null,null,null,null,null,8,"0ORGUNIT","0BBPPURORGX","Ind. Purchasing Org.","0000","X","2","0","0","","","","","0000","",null,null,null,null,null,12,"D4O21W1IBUGH9QWWACXZMY8L5","D5PZA7P4P478AWDZV7GTITKAH","","2","","","","00","X","0","0","","",null,null,null,null,null,null,null,null,null,null,null,null,null,null,null,null,null,null,null,null,null,null,null,null,null,null,null,null,null,null,null,null,null,null,null,null,null,null,null,null,null,null,null,null,null,null,null,null,null,null,null,null,null,null,null,null,null,null,null,null,null,null,null,null,null,null,null,null,null,null,null,null,null,null,null,null,null,null,null,null,null,null,null,null,null,null,9,"0000000023",""]
[null,null,null,null,null,null,null,null,null,null,null,null,null,null,null,null,null,null,null,null,null,null,null,null,null,null,null,null,null,null,null,null,null,null,null,null,null,null,null,null,null,null,null,null,null,null,null,null,null,null,null,null,null,null,null,null,null,null,null,null,null,null,null,null,null,null,null,null,null,null,null,null,null,null,null,null,null,null,null,null,null,null,null,null,null,null,null,null,null,null,11,"D4O21W1IBUB3HEML1KWP5YGOP","DEN07Y1DTSOUA299LF6TNG6WP","Total Non-Teaching Staff P/T","0026","","S","","L","","","","","",null,null,null,null,null,null,8,"0ORGUNIT","0BBP_BUYID","Buyer ID","0000","X","5","0","0","","","","","0000","",null,null,null,null,null,12,"D4O21W1IBUGH9QWWACXZMY8L5","D5PZA7P4P47ZZIPR6QWFL8YK9","","","","","","00","X","0","0","","",null,null,null,null,null,null,null,null,null,null,null,null,null,null,null,null,null,null,null,null,null,null,null,null,null,null,null,null,null,null,null,null,null,null,null,null,null,null,null,null,null,null,null,null,null,null,null,null,null,null,null,null,null,null,null,null,null,null,null,null,null,null,null,null,null,null,null,null,null,null,null,null,null,null,null,null,null,null,null,null,null,null,null,null,null,null,9,"0000000030",""]
[null,null,null,null,null,null,null,null,null,null,null,null,null,null,null,null,null,null,null,null,null,null,null,null,null,null,null,null,null,null,null,null,null,null,null,null,null,null,null,null,null,null,null,null,null,null,null,null,null,null,null,null,null,null,null,null,null,null,null,null,null,null,null,null,null,null,null,null,null,null,null,null,null,null,null,null,null,null,null,null,null,null,null,null,null,null,null,null,null,null,11,"D4O21W1IBUB3HEML1KWP5YGOP","DEN07Y1DTSR5BX8JK1HNUQDQ1","Total Non-Teaching Staff","0027","","S","","L","","","","","",null,null,null,null,null,null,8,"0ORGUNIT","0BBP_ISCOMP","Organizational Unit is Company","0000","X","1","0","0","","","","","0000","",null,null,null,null,null,12,"D4O21W1IBUGH9QWWACXZMY8L5","D5PZA7P4P48RO51IIAC1NOCU1","","","","","","00","X","0","0","","",null,null,null,null,null,null,null,null,null,null,null,null,null,null,null,null,null,null,null,null,null,null,null,null,null,null,null,null,null,null,null,null,null,null,null,null,null,null,null,null,null,null,null,null,null,null,null,null,null,null,null,null,null,null,null,null,null,null,null,null,null,null,null,null,null,null,null,null,null,null,null,null,null,null,null,null,null,null,null,null,null,null,null,null,null,null,9,"0000000040",""]
[null,null,null,null,null,null,null,null,null,null,null,null,null,null,null,null,null,null,null,null,null,null,null,null,null,null,null,null,null,null,null,null,null,null,null,null,null,null,null,null,null,null,null,null,null,null,null,null,null,null,null,null,null,null,null,null,null,null,null,null,null,null,null,null,null,null,null,null,null,null,null,null,null,null,null,null,null,null,null,null,null,null,null,null,null,null,null,null,null,null,11,"D4O21W1IBUB3HEML1KWP5YGOP","D4O21W1IBUXEBE3LC8HH4CYK9","Total - All WPBR Grades F/T","0028","","F","","L","","","","","",null,null,null,null,null,null,8,"0ORGUNIT","0BUS_AREA","Business area","0000","X","0","0","0","","","","","0000","",null,null,null,null,null,12,"D4O21W1IBUGH9QWWACXZMY8L5","D5PZA7P4P49JCRD9TTRNQ3R3T","","","","","","00","X","0","0","","",null,null,null,null,null,null,null,null,null,null,null,null,null,null,null,null,null,null,null,null,null,null,null,null,null,null,null,null,null,null,null,null,null,null,null,null,null,null,null,null,null,null,null,null,null,null,null,null,null,null,null,null,null,null,null,null,null,null,null,null,null,null,null,null,null,null,null,null,null,null,null,null,null,null,null,null,null,null,null,null,null,null,null,null,null,null,9,"0000000041",""]
[null,null,null,null,null,null,null,null,null,null,null,null,null,null,null,null,null,null,null,null,null,null,null,null,null,null,null,null,null,null,null,null,null,null,null,null,null,null,null,null,null,null,null,null,null,null,null,null,null,null,null,null,null,null,null,null,null,null,null,null,null,null,null,null,null,null,null,null,null,null,null,null,null,null,null,null,null,null,null,null,null,null,null,null,null,null,null,null,null,null,11,"D4O21W1IBUB3HEML1KWP5YGOP","DEN07Y1DTSO2LFXI9VR7L0SMX","Total - All WPBR Grades P/T","0029","","F","","L","","","","","",null,null,null,null,null,null,8,"0ORGUNIT","0COMP_CODE","Company code","0000","X","0","0","0","","","","","0000","",null,null,null,null,null,12,"D4O21W1IBUGH9QWWACXZMY8L5","D5PZA7P4P4AB1DP15D79SJ5DL","","0","","","","00","X","0","0","","",null,null,null,null,null,null,null,null,null,null,null,null,null,null,null,null,null,null,null,null,null,null,null,null,null,null,null,null,null,null,null,null,null,null,null,null,null,null,null,null,null,null,null,null,null,null,null,null,null,null,null,null,null,null,null,null,null,null,null,null,null,null,null,null,null,null,null,null,null,null,null,null,null,null,null,null,null,null,null,null,null,null,null,null,null,null,9,"0000000042","0"]
[null,null,null,null,null,null,null,null,null,null,null,null,null,null,null,null,null,null,null,null,null,null,null,null,null,null,null,null,null,null,null,null,null,null,null,null,null,null,null,null,null,null,null,null,null,null,null,null,null,null,null,null,null,null,null,null,null,null,null,null,null,null,null,null,null,null,null,null,null,null,null,null,null,null,null,null,null,null,null,null,null,null,null,null,null,null,null,null,null,null,11,"D4O21W1IBUB3HEML1KWP5YGOP","DEN07Y1DTSQDNAWS8I21SAZG9","Total Workforce - All WPBR Grades","0030","","F","","L","","","","","",null,null,null,null,null,null,8,"0ORGUNIT","0CO_MST_AR","Controlling Area of Master Cost Center","0000","X","0","0","0","","","","","0000","",null,null,null,null,null,12,"D4O21W1IBUGH9QWWACXZMY8L5","D5PZA7P4P4B2Q00SGWMVUYJND","","0","","","","00","X","0","0","","",null,null,null,null,null,null,null,null,null,null,null,null,null,null,null,null,null,null,null,null,null,null,null,null,null,null,null,null,null,null,null,null,null,null,null,null,null,null,null,null,null,null,null,null,null,null,null,null,null,null,null,null,null,null,null,null,null,null,null,null,null,null,null,null,null,null,null,null,null,null,null,null,null,null,null,null,null,null,null,null,null,null,null,null,null,null,9,"0000000043","0"]
[null,null,null,null,null,null,null,null,null,null,null,null,null,null,null,null,null,null,null,null,null,null,null,null,null,null,null,null,null,null,null,null,null,null,null,null,null,null,null,null,null,null,null,null,null,null,null,null,null,null,null,null,null,null,null,null,null,null,null,null,null,null,null,null,null,null,null,null,null,null,null,null,null,null,null,null,null,null,null,null,null,null,null,null,null,null,null,null,null,null,11,"D4O21W1IBUB3HEML1KWP5YGOP","D4O21W1IBV8XKOZZ5BZO4RWMX","Total Workforce (All) F/T","0031","","S","","L","","","","","",null,null,null,null,null,null,8,"0ORGUNIT","0CRMSALGRPX","Sls Group: Indicator","0000","X","2","0","0","","","","","0000","",null,null,null,null,null,12,"D4O21W1IBUGH9QWWACXZMY8L5","D5PZA7P4P4BUEMCJSG2HXDXX5","","0","","","","00","X","0","0","","",null,null,null,null,null,null,null,null,null,null,null,null,null,null,null,null,null,null,null,null,null,null,null,null,null,null,null,null,null,null,null,null,null,null,null,null,null,null,null,null,null,null,null,null,null,null,null,null,null,null,null,null,null,null,null,null,null,null,null,null,null,null,null,null,null,null,null,null,null,null,null,null,null,null,null,null,null,null,null,null,null,null,null,null,null,null,9,"0000000109","0"]
[null,null,null,null,null,null,null,null,null,null,null,null,null,null,null,null,null,null,null,null,null,null,null,null,null,null,null,null,null,null,null,null,null,null,null,null,null,null,null,null,null,null,null,null,null,null,null,null,null,null,null,null,null,null,null,null,null,null,null,null,null,null,null,null,null,null,null,null,null,null,null,null,null,null,null,null,null,null,null,null,null,null,null,null,null,null,null,null,null,null,11,"D4O21W1IBUB3HEML1KWP5YGOP","DEN07Y1DTSRX0JKAVKX9X5RZT","Total Workforce (All) P/T","0032","","S","","L","","","","","",null,null,null,null,null,null,8,"0ORGUNIT","0CRMSALOFFX","Sls Office:Indicator","0000","X","2","0","0","","","","","0000","",null,null,null,null,null,12,"D4O21W1IBUGH9QWWACXZMY8L5","D5PZA7P4P4CM38OB3ZI3ZTC6X","","0","","","","00","X","0","0","","",null,null,null,null,null,null,null,null,null,null,null,null,null,null,null,null,null,null,null,null,null,null,null,null,null,null,null,null,null,null,null,null,null,null,null,null,null,null,null,null,null,null,null,null,null,null,null,null,null,null,null,null,null,null,null,null,null,null,null,null,null,null,null,null,null,null,null,null,null,null,null,null,null,null,null,null,null,null,null,null,null,null,null,null,null,null,9,"0000000113",""]
[null,null,null,null,null,null,null,null,null,null,null,null,null,null,null,null,null,null,null,null,null,null,null,null,null,null,null,null,null,null,null,null,null,null,null,null,null,null,null,null,null,null,null,null,null,null,null,null,null,null,null,null,null,null,null,null,null,null,null,null,null,null,null,null,null,null,null,null,null,null,null,null,null,null,null,null,null,null,null,null,null,null,null,null,null,null,null,null,null,null,11,"D4O21W1IBUB3HEML1KWP5YGOP","DEN07Y1DTSSOP5W274CVZL69L","Total Workforce (All)","0033","","S","","L","","","","","",null,null,null,null,null,null,8,"0ORGUNIT","0CRMSALORGX","Sales Org. Indicator","0000","X","2","0","0","","","","","0000","",null,null,null,null,null,12,"D4O21W1IBUGH9QWWACXZMY8L5","D5PZA7P4P4DDRV02FIXQ28QGP","","","","","","00","X","0","0","","",null,null,null,null,null,null,null,null,null,null,null,null,null,null,null,null,null,null,null,null,null,null,null,null,null,null,null,null,null,null,null,null,null,null,null,null,null,null,null,null,null,null,null,null,null,null,null,null,null,null,null,null,null,null,null,null,null,null,null,null,null,null,null,null,null,null,null,null,null,null,null,null,null,null,null,null,null,null,null,null,null,null,null,null,null,null,9,"0000000120",""]
[null,null,null,null,null,null,null,null,null,null,null,null,null,null,null,null,null,null,null,null,null,null,null,null,null,null,null,null,null,null,null,null,null,null,null,null,null,null,null,null,null,null,null,null,null,null,null,null,null,null,null,null,null,null,null,null,null,null,null,null,null,null,null,null,null,null,null,null,null,null,null,null,null,null,null,null,null,null,null,null,null,null,null,null,null,null,null,null,null,null,10,"D4O2P4A3SH8H6WZIVSYIIRP4P","D4O2P4A3SHBJXEAK5YOYSHA7T","Teacher F/T","0001","","S","","L","","","","","",null,null,null,null,null,null,8,"0ORGUNIT","0CRMSRVTGRP","Ex. CRM Service Org.","0000","X","1","0","0","","","","","0000","",null,null,null,null,null,12,"D4O21W1IBUGH9QWWACXZMY8L5","D5PZA7P4P4E5GHBTR2DC4O4QH","","","","","","00","X","0","0","","",null,null,null,null,null,null,null,null,null,null,null,null,null,null,null,null,null,null,null,null,null,null,null,null,null,null,null,null,null,null,null,null,null,null,null,null,null,null,null,null,null,null,null,null,null,null,null,null,null,null,null,null,null,null,null,null,null,null,null,null,null,null,null,null,null,null,null,null,null,null,null,null,null,null,null,null,null,null,null,null,null,null,null,null,null,null,9,"0000000121",""]
[null,null,null,null,null,null,null,null,null,null,null,null,null,null,null,null,null,null,null,null,null,null,null,null,null,null,null,null,null,null,null,null,null,null,null,null,null,null,null,null,null,null,null,null,null,null,null,null,null,null,null,null,null,null,null,null,null,null,null,null,null,null,null,null,null,null,null,null,null,null,null,null,null,null,null,null,null,null,null,null,null,null,null,null,null,null,null,null,null,null,10,"D5PZA7P4P3ZJGP4ENT4OUJLKP","D5PZA7P4P40B5BG5ZCKAWYZUH","Total White Male Disabled Employees","0001","","S","","L","X","","","","",null,null,null,null,null,null,8,"0ORGUNIT","0CRM_SALGRP","CRM Sales Group","0000","X","1","0","0","","","","","0000","",null,null,null,null,null,12,"D4O21W1IBUGH9QWWACXZMY8L5","D5PZA7P4P4EX53NL2LSY73J09","","0","","","","00","X","0","0","","",null,null,null,null,null,null,null,null,null,null,null,null,null,null,null,null,null,null,null,null,null,null,null,null,null,null,null,null,null,null,null,null,null,null,null,null,null,null,null,null,null,null,null,null,null,null,null,null,null,null,null,null,null,null,null,null,null,null,null,null,null,null,null,null,null,null,null,null,null,null,null,null,null,null,null,null,null,null,null,null,null,null,null,null,null,null,9,"0000010001","D9UV84VAX4ANMLF7VE1O5UCXL"]
[null,null,null,null,null,null,null,null,null,null,null,null,null,null,null,null,null,null,null,null,null,null,null,null,null,null,null,null,null,null,null,null,null,null,null,null,null,null,null,null,null,null,null,null,null,null,null,null,null,null,null,null,null,null,null,null,null,null,null,null,null,null,null,null,null,null,null,null,null,null,null,null,null,null,null,null,null,null,null,null,null,null,null,null,null,null,null,null,null,null,10,"D5PZA7P4P3ZJGP4ENT4OUJLKP","D5PZA7P4P412TXRXAVZWZEE49","Total White Female Disabled Employees","0002","","S","","L","X","","","","",null,null,null,null,null,null,8,"0ORGUNIT","0CRM_SALOFF","CRM Sales Office","0000","X","1","0","0","","","","","0000","",null,null,null,null,null,12,"D4O21W1IBUGH9QWWACXZMY8L5","D5PZA7P4P4FOTPZCE58K9IXA1","","2","","","","00","X","0","0","","",null,null,null,null,null,null,null,null,null,null,null,null,null,null,null,null,null,null,null,null,null,null,null,null,null,null,null,null,null,null,null,null,null,null,null,null,null,null,null,null,null,null,null,null,null,null,null,null,null,null,null,null,null,null,null,null,null,null,null,null,null,null,null,null,null,null,null,null,null,null,null,null,null,null,null,null,null,null,null,null,null,null,null,null,null,null,9,"0000010002","D9UV84VAX3YCOO72QR3V300L5"]
[null,null,null,null,null,null,null,null,null,null,null,null,null,null,null,null,null,null,null,null,null,null,null,null,null,null,null,null,null,null,null,null,null,null,null,null,null,null,null,null,null,null,null,null,null,null,null,null,null,null,null,null,null,null,null,null,null,null,null,null,null,null,null,null,null,null,null,null,null,null,null,null,null,null,null,null,null,null,null,null,null,null,null,null,null,null,null,null,null,null,10,"D4O2P4A3SH8H6WZIVSYIIRP4P","DEN9FTLAHPZM13J0WXXO1VFND","Teacher P/T","0002","","S","","L","","","","","",null,null,null,null,null,null,8,"0ORGUNIT","0CRM_SALORG","CRM Sales Org.","0000","X","1","0","0","","","","","0000","",null,null,null,null,null,12,"D4O21W1IBUGH9QWWACXZMY8L5","D5PZA7P4P4GGICB3POO6BYBJT","","","","","","00","X","0","0","","",null,null,null,null,null,null,null,null,null,null,null,null,null,null,null,null,null,null,null,null,null,null,null,null,null,null,null,null,null,null,null,null,null,null,null,null,null,null,null,null,null,null,null,null,null,null,null,null,null,null,null,null,null,null,null,null,null,null,null,null,null,null,null,null,null,null,null,null,null,null,null,null,null,null,null,null,null,null,null,null,null,null,null,null,null,null,9,"0000000105",""]
[null,null,null,null,null,null,null,null,null,null,null,null,null,null,null,null,null,null,null,null,null,null,null,null,null,null,null,null,null,null,null,null,null,null,null,null,null,null,null,null,null,null,null,null,null,null,null,null,null,null,null,null,null,null,null,null,null,null,null,null,null,null,null,null,null,null,null,null,null,null,null,null,null,null,null,null,null,null,null,null,null,null,null,null,null,null,null,null,null,null,10,"D5PZA7P4P3ZJGP4ENT4OUJLKP","D5PZA7P4P41UIK3OMFFJ1TSE1","Total White Disabled Employees","0003","","F","","L","","","","","",null,null,null,null,null,null,8,"0ORGUNIT","0CRM_SRVORG","Service Org. CRM","0000","X","1","0","0","","","","","0000","",null,null,null,null,null,12,"D4O21W1IBUGH9QWWACXZMY8L5","D5PZA7P4P4H86YMV183SEDPTL","","","","","","00","X","0","0","","",null,null,null,null,null,null,null,null,null,null,null,null,null,null,null,null,null,null,null,null,null,null,null,null,null,null,null,null,null,null,null,null,null,null,null,null,null,null,null,null,null,null,null,null,null,null,null,null,null,null,null,null,null,null,null,null,null,null,null,null,null,null,null,null,null,null,null,null,null,null,null,null,null,null,null,null,null,null,null,null,null,null,null,null,null,null,9,"0000000106",""]
[null,null,null,null,null,null,null,null,null,null,null,null,null,null,null,null,null,null,null,null,null,null,null,null,null,null,null,null,null,null,null,null,null,null,null,null,null,null,null,null,null,null,null,null,null,null,null,null,null,null,null,null,null,null,null,null,null,null,null,null,null,null,null,null,null,null,null,null,null,null,null,null,null,null,null,null,null,null,null,null,null,null,null,null,null,null,null,null,null,null,10,"D4O2P4A3SH8H6WZIVSYIIRP4P","DEN9GQ7MCHA8Y0DFMMJUL514P","Teacher Total","0003","","S","","L","","","","","",null,null,null,null,null,null,8,"0ORGUNIT","0LOGSYS","Source System","0000","X","1","0","0","","","","","0000","",null,null,null,null,null,12,"D4O21W1IBUGH9QWWACXZMY8L5","D5PZAGQNPNJN6QK9OBJM8YLMH","","","","","","00","X","0","0","","",null,null,null,null,null,null,null,null,null,null,null,null,null,null,null,null,null,null,null,null,null,null,null,null,null,null,null,null,null,null,null,null,null,null,null,null,null,null,null,null,null,null,null,null,null,null,null,null,null,null,null,null,null,null,null,null,null,null,null,null,null,null,null,null,null,null,null,null,null,null,null,null,null,null,null,null,null,null,null,null,null,null,null,null,null,null,9,"0000000112","0"]
[null,null,null,null,null,null,null,null,null,null,null,null,null,null,null,null,null,null,null,null,null,null,null,null,null,null,null,null,null,null,null,null,null,null,null,null,null,null,null,null,null,null,null,null,null,null,null,null,null,null,null,null,null,null,null,null,null,null,null,null,null,null,null,null,null,null,null,null,null,null,null,null,null,null,null,null,null,null,null,null,null,null,null,null,null,null,null,null,null,null,10,"D5PZA7P4P3ZJGP4ENT4OUJLKP","D5PZA7P4P42M76FFXYV5496NT","Total Ethnic Male Disabled Employees","0004","","S","","L","X","","","","",null,null,null,null,null,null,8,"0ORGUNIT","0MAST_CCTR","Master Cost Center","0000","X","0","0","0","","","","","0000","",null,null,null,null,null,12,"D4O21W1IBUH8YD8NLWDLPDMUX","D5PZA7P4P40B5BG5ZCKAWYZUH","","","","","","00","X","0","0","","",null,null,null,null,null,null,null,null,null,null,null,null,null,null,null,null,null,null,null,null,null,null,null,null,null,null,null,null,null,null,null,null,null,null,null,null,null,null,null,null,null,null,null,null,null,null,null,null,null,null,null,null,null,null,null,null,null,null,null,null,null,null,null,null,null,null,null,null,null,null,null,null,null,null,null,null,null,null,null,null,null,null,null,null,null,null,9,"0000000200","X"]
[null,null,null,null,null,null,null,null,null,null,null,null,null,null,null,null,null,null,null,null,null,null,null,null,null,null,null,null,null,null,null,null,null,null,null,null,null,null,null,null,null,null,null,null,null,null,null,null,null,null,null,null,null,null,null,null,null,null,null,null,null,null,null,null,null,null,null,null,null,null,null,null,null,null,null,null,null,null,null,null,null,null,null,null,null,null,null,null,null,null,10,"D4O2P4A3SH8H6WZIVSYIIRP4P","D4O2P4A3SHEMNVLLG4FF26VAX","Principal Teacher F/T","0004","","S","","L","","","","","",null,null,null,null,null,null,8,"0ORGUNIT","0PERS_AREA","Personnel Area","0000","X","1","0","0","","","","","0000","",null,null,null,null,null,12,"D4O21W1IBUH8YD8NLWDLPDMUX","D5PZA7P4P412TXRXAVZWZEE49","","","","","","00","X","0","0","","",null,null,null,null,null,null,null,null,null,null,null,null,null,null,null,null,null,null,null,null,null,null,null,null,null,null,null,null,null,null,null,null,null,null,null,null,null,null,null,null,null,null,null,null,null,null,null,null,null,null,null,null,null,null,null,null,null,null,null,null,null,null,null,null,null,null,null,null,null,null,null,null,null,null,null,null,null,null,null,null,null,null,null,null,null,null,9,"0000004000","X"]
[null,null,null,null,null,null,null,null,null,null,null,null,null,null,null,null,null,null,null,null,null,null,null,null,null,null,null,null,null,null,null,null,null,null,null,null,null,null,null,null,null,null,null,null,null,null,null,null,null,null,null,null,null,null,null,null,null,null,null,null,null,null,null,null,null,null,null,null,null,null,null,null,null,null,null,null,null,null,null,null,null,null,null,null,null,null,null,null,null,null,9,"D5PZA7P4P3ZJGP4ENT4OUJLKP","D5PZA7P4P44X91EPWL5ZBJDH5","Disabled Male Employees","0007","","S","","L","X","","","","",null,null,null,null,null,null,6,"0ORGUNIT","0LOGSYS","Source System","0000","X","1","0","0","","","","","0000","",null,null,null,null,null,12,"D4O21W1IBUL3DGVG7LJO1IM7T","D5PZA7P4P42M76FFXYV5496NT","","0","","","","00","X","0","0","","",null,null,null,null,null,null,null,null,null,null,null,null,null,null,null,null,null,null,null,null,null,null,null,null,null,null,null,null,null,null,null,null,null,null,null,null,null,null,null,null,null,null,null,null,null,null,null,null,null,null,null,null,null,null,null,null,null,null,null,null,null,null,null,null,null,null,null,null,null,null,null,null,null,null,null,null,null,null,null,null,null,null,null,null,null,null,7,"0000000042","0"]
[null,null,null,null,null,null,null,null,null,null,null,null,null,null,null,null,null,null,null,null,null,null,null,null,null,null,null,null,null,null,null,null,null,null,null,null,null,null,null,null,null,null,null,null,null,null,null,null,null,null,null,null,null,null,null,null,null,null,null,null,null,null,null,null,null,null,null,null,null,null,null,null,null,null,null,null,null,null,null,null,null,null,null,null,null,null,null,null,null,null,9,"D4O21W1IBUB3HEML1KWP5YGOP","DEN0OSIFULCZTDTFE8U7RBQIH","Total Teaching Staff P/T","0023","","S","","L","","","","","",null,null,null,null,null,null,5,"0ORGUNIT","0PUR_GROUP","Purchasing group","0000","X","0","0","0","","","","","0000","",null,null,null,null,null,12,"D4O21W1IBULV2377J4ZA3Y0HL","D5PZA7P4P48RO51IIAC1NOCU1","","","","","","00","X","0","0","","",null,null,null,null,null,null,null,null,null,null,null,null,null,null,null,null,null,null,null,null,null,null,null,null,null,null,null,null,null,null,null,null,null,null,null,null,null,null,null,null,null,null,null,null,null,null,null,null,null,null,null,null,null,null,null,null,null,null,null,null,null,null,null,null,null,null,null,null,null,null,null,null,null,null,null,null,null,null,null,null,null,null,null,null,null,null,6,"0000000043","0"]
[null,null,null,null,null,null,null,null,null,null,null,null,null,null,null,null,null,null,null,null,null,null,null,null,null,null,null,null,null,null,null,null,null,null,null,null,null,null,null,null,null,null,null,null,null,null,null,null,null,null,null,null,null,null,null,null,null,null,null,null,null,null,null,null,null,null,null,null,null,null,null,null,null,null,null,null,null,null,null,null,null,null,null,null,null,null,null,null,null,null,8,"D4O21W1IBUB3HEML1KWP5YGOP","DEN07Y1DTSRX0JKAVKX9X5RZT","Total Workforce (All) P/T","0032","","S","","L","","","","","",null,null,null,null,null,null,null,null,null,null,null,null,null,null,null,null,null,null,null,null,null,null,null,null,null,null,12,"D4O21W1IBUO63Y6HHRA4B87AX","D5PZA7P4P45OXNQH84LLDYRQX","","","","","","00","X","0","0","","",null,null,null,null,null,null,null,null,null,null,null,null,null,null,null,null,null,null,null,null,null,null,null,null,null,null,null,null,null,null,null,null,null,null,null,null,null,null,null,null,null,null,null,null,null,null,null,null,null,null,null,null,null,null,null,null,null,null,null,null,null,null,null,null,null,null,null,null,null,null,null,null,null,null,null,null,null,null,null,null,null,null,null,null,null,null,4,"0000010002","D9UV84VAX3YCOO72QR3V300L5"]
[null,null,null,null,null,null,null,null,null,null,null,null,null,null,null,null,null,null,null,null,null,null,null,null,null,null,null,null,null,null,null,null,null,null,null,null,null,null,null,null,null,null,null,null,null,null,null,null,null,null,null,null,null,null,null,null,null,null,null,null,null,null,null,null,null,null,null,null,null,null,null,null,null,null,null,null,null,null,null,null,null,null,null,null,null,null,null,null,null,null,6,"D4O21W1IBUB3HEML1KWP5YGOP","D4O21W1IBUKBOUJOW241Z37Y1","Grade 1 - 4 P/T","0002","","S","","L","","","","","",null,null,null,null,null,null,null,null,null,null,null,null,null,null,null,null,null,null,null,null,null,null,null,null,null,null,12,"D4O21W1IBUXEBE3LC8HH4CYK9","D5PZA7P4P4FOTPZCE58K9IXA1","","0","","","","00","X","0","0","",""]
[null,null,null,null,null,null,null,null,null,null,null,null,null,null,null,null,null,null,null,null,null,null,null,null,null,null,null,null,null,null,null,null,null,null,null,null,null,null,null,null,null,null,null,null,null,null,null,null,null,null,null,null,null,null,null,null,null,null,null,null,null,null,null,null,null,null,null,null,null,null,null,null,null,null,null,null,null,null,null,null,null,null,null,null,null,null,null,null,null,null,5,"D5PZA7P4P3ZJGP4ENT4OUJLKP","D5PZA7P4P40B5BG5ZCKAWYZUH","Total White Male Disabled Employees","0001","","S","","L","X","","","","",null,null,null,null,null,null,null,null,null,null,null,null,null,null,null,null,null,null,null,null,null,null,null,null,null,null,12,"D4O21W1IBV18QHQDXXNJGHXX5","D5PZA7P4P43DVSR79IAR6OKXL","","0","","","","00","X","0","0","",""]
[null,null,null,null,null,null,null,null,null,null,null,null,null,null,null,null,null,null,null,null,null,null,null,null,null,null,null,null,null,null,null,null,null,null,null,null,null,null,null,null,null,null,null,null,null,null,null,null,null,null,null,null,null,null,null,null,null,null,null,null,null,null,null,null,null,null,null,null,null,null,null,null,null,null,null,null,null,null,null,null,null,null,null,null,null,null,null,null,null,null,5,"D4O21W1IBUB3HEML1KWP5YGOP","D4O21W1IBUNEFBUQ67UI8ST15","ACZ Grade 9 - 15 P/T","0017","","S","","L","","","","","",null,null,null,null,null,null,null,null,null,null,null,null,null,null,null,null,null,null,null,null,null,null,null,null,null,null,12,"D4O21W1IBV8XKOZZ5BZO4RWMX","D5PZA7P4P48RO51IIAC1NOCU1","","","","","","00","X","0","0","",""]
[null,null,null,null,null,null,null,null,null,null,null,null,null,null,null,null,null,null,null,null,null,null,null,null,null,null,null,null,null,null,null,null,null,null,null,null,null,null,null,null,null,null,null,null,null,null,null,null,null,null,null,null,null,null,null,null,null,null,null,null,null,null,null,null,null,null,null,null,null,null,null,null,null,null,null,null,null,null,null,null,null,null,null,null,null,null,null,null,null,null,4,"D5PZA7P4P3ZJGP4ENT4OUJLKP","D5PZA7P4P42M76FFXYV5496NT","Total Ethnic Male Disabled Employees","0004","","S","","L","X","","","","",null,null,null,null,null,null,null,null,null,null,null,null,null,null,null,null,null,null,null,null,null,null,null,null,null,null,12,"DEMAFDB5LZ4S252XBVM7GJP4P","D5PZA7P4P4EX53NL2LSY73J09","","0","","","","00","X","0","0","",""]
[null,null,null,null,null,null,null,null,null,null,null,null,null,null,null,null,null,null,null,null,null,null,null,null,null,null,null,null,null,null,null,null,null,null,null,null,null,null,null,null,null,null,null,null,null,null,null,null,null,null,null,null,null,null,null,null,null,null,null,null,null,null,null,null,null,null,null,null,null,null,null,null,null,null,null,null,null,null,null,null,null,null,null,null,null,null,null,null,null,null,null,null,null,null,null,null,null,null,null,null,null,null,null,null,null,null,null,null,null,null,null,null,null,null,null,null,null,null,null,null,null,null,null,null,null,null,null,null,null,null,12,"DEN07Y1DTSNAWTLQYCBLILED5","D5PZA7P4P4FOTPZCE58K9IXA1","","0","","","","00","X","0","0","",""]
[null,null,null,null,null,null,null,null,null,null,null,null,null,null,null,null,null,null,null,null,null,null,null,null,null,null,null,null,null,null,null,null,null,null,null,null,null,null,null,null,null,null,null,null,null,null,null,null,null,null,null,null,null,null,null,null,null,null,null,null,null,null,null,null,null,null,null,null,null,null,null,null,null,null,null,null,null,null,null,null,null,null,null,null,null,null,null,null,null,null,null,null,null,null,null,null,null,null,null,null,null,null,null,null,null,null,null,null,null,null,null,null,null,null,null,null,null,null,null,null,null,null,null,null,null,null,null,null,null,null,12,"DEN07Y1DTSO2LFXI9VR7L0SMX","D5PZA7P4P4CM38OB3ZI3ZTC6X","","0","","","","00","X","0","0","",""]
[null,null,null,null,null,null,null,null,null,null,null,null,null,null,null,null,null,null,null,null,null,null,null,null,null,null,null,null,null,null,null,null,null,null,null,null,null,null,null,null,null,null,null,null,null,null,null,null,null,null,null,null,null,null,null,null,null,null,null,null,null,null,null,null,null,null,null,null,null,null,null,null,null,null,null,null,null,null,null,null,null,null,null,null,null,null,null,null,null,null,null,null,null,null,null,null,null,null,null,null,null,null,null,null,null,null,null,null,null,null,null,null,null,null,null,null,null,null,null,null,null,null,null,null,null,null,null,null,null,null,12,"DEN07Y1DTSQDNAWS8I21SAZG9","D5PZA7P4P40B5BG5ZCKAWYZUH","","0","","","","00","X","0","0","",""]
[null,null,null,null,null,null,null,null,null,null,null,null,null,null,null,null,null,null,null,null,null,null,null,null,null,null,null,null,null,null,null,null,null,null,null,null,null,null,null,null,null,null,null,null,null,null,null,null,null,null,null,null,null,null,null,null,null,null,null,null,null,null,null,null,null,null,null,null,null,null,null,null,null,null,null,null,null,null,null,null,null,null,null,null,null,null,null,null,null,null,null,null,null,null,null,null,null,null,null,null,null,null,null,null,null,null,null,null,null,null,null,null,null,null,null,null,null,null,null,null,null,null,null,null,null,null,null,null,null,null,12,"DEN07Y1DTSR5BX8JK1HNUQDQ1","D5PZA7P4P4BUEMCJSG2HXDXX5","","0","","","","00","X","0","0","",""]
[null,null,null,null,null,null,null,null,null,null,null,null,null,null,null,null,null,null,null,null,null,null,null,null,null,null,null,null,null,null,null,null,null,null,null,null,null,null,null,null,null,null,null,null,null,null,null,null,null,null,null,null,null,null,null,null,null,null,null,null,null,null,null,null,null,null,null,null,null,null,null,null,null,null,null,null,null,null,null,null,null,null,null,null,null,null,null,null,null,null,null,null,null,null,null,null,null,null,null,null,null,null,null,null,null,null,null,null,null,null,null,null,null,null,null,null,null,null,null,null,null,null,null,null,null,null,null,null,null,null,12,"DEN0OSIFULDRI056PS9TTR4S9","D5PZA7P4P478AWDZV7GTITKAH","","2","","","","00","X","0","0","",""]
[null,null,null,null,null,null,null,null,null,null,null,null,null,null,null,null,null,null,null,null,null,null,null,null,null,null,null,null,null,null,null,null,null,null,null,null,null,null,null,null,null,null,null,null,null,null,null,null,null,null,null,null,null,null,null,null,null,null,null,null,null,null,null,null,null,null,null,null,null,null,null,null,null,null,null,null,null,null,null,null,null,null,null,null,null,null,null,null,null,null,null,null,null,null,null,null,null,null,null,null,null,null,null,null,null,null,null,null,null,null,null,null,null,null,null,null,null,null,null,null,null,null,null,null,null,null,null,null,null,null,12,"DEN0OSIFULEJ6MGY1BPFW6J21","D5PZA7P4P49JCRD9TTRNQ3R3T","","","","","","00","X","0","0","",""]
[null,null,null,null,null,null,null,null,null,null,null,null,null,null,null,null,null,null,null,null,null,null,null,null,null,null,null,null,null,null,null,null,null,null,null,null,null,null,null,null,null,null,null,null,null,null,null,null,null,null,null,null,null,null,null,null,null,null,null,null,null,null,null,null,null,null,null,null,null,null,null,null,null,null,null,null,null,null,null,null,null,null,null,null,null,null,null,null,null,null,null,null,null,null,null,null,null,null,null,null,null,null,null,null,null,null,null,null,null,null,null,null,null,null,null,null,null,null,null,null,null,null,null,null,null,null,null,null,null,null,11,"D4O21W1IBUEXWI9DNA2RI3G1L","D5PZA7P4P40B5BG5ZCKAWYZUH","","","","","","00","X","0","0","",""]
[null,null,null,null,null,null,null,null,null,null,null,null,null,null,null,null,null,null,null,null,null,null,null,null,null,null,null,null,null,null,null,null,null,null,null,null,null,null,null,null,null,null,null,null,null,null,null,null,null,null,null,null,null,null,null,null,null,null,null,null,null,null,null,null,null,null,null,null,null,null,null,null,null,null,null,null,null,null,null,null,null,null,null,null,null,null,null,null,null,null,null,null,null,null,null,null,null,null,null,null,null,null,null,null,null,null,null,null,null,null,null,null,null,null,null,null,null,null,null,null,null,null,null,null,null,null,null,null,null,null,11,"D4O21W1IBUGH9QWWACXZMY8L5","D5PZA7P4P478AWDZV7GTITKAH","","2","","","","00","X","0","0","",""]
[null,null,null,null,null,null,null,null,null,null,null,null,null,null,null,null,null,null,null,null,null,null,null,null,null,null,null,null,null,null,null,null,null,null,null,null,null,null,null,null,null,null,null,null,null,null,null,null,null,null,null,null,null,null,null,null,null,null,null,null,null,null,null,null,null,null,null,null,null,null,null,null,null,null,null,null,null,null,null,null,null,null,null,null,null,null,null,null,null,null,null,null,null,null,null,null,null,null,null,null,null,null,null,null,null,null,null,null,null,null,null,null,null,null,null,null,null,null,null,null,null,null,null,null,null,null,null,null,null,null,11,"D4O21W1IBUL3DGVG7LJO1IM7T","D5PZA7P4P478AWDZV7GTITKAH","","2","","","","00","X","0","0","",""]
[null,null,null,null,null,null,null,null,null,null,null,null,null,null,null,null,null,null,null,null,null,null,null,null,null,null,null,null,null,null,null,null,null,null,null,null,null,null,null,null,null,null,null,null,null,null,null,null,null,null,null,null,null,null,null,null,null,null,null,null,null,null,null,null,null,null,null,null,null,null,null,null,null,null,null,null,null,null,null,null,null,null,null,null,null,null,null,null,null,null,null,null,null,null,null,null,null,null,null,null,null,null,null,null,null,null,null,null,null,null,null,null,null,null,null,null,null,null,null,null,null,null,null,null,null,null,null,null,null,null,11,"D4O21W1IBUMMQPIYUOEW6DERD","D5PZA7P4P44X91EPWL5ZBJDH5","","","","","","00","X","0","0","",""]
[null,null,null,null,null,null,null,null,null,null,null,null,null,null,null,null,null,null,null,null,null,null,null,null,null,null,null,null,null,null,null,null,null,null,null,null,null,null,null,null,null,null,null,null,null,null,null,null,null,null,null,null,null,null,null,null,null,null,null,null,null,null,null,null,null,null,null,null,null,null,null,null,null,null,null,null,null,null,null,null,null,null,null,null,null,null,null,null,null,null,null,null,null,null,null,null,null,null,null,null,null,null,null,null,null,null,null,null,null,null,null,null,null,null,null,null,null,null,null,null,null,null,null,null,null,null,null,null,null,null,11,"D4O21W1IBUNEFBUQ67UI8ST15","D5PZA7P4P4AB1DP15D79SJ5DL","","0","","","","00","X","0","0","",""]
[null,null,null,null,null,null,null,null,null,null,null,null,null,null,null,null,null,null,null,null,null,null,null,null,null,null,null,null,null,null,null,null,null,null,null,null,null,null,null,null,null,null,null,null,null,null,null,null,null,null,null,null,null,null,null,null,null,null,null,null,null,null,null,null,null,null,null,null,null,null,null,null,null,null,null,null,null,null,null,null,null,null,null,null,null,null,null,null,null,null,null,null,null,null,null,null,null,null,null,null,null,null,null,null,null,null,null,null,null,null,null,null,null,null,null,null,null,null,null,null,null,null,null,null,null,null,null,null,null,null,11,"D4O21W1IBUXEBE3LC8HH4CYK9","D5PZA7P4P445KF2YL1QD93Z7D","","0","","","","00","X","0","0","",""]
[null,null,null,null,null,null,null,null,null,null,null,null,null,null,null,null,null,null,null,null,null,null,null,null,null,null,null,null,null,null,null,null,null,null,null,null,null,null,null,null,null,null,null,null,null,null,null,null,null,null,null,null,null,null,null,null,null,null,null,null,null,null,null,null,null,null,null,null,null,null,null,null,null,null,null,null,null,null,null,null,null,null,null,null,null,null,null,null,null,null,null,null,null,null,null,null,null,null,null,null,null,null,null,null,null,null,null,null,null,null,null,null,null,null,null,null,null,null,null,null,null,null,null,null,null,null,null,null,null,null,11,"D4O21W1IBV0H1VEMME7XE2JND","D5PZA7P4P4H86YMV183SEDPTL","","","","","","00","X","0","0","",""]
[null,null,null,null,null,null,null,null,null,null,null,null,null,null,null,null,null,null,null,null,null,null,null,null,null,null,null,null,null,null,null,null,null,null,null,null,null,null,null,null,null,null,null,null,null,null,null,null,null,null,null,null,null,null,null,null,null,null,null,null,null,null,null,null,null,null,null,null,null,null,null,null,null,null,null,null,null,null,null,null,null,null,null,null,null,null,null,null,null,null,null,null,null,null,null,null,null,null,null,null,null,null,null,null,null,null,null,null,null,null,null,null,null,null,null,null,null,null,null,null,null,null,null,null,null,null,null,null,null,null,11,"DEMAFDB5LZ4S252XBVM7GJP4P","D5PZA7P4P41UIK3OMFFJ1TSE1","","0","","","","00","X","0","0","",""]
[null,null,null,null,null,null,null,null,null,null,null,null,null,null,null,null,null,null,null,null,null,null,null,null,null,null,null,null,null,null,null,null,null,null,null,null,null,null,null,null,null,null,null,null,null,null,null,null,null,null,null,null,null,null,null,null,null,null,null,null,null,null,null,null,null,null,null,null,null,null,null,null,null,null,null,null,null,null,null,null,null,null,null,null,null,null,null,null,null,null,null,null,null,null,null,null,null,null,null,null,null,null,null,null,null,null,null,null,null,null,null,null,null,null,null,null,null,null,null,null,null,null,null,null,null,null,null,null,null,null,11,"DEMAGSP8VDTMCQ2Z9KSRG7UGP","D5PZA7P4P41UIK3OMFFJ1TSE1","","0","","","","00","X","0","0","",""]
[null,null,null,null,null,null,null,null,null,null,null,null,null,null,null,null,null,null,null,null,null,null,null,null,null,null,null,null,null,null,null,null,null,null,null,null,null,null,null,null,null,null,null,null,null,null,null,null,null,null,null,null,null,null,null,null,null,null,null,null,null,null,null,null,null,null,null,null,null,null,null,null,null,null,null,null,null,null,null,null,null,null,null,null,null,null,null,null,null,null,null,null,null,null,null,null,null,null,null,null,null,null,null,null,null,null,null,null,null,null,null,null,null,null,null,null,null,null,null,null,null,null,null,null,null,null,null,null,null,null,11,"DEN07Y1DTSNAWTLQYCBLILED5","D5PZAGQNPNJN6QK9OBJM8YLMH","","0","","","","00","X","0","0","",""]
[null,null,null,null,null,null,null,null,null,null,null,null,null,null,null,null,null,null,null,null,null,null,null,null,null,null,null,null,null,null,null,null,null,null,null,null,null,null,null,null,null,null,null,null,null,null,null,null,null,null,null,null,null,null,null,null,null,null,null,null,null,null,null,null,null,null,null,null,null,null,null,null,null,null,null,null,null,null,null,null,null,null,null,null,null,null,null,null,null,null,null,null,null,null,null,null,null,null,null,null,null,null,null,null,null,null,null,null,null,null,null,null,null,null,null,null,null,null,null,null,null,null,null,null,null,null,null,null,null,null,11,"DEN07Y1DTSOUA299LF6TNG6WP","D5PZA7P4P4H86YMV183SEDPTL","","","","","","00","X","0","0","",""]
[null,null,null,null,null,null,null,null,null,null,null,null,null,null,null,null,null,null,null,null,null,null,null,null,null,null,null,null,null,null,null,null,null,null,null,null,null,null,null,null,null,null,null,null,null,null,null,null,null,null,null,null,null,null,null,null,null,null,null,null,null,null,null,null,null,null,null,null,null,null,null,null,null,null,null,null,null,null,null,null,null,null,null,null,null,null,null,null,null,null,null,null,null,null,null,null,null,null,null,null,null,null,null,null,null,null,null,null,null,null,null,null,null,null,null,null,null,null,null,null,null,null,null,null,null,null,null,null,null,null,11,"DEN07Y1DTSPLYOL0WYMFPVL6H","D5PZA7P4P4B2Q00SGWMVUYJND","","0","","","","00","X","0","0","",""]
[null,null,null,null,null,null,null,null,null,null,null,null,null,null,null,null,null,null,null,null,null,null,null,null,null,null,null,null,null,null,null,null,null,null,null,null,null,null,null,null,null,null,null,null,null,null,null,null,null,null,null,null,null,null,null,null,null,null,null,null,null,null,null,null,null,null,null,null,null,null,null,null,null,null,null,null,null,null,null,null,null,null,null,null,null,null,null,null,null,null,null,null,null,null,null,null,null,null,null,null,null,null,null,null,null,null,null,null,null,null,null,null,null,null,null,null,null,null,null,null,null,null,null,null,null,null,null,null,null,null,11,"DEN07Y1DTSRX0JKAVKX9X5RZT","D5PZA7P4P41UIK3OMFFJ1TSE1","","0","","","","00","X","0","0","",""]
[null,null,null,null,null,null,null,null,null,null,null,null,null,null,null,null,null,null,null,null,null,null,null,null,null,null,null,null,null,null,null,null,null,null,null,null,null,null,null,null,null,null,null,null,null,null,null,null,null,null,null,null,null,null,null,null,null,null,null,null,null,null,null,null,null,null,null,null,null,null,null,null,null,null,null,null,null,null,null,null,null,null,null,null,null,null,null,null,null,null,null,null,null,null,null,null,null,null,null,null,null,null,null,null,null,null,null,null,null,null,null,null,null,null,null,null,null,null,null,null,null,null,null,null,null,null,null,null,null,null,11,"DEN0OSIFULDRI056PS9TTR4S9","D5PZA7P4P4EX53NL2LSY73J09","","0","","","","00","X","0","0","",""]
[null,null,null,null,null,null,null,null,null,null,null,null,null,null,null,null,null,null,null,null,null,null,null,null,null,null,null,null,null,null,null,null,null,null,null,null,null,null,null,null,null,null,null,null,null,null,null,null,null,null,null,null,null,null,null,null,null,null,null,null,null,null,null,null,null,null,null,null,null,null,null,null,null,null,null,null,null,null,null,null,null,null,null,null,null,null,null,null,null,null,null,null,null,null,null,null,null,null,null,null,null,null,null,null,null,null,null,null,null,null,null,null,null,null,null,null,null,null,null,null,null,null,null,null,null,null,null,null,null,null,10,"D4O2P4A3SHBJXEAK5YOYSHA7T","D5PZA7P4P48RO51IIAC1NOCU1","","","","","","00","X","0","0","",""]
[null,null,null,null,null,null,null,null,null,null,null,null,null,null,null,null,null,null,null,null,null,null,null,null,null,null,null,null,null,null,null,null,null,null,null,null,null,null,null,null,null,null,null,null,null,null,null,null,null,null,null,null,null,null,null,null,null,null,null,null,null,null,null,null,null,null,null,null,null,null,null,null,null,null,null,null,null,null,null,null,null,null,null,null,null,null,null,null,null,null,null,null,null,null,null,null,null,null,null,null,null,null,null,null,null,null,null,null,null,null,null,null,null,null,null,null,null,null,null,null,null,null,null,null,null,null,null,null,null,null,10,"D4O2P4A3SHKS4U7O0FWBLM1H5","D5PZA7P4P4CM38OB3ZI3ZTC6X","","0","","","","00","X","0","0","",""]
[null,null,null,null,null,null,null,null,null,null,null,null,null,null,null,null,null,null,null,null,null,null,null,null,null,null,null,null,null,null,null,null,null,null,null,null,null,null,null,null,null,null,null,null,null,null,null,null,null,null,null,null,null,null,null,null,null,null,null,null,null,null,null,null,null,null,null,null,null,null,null,null,null,null,null,null,null,null,null,null,null,null,null,null,null,null,null,null,null,null,null,null,null,null,null,null,null,null,null,null,null,null,null,null,null,null,null,null,null,null,null,null,null,null,null,null,null,null,null,null,null,null,null,null,null,null,null,null,null,null,10,"D4O2P4A3SHQXLSTQKRD8517ND","D5PZA7P4P4FOTPZCE58K9IXA1","","2","","","","00","X","0","0","",""]
[null,null,null,null,null,null,null,null,null,null,null,null,null,null,null,null,null,null,null,null,null,null,null,null,null,null,null,null,null,null,null,null,null,null,null,null,null,null,null,null,null,null,null,null,null,null,null,null,null,null,null,null,null,null,null,null,null,null,null,null,null,null,null,null,null,null,null,null,null,null,null,null,null,null,null,null,null,null,null,null,null,null,null,null,null,null,null,null,null,null,null,null,null,null,null,null,null,null,null,null,null,null,null,null,null,null,null,null,null,null,null,null,null,null,null,null,null,null,null,null,null,null,null,null,null,null,null,null,null,null,10,"D4O2P4A3SHU0CA4RUX3OEQSQH","D5PZA7P4P45OXNQH84LLDYRQX","","0","","","","00","X","0","0","",""]
[null,null,null,null,null,null,null,null,null,null,null,null,null,null,null,null,null,null,null,null,null,null,null,null,null,null,null,null,null,null,null,null,null,null,null,null,null,null,null,null,null,null,null,null,null,null,null,null,null,null,null,null,null,null,null,null,null,null,null,null,null,null,null,null,null,null,null,null,null,null,null,null,null,null,null,null,null,null,null,null,null,null,null,null,null,null,null,null,null,null,null,null,null,null,null,null,null,null,null,null,null,null,null,null,null,null,null,null,null,null,null,null,null,null,null,null,null,null,null,null,null,null,null,null,null,null,null,null,null,null,10,"DEN9FTLAHQ15EC6JK0SW6Q86X","D5PZA7P4P48RO51IIAC1NOCU1","","","","","","00","X","0","0","",""]
[null,null,null,null,null,null,null,null,null,null,null,null,null,null,null,null,null,null,null,null,null,null,null,null,null,null,null,null,null,null,null,null,null,null,null,null,null,null,null,null,null,null,null,null,null,null,null,null,null,null,null,null,null,null,null,null,null,null,null,null,null,null,null,null,null,null,null,null,null,null,null,null,null,null,null,null,null,null,null,null,null,null,null,null,null,null,null,null,null,null,null,null,null,null,null,null,null,null,null,null,null,null,null,null,null,null,null,null,null,null,null,null,null,null,null,null,null,null,null,null,null,null,null,null,null,null,null,null,null,null,10,"DEN9FTLAHQ2ORKU273O4BL0QH","D5PZA7P4P43DVSR79IAR6OKXL","","0","","","","00","X","0","0","",""]
[null,null,null,null,null,null,null,null,null,null,null,null,null,null,null,null,null,null,null,null,null,null,null,null,null,null,null,null,null,null,null,null,null,null,null,null,null,null,null,null,null,null,null,null,null,null,null,null,null,null,null,null,null,null,null,null,null,null,null,null,null,null,null,null,null,null,null,null,null,null,null,null,null,null,null,null,null,null,null,null,null,null,null,null,null,null,null,null,null,null,null,null,null,null,null,null,null,null,null,null,null,null,null,null,null,null,null,null,null,null,null,null,null,null,null,null,null,null,null,null,null,null,null,null,null,null,null,null,null,null,10,"DEN9FTLAHQ3GG75TIN3QE0F09","D5PZA7P4P4BUEMCJSG2HXDXX5","","0","","","","00","X","0","0","",""]
[null,null,null,null,null,null,null,null,null,null,null,null,null,null,null,null,null,null,null,null,null,null,null,null,null,null,null,null,null,null,null,null,null,null,null,null,null,null,null,null,null,null,null,null,null,null,null,null,null,null,null,null,null,null,null,null,null,null,null,null,null,null,null,null,null,null,null,null,null,null,null,null,null,null,null,null,null,null,null,null,null,null,null,null,null,null,null,null,null,null,null,null,null,null,null,null,null,null,null,null,null,null,null,null,null,null,null,null,null,null,null,null,null,null,null,null,null,null,null,null,null,null,null,null,null,null,null,null,null,null,10,"DEN9GQ7MCHB0MMP6Y5ZGNKFEH","D5PZA7P4P42M76FFXYV5496NT","","0","","","","00","X","0","0","",""]
[null,null,null,null,null,null,null,null,null,null,null,null,null,null,null,null,null,null,null,null,null,null,null,null,null,null,null,null,null,null,null,null,null,null,null,null,null,null,null,null,null,null,null,null,null,null,null,null,null,null,null,null,null,null,null,null,null,null,null,null,null,null,null,null,null,null,null,null,null,null,null,null,null,null,null,null,null,null,null,null,null,null,null,null,null,null,null,null,null,null,null,null,null,null,null,null,null,null,null,null,null,null,null,null,null,null,null,null,null,null,null,null,null,null,null,null,null,null,null,null,null,null,null,null,null,null,null,null,null,null,10,"DEN9GQ7MCHDBOHOGWSAAUUM7T","D5PZA7P4P40B5BG5ZCKAWYZUH","","","","","","00","X","0","0","",""]
[null,null,null,null,null,null,null,null,null,null,null,null,null,null,null,null,null,null,null,null,null,null,null,null,null,null,null,null,null,null,null,null,null,null,null,null,null,null,null,null,null,null,null,null,null,null,null,null,null,null,null,null,null,null,null,null,null,null,null,null,null,null,null,null,null,null,null,null,null,null,null,null,null,null,null,null,null,null,null,null,null,null,null,null,null,null,null,null,null,null,null,null,null,null,null,null,null,null,null,null,null,null,null,null,null,null,null,null,null,null,null,null,null,null,null,null,null,null,null,null,null,null,null,null,null,null,null,null,null,null,10,"DEN9GQ7MCHEV1QBZJV5IZPERD","D5PZA7P4P40B5BG5ZCKAWYZUH","","0","","","","00","X","0","0","",""]
[null,null,null,null,null,null,null,null,null,null,null,null,null,null,null,null,null,null,null,null,null,null,null,null,null,null,null,null,null,null,null,null,null,null,null,null,null,null,null,null,null,null,null,null,null,null,null,null,null,null,null,null,null,null,null,null,null,null,null,null,null,null,null,null,null,null,null,null,null,null,null,null,null,null,null,null,null,null,null,null,null,null,null,null,null,null,null,null,null,null,null,null,null,null,null,null,null,null,null,null,null,null,null,null,null,null,null,null,null,null,null,null,null,null,null,null,null,null,null,null,null,null,null,null,null,null,null,null,null,null,9,"D4O21W1IBUEXWI9DNA2RI3G1L","D5PZA7P4P478AWDZV7GTITKAH","","2","","","","00","X","0","0","",""]
[null,null,null,null,null,null,null,null,null,null,null,null,null,null,null,null,null,null,null,null,null,null,null,null,null,null,null,null,null,null,null,null,null,null,null,null,null,null,null,null,null,null,null,null,null,null,null,null,null,null,null,null,null,null,null,null,null,null,null,null,null,null,null,null,null,null,null,null,null,null,null,null,null,null,null,null,null,null,null,null,null,null,null,null,null,null,null,null,null,null,null,null,null,null,null,null,null,null,null,null,null,null,null,null,null,null,null,null,null,null,null,null,null,null,null,null,null,null,null,null,null,null,null,null,null,null,null,null,null,null,9,"D4O21W1IBUFPL4L4YTIDKIUBD","D5PZA7P4P4GGICB3POO6BYBJT","","","","","","00","X","0","0","",""]
[null,null,null,null,null,null,null,null,null,null,null,null,null,null,null,null,null,null,null,null,null,null,null,null,null,null,null,null,null,null,null,null,null,null,null,null,null,null,null,null,null,null,null,null,null,null,null,null,null,null,null,null,null,null,null,null,null,null,null,null,null,null,null,null,null,null,null,null,null,null,null,null,null,null,null,null,null,null,null,null,null,null,null,null,null,null,null,null,null,null,null,null,null,null,null,null,null,null,null,null,null,null,null,null,null,null,null,null,null,null,null,null,null,null,null,null,null,null,null,null,null,null,null,null,null,null,null,null,null,null,9,"D4O21W1IBUKBOUJOW241Z37Y1","D5PZA7P4P40B5BG5ZCKAWYZUH","","","","","","00","X","0","0","",""]
[null,null,null,null,null,null,null,null,null,null,null,null,null,null,null,null,null,null,null,null,null,null,null,null,null,null,null,null,null,null,null,null,null,null,null,null,null,null,null,null,null,null,null,null,null,null,null,null,null,null,null,null,null,null,null,null,null,null,null,null,null,null,null,null,null,null,null,null,null,null,null,null,null,null,null,null,null,null,null,null,null,null,null,null,null,null,null,null,null,null,null,null,null,null,null,null,null,null,null,null,null,null,null,null,null,null,null,null,null,null,null,null,null,null,null,null,null,null,null,null,null,null,null,null,null,null,null,null,null,null,9,"D4O21W1IBULV2377J4ZA3Y0HL","D5PZA7P4P4E5GHBTR2DC4O4QH","","","","","","00","X","0","0","",""]
[null,null,null,null,null,null,null,null,null,null,null,null,null,null,null,null,null,null,null,null,null,null,null,null,null,null,null,null,null,null,null,null,null,null,null,null,null,null,null,null,null,null,null,null,null,null,null,null,null,null,null,null,null,null,null,null,null,null,null,null,null,null,null,null,null,null,null,null,null,null,null,null,null,null,null,null,null,null,null,null,null,null,null,null,null,null,null,null,null,null,null,null,null,null,null,null,null,null,null,null,null,null,null,null,null,null,null,null,null,null,null,null,null,null,null,null,null,null,null,null,null,null,null,null,null,null,null,null,null,null,9,"D4O21W1IBUO63Y6HHRA4B87AX","D5PZA7P4P478AWDZV7GTITKAH","","2","","","","00","X","0","0","",""]
[null,null,null,null,null,null,null,null,null,null,null,null,null,null,null,null,null,null,null,null,null,null,null,null,null,null,null,null,null,null,null,null,null,null,null,null,null,null,null,null,null,null,null,null,null,null,null,null,null,null,null,null,null,null,null,null,null,null,null,null,null,null,null,null,null,null,null,null,null,null,null,null,null,null,null,null,null,null,null,null,null,null,null,null,null,null,null,null,null,null,null,null,null,null,null,null,null,null,null,null,null,null,null,null,null,null,null,null,null,null,null,null,null,null,null,null,null,null,null,null,null,null,null,null,null,null,null,null,null,null,9,"D4O21W1IBUXEBE3LC8HH4CYK9","D5PZA7P4P4BUEMCJSG2HXDXX5","","0","","","","00","X","0","0","",""]
[null,null,null,null,null,null,null,null,null,null,null,null,null,null,null,null,null,null,null,null,null,null,null,null,null,null,null,null,null,null,null,null,null,null,null,null,null,null,null,null,null,null,null,null,null,null,null,null,null,null,null,null,null,null,null,null,null,null,null,null,null,null,null,null,null,null,null,null,null,null,null,null,null,null,null,null,null,null,null,null,null,null,null,null,null,null,null,null,null,null,null,null,null,null,null,null,null,null,null,null,null,null,null,null,null,null,null,null,null,null,null,null,null,null,null,null,null,null,null,null,null,null,null,null,null,null,null,null,null,null,9,"D4O21W1IBUY600FCNRX36SCU1","D5PZA7P4P4AB1DP15D79SJ5DL","","0","","","","00","X","0","0","",""]
[null,null,null,null,null,null,null,null,null,null,null,null,null,null,null,null,null,null,null,null,null,null,null,null,null,null,null,null,null,null,null,null,null,null,null,null,null,null,null,null,null,null,null,null,null,null,null,null,null,null,null,null,null,null,null,null,null,null,null,null,null,null,null,null,null,null,null,null,null,null,null,null,null,null,null,null,null,null,null,null,null,null,null,null,null,null,null,null,null,null,null,null,null,null,null,null,null,null,null,null,null,null,null,null,null,null,null,null,null,null,null,null,null,null,null,null,null,null,null,null,null,null,null,null,null,null,null,null,null,null,9,"D4O21W1IBV8XKOZZ5BZO4RWMX","D5PZA7P4P4B2Q00SGWMVUYJND","","0","","","","00","X","0","0","",""]
[null,null,null,null,null,null,null,null,null,null,null,null,null,null,null,null,null,null,null,null,null,null,null,null,null,null,null,null,null,null,null,null,null,null,null,null,null,null,null,null,null,null,null,null,null,null,null,null,null,null,null,null,null,null,null,null,null,null,null,null,null,null,null,null,null,null,null,null,null,null,null,null,null,null,null,null,null,null,null,null,null,null,null,null,null,null,null,null,null,null,null,null,null,null,null,null,null,null,null,null,null,null,null,null,null,null,null,null,null,null,null,null,null,null,null,null,null,null,null,null,null,null,null,null,null,null,null,null,null,null,9,"DEMAGSP8VDTMCQ2Z9KSRG7UGP","D5PZA7P4P4H86YMV183SEDPTL","","","","","","00","X","0","0","",""]
[null,null,null,null,null,null,null,null,null,null,null,null,null,null,null,null,null,null,null,null,null,null,null,null,null,null,null,null,null,null,null,null,null,null,null,null,null,null,null,null,null,null,null,null,null,null,null,null,null,null,null,null,null,null,null,null,null,null,null,null,null,null,null,null,null,null,null,null,null,null,null,null,null,null,null,null,null,null,null,null,null,null,null,null,null,null,null,null,null,null,null,null,null,null,null,null,null,null,null,null,null,null,null,null,null,null,null,null,null,null,null,null,null,null,null,null,null,null,null,null,null,null,null,null,null,null,null,null,null,null,9,"DEN07Y1DTSNAWTLQYCBLILED5","D5PZA7P4P48RO51IIAC1NOCU1","","0","","","","00","X","0","0","",""]
[null,null,null,null,null,null,null,null,null,null,null,null,null,null,null,null,null,null,null,null,null,null,null,null,null,null,null,null,null,null,null,null,null,null,null,null,null,null,null,null,null,null,null,null,null,null,null,null,null,null,null,null,null,null,null,null,null,null,null,null,null,null,null,null,null,null,null,null,null,null,null,null,null,null,null,null,null,null,null,null,null,null,null,null,null,null,null,null,null,null,null,null,null,null,null,null,null,null,null,null,null,null,null,null,null,null,null,null,null,null,null,null,null,null,null,null,null,null,null,null,null,null,null,null,null,null,null,null,null,null,9,"DEN07Y1DTSO2LFXI9VR7L0SMX","D5PZA7P4P4AB1DP15D79SJ5DL","","0","","","","00","X","0","0","",""]
[null,null,null,null,null,null,null,null,null,null,null,null,null,null,null,null,null,null,null,null,null,null,null,null,null,null,null,null,null,null,null,null,null,null,null,null,null,null,null,null,null,null,null,null,null,null,null,null,null,null,null,null,null,null,null,null,null,null,null,null,null,null,null,null,null,null,null,null,null,null,null,null,null,null,null,null,null,null,null,null,null,null,null,null,null,null,null,null,null,null,null,null,null,null,null,null,null,null,null,null,null,null,null,null,null,null,null,null,null,null,null,null,null,null,null,null,null,null,null,null,null,null,null,null,null,null,null,null,null,null,9,"DEN07Y1DTSPLYOL0WYMFPVL6H","D5PZA7P4P41UIK3OMFFJ1TSE1","","0","","","","00","X","0","0","",""]
[null,null,null,null,null,null,null,null,null,null,null,null,null,null,null,null,null,null,null,null,null,null,null,null,null,null,null,null,null,null,null,null,null,null,null,null,null,null,null,null,null,null,null,null,null,null,null,null,null,null,null,null,null,null,null,null,null,null,null,null,null,null,null,null,null,null,null,null,null,null,null,null,null,null,null,null,null,null,null,null,null,null,null,null,null,null,null,null,null,null,null,null,null,null,null,null,null,null,null,null,null,null,null,null,null,null,null,null,null,null,null,null,null,null,null,null,null,null,null,null,null,null,null,null,null,null,null,null,null,null,9,"DEN07Y1DTSRX0JKAVKX9X5RZT","D5PZA7P4P4H86YMV183SEDPTL","","","","","","00","X","0","0","",""]
[null,null,null,null,null,null,null,null,null,null,null,null,null,null,null,null,null,null,null,null,null,null,null,null,null,null,null,null,null,null,null,null,null,null,null,null,null,null,null,null,null,null,null,null,null,null,null,null,null,null,null,null,null,null,null,null,null,null,null,null,null,null,null,null,null,null,null,null,null,null,null,null,null,null,null,null,null,null,null,null,null,null,null,null,null,null,null,null,null,null,null,null,null,null,null,null,null,null,null,null,null,null,null,null,null,null,null,null,null,null,null,null,null,null,null,null,null,null,null,null,null,null,null,null,null,null,null,null,null,null,9,"DEN07Y1DTSSOP5W274CVZL69L","D5PZAGQNPNJN6QK9OBJM8YLMH","","","","","","00","X","0","0","",""]
[null,null,null,null,null,null,null,null,null,null,null,null,null,null,null,null,null,null,null,null,null,null,null,null,null,null,null,null,null,null,null,null,null,null,null,null,null,null,null,null,null,null,null,null,null,null,null,null,null,null,null,null,null,null,null,null,null,null,null,null,null,null,null,null,null,null,null,null,null,null,null,null,null,null,null,null,null,null,null,null,null,null,null,null,null,null,null,null,null,null,null,null,null,null,null,null,null,null,null,null,null,null,null,null,null,null,null,null,null,null,null,null,null,null,null,null,null,null,null,null,null,null,null,null,null,null,null,null,null,null,9,"DEN0OSIFULEJ6MGY1BPFW6J21","D5PZA7P4P41UIK3OMFFJ1TSE1","","0","","","","00","X","0","0","",""]
[null,null,null,null,null,null,null,null,null,null,null,null,null,null,null,null,null,null,null,null,null,null,null,null,null,null,null,null,null,null,null,null,null,null,null,null,null,null,null,null,null,null,null,null,null,null,null,null,null,null,null,null,null,null,null,null,null,null,null,null,null,null,null,null,null,null,null,null,null,null,null,null,null,null,null,null,null,null,null,null,null,null,null,null,null,null,null,null,null,null,null,null,null,null,null,null,null,null,null,null,null,null,null,null,null,null,null,null,null,null,null,null,null,null,null,null,null,null,null,null,null,null,null,null,null,null,null,null,null,null,8,"D4O21W1IBUFPL4L4YTIDKIUBD","D5PZA7P4P43DVSR79IAR6OKXL","","0","","","","00","X","0","0","",""]
[null,null,null,null,null,null,null,null,null,null,null,null,null,null,null,null,null,null,null,null,null,null,null,null,null,null,null,null,null,null,null,null,null,null,null,null,null,null,null,null,null,null,null,null,null,null,null,null,null,null,null,null,null,null,null,null,null,null,null,null,null,null,null,null,null,null,null,null,null,null,null,null,null,null,null,null,null,null,null,null,null,null,null,null,null,null,null,null,null,null,null,null,null,null,null,null,null,null,null,null,null,null,null,null,null,null,null,null,null,null,null,null,null,null,null,null,null,null,null,null,null,null,null,null,null,null,null,null,null,null,8,"D4O21W1IBUGH9QWWACXZMY8L5","D5PZA7P4P48RO51IIAC1NOCU1","","","","","","00","X","0","0","",""]
[null,null,null,null,null,null,null,null,null,null,null,null,null,null,null,null,null,null,null,null,null,null,null,null,null,null,null,null,null,null,null,null,null,null,null,null,null,null,null,null,null,null,null,null,null,null,null,null,null,null,null,null,null,null,null,null,null,null,null,null,null,null,null,null,null,null,null,null,null,null,null,null,null,null,null,null,null,null,null,null,null,null,null,null,null,null,null,null,null,null,null,null,null,null,null,null,null,null,null,null,null,null,null,null,null,null,null,null,null,null,null,null,null,null,null,null,null,null,null,null,null,null,null,null,null,null,null,null,null,null,8,"D4O21W1IBUH8YD8NLWDLPDMUX","D5PZA7P4P4EX53NL2LSY73J09","","0","","","","00","X","0","0","",""]
[null,null,null,null,null,null,null,null,null,null,null,null,null,null,null,null,null,null,null,null,null,null,null,null,null,null,null,null,null,null,null,null,null,null,null,null,null,null,null,null,null,null,null,null,null,null,null,null,null,null,null,null,null,null,null,null,null,null,null,null,null,null,null,null,null,null,null,null,null,null,null,null,null,null,null,null,null,null,null,null,null,null,null,null,null,null,null,null,null,null,null,null,null,null,null,null,null,null,null,null,null,null,null,null,null,null,null,null,null,null,null,null,null,null,null,null,null,null,null,null,null,null,null,null,null,null,null,null,null,null,8,"D4O21W1IBUMMQPIYUOEW6DERD","D5PZA7P4P4FOTPZCE58K9IXA1","","2","","","","00","X","0","0","",""]
[null,null,null,null,null,null,null,null,null,null,null,null,null,null,null,null,null,null,null,null,null,null,null,null,null,null,null,null,null,null,null,null,null,null,null,null,null,null,null,null,null,null,null,null,null,null,null,null,null,null,null,null,null,null,null,null,null,null,null,null,null,null,null,null,null,null,null,null,null,null,null,null,null,null,null,null,null,null,null,null,null,null,null,null,null,null,null,null,null,null,null,null,null,null,null,null,null,null,null,null,null,null,null,null,null,null,null,null,null,null,null,null,null,null,null,null,null,null,null,null,null,null,null,null,null,null,null,null,null,null,8,"D4O21W1IBUNEFBUQ67UI8ST15","D5PZA7P4P4CM38OB3ZI3ZTC6X","","0","","","","00","X","0","0","",""]
[null,null,null,null,null,null,null,null,null,null,null,null,null,null,null,null,null,null,null,null,null,null,null,null,null,null,null,null,null,null,null,null,null,null,null,null,null,null,null,null,null,null,null,null,null,null,null,null,null,null,null,null,null,null,null,null,null,null,null,null,null,null,null,null,null,null,null,null,null,null,null,null,null,null,null,null,null,null,null,null,null,null,null,null,null,null,null,null,null,null,null,null,null,null,null,null,null,null,null,null,null,null,null,null,null,null,null,null,null,null,null,null,null,null,null,null,null,null,null,null,null,null,null,null,null,null,null,null,null,null,8,"D4O21W1IBUXEBE3LC8HH4CYK9","D5PZA7P4P48RO51IIAC1NOCU1","","0","","","","00","X","0","0","",""]
[null,null,null,null,null,null,null,null,null,null,null,null,null,null,null,null,null,null,null,null,null,null,null,null,null,null,null,null,null,null,null,null,null,null,null,null,null,null,null,null,null,null,null,null,null,null,null,null,null,null,null,null,null,null,null,null,null,null,null,null,null,null,null,null,null,null,null,null,null,null,null,null,null,null,null,null,null,null,null,null,null,null,null,null,null,null,null,null,null,null,null,null,null,null,null,null,null,null,null,null,null,null,null,null,null,null,null,null,null,null,null,null,null,null,null,null,null,null,null,null,null,null,null,null,null,null,null,null,null,null,8,"D4O21W1IBV0H1VEMME7XE2JND","D5PZA7P4P4AB1DP15D79SJ5DL","","0","","","","00","X","0","0","",""]
[null,null,null,null,null,null,null,null,null,null,null,null,null,null,null,null,null,null,null,null,null,null,null,null,null,null,null,null,null,null,null,null,null,null,null,null,null,null,null,null,null,null,null,null,null,null,null,null,null,null,null,null,null,null,null,null,null,null,null,null,null,null,null,null,null,null,null,null,null,null,null,null,null,null,null,null,null,null,null,null,null,null,null,null,null,null,null,null,null,null,null,null,null,null,null,null,null,null,null,null,null,null,null,null,null,null,null,null,null,null,null,null,null,null,null,null,null,null,null,null,null,null,null,null,null,null,null,null,null,null,8,"D4O21W1IBV18QHQDXXNJGHXX5","D5PZA7P4P4BUEMCJSG2HXDXX5","","0","","","","00","X","0","0","",""]
[null,null,null,null,null,null,null,null,null,null,null,null,null,null,null,null,null,null,null,null,null,null,null,null,null,null,null,null,null,null,null,null,null,null,null,null,null,null,null,null,null,null,null,null,null,null,null,null,null,null,null,null,null,null,null,null,null,null,null,null,null,null,null,null,null,null,null,null,null,null,null,null,null,null,null,null,null,null,null,null,null,null,null,null,null,null,null,null,null,null,null,null,null,null,null,null,null,null,null,null,null,null,null,null,null,null,null,null,null,null,null,null,null,null,null,null,null,null,null,null,null,null,null,null,null,null,null,null,null,null,8,"DEMAGSP8VDTMCQ2Z9KSRG7UGP","D5PZA7P4P49JCRD9TTRNQ3R3T","","","","","","00","X","0","0","",""]
[null,null,null,null,null,null,null,null,null,null,null,null,null,null,null,null,null,null,null,null,null,null,null,null,null,null,null,null,null,null,null,null,null,null,null,null,null,null,null,null,null,null,null,null,null,null,null,null,null,null,null,null,null,null,null,null,null,null,null,null,null,null,null,null,null,null,null,null,null,null,null,null,null,null,null,null,null,null,null,null,null,null,null,null,null,null,null,null,null,null,null,null,null,null,null,null,null,null,null,null,null,null,null,null,null,null,null,null,null,null,null,null,null,null,null,null,null,null,null,null,null,null,null,null,null,null,null,null,null,null,8,"DEN07Y1DTSNAWTLQYCBLILED5","D5PZA7P4P40B5BG5ZCKAWYZUH","","0","","","","00","X","0","0","",""]
[null,null,null,null,null,null,null,null,null,null,null,null,null,null,null,null,null,null,null,null,null,null,null,null,null,null,null,null,null,null,null,null,null,null,null,null,null,null,null,null,null,null,null,null,null,null,null,null,null,null,null,null,null,null,null,null,null,null,null,null,null,null,null,null,null,null,null,null,null,null,null,null,null,null,null,null,null,null,null,null,null,null,null,null,null,null,null,null,null,null,null,null,null,null,null,null,null,null,null,null,null,null,null,null,null,null,null,null,null,null,null,null,null,null,null,null,null,null,null,null,null,null,null,null,null,null,null,null,null,null,8,"DEN07Y1DTSOUA299LF6TNG6WP","D5PZA7P4P478AWDZV7GTITKAH","","2","","","","00","X","0","0","",""]
[null,null,null,null,null,null,null,null,null,null,null,null,null,null,null,null,null,null,null,null,null,null,null,null,null,null,null,null,null,null,null,null,null,null,null,null,null,null,null,null,null,null,null,null,null,null,null,null,null,null,null,null,null,null,null,null,null,null,null,null,null,null,null,null,null,null,null,null,null,null,null,null,null,null,null,null,null,null,null,null,null,null,null,null,null,null,null,null,null,null,null,null,null,null,null,null,null,null,null,null,null,null,null,null,null,null,null,null,null,null,null,null,null,null,null,null,null,null,null,null,null,null,null,null,null,null,null,null,null,null,8,"DEN07Y1DTSR5BX8JK1HNUQDQ1","D5PZA7P4P478AWDZV7GTITKAH","","2","","","","00","X","0","0","",""]
[null,null,null,null,null,null,null,null,null,null,null,null,null,null,null,null,null,null,null,null,null,null,null,null,null,null,null,null,null,null,null,null,null,null,null,null,null,null,null,null,null,null,null,null,null,null,null,null,null,null,null,null,null,null,null,null,null,null,null,null,null,null,null,null,null,null,null,null,null,null,null,null,null,null,null,null,null,null,null,null,null,null,null,null,null,null,null,null,null,null,null,null,null,null,null,null,null,null,null,null,null,null,null,null,null,null,null,null,null,null,null,null,null,null,null,null,null,null,null,null,null,null,null,null,null,null,null,null,null,null,8,"DEN07Y1DTSSOP5W274CVZL69L","D5PZA7P4P44X91EPWL5ZBJDH5","","","","","","00","X","0","0","",""]
[null,null,null,null,null,null,null,null,null,null,null,null,null,null,null,null,null,null,null,null,null,null,null,null,null,null,null,null,null,null,null,null,null,null,null,null,null,null,null,null,null,null,null,null,null,null,null,null,null,null,null,null,null,null,null,null,null,null,null,null,null,null,null,null,null,null,null,null,null,null,null,null,null,null,null,null,null,null,null,null,null,null,null,null,null,null,null,null,null,null,null,null,null,null,null,null,null,null,null,null,null,null,null,null,null,null,null,null,null,null,null,null,null,null,null,null,null,null,null,null,null,null,null,null,null,null,null,null,null,null,8,"DEN0OSIFULDRI056PS9TTR4S9","D5PZA7P4P40B5BG5ZCKAWYZUH","","","","","","00","X","0","0","",""]
[null,null,null,null,null,null,null,null,null,null,null,null,null,null,null,null,null,null,null,null,null,null,null,null,null,null,null,null,null,null,null,null,null,null,null,null,null,null,null,null,null,null,null,null,null,null,null,null,null,null,null,null,null,null,null,null,null,null,null,null,null,null,null,null,null,null,null,null,null,null,null,null,null,null,null,null,null,null,null,null,null,null,null,null,null,null,null,null,null,null,null,null,null,null,null,null,null,null,null,null,null,null,null,null,null,null,null,null,null,null,null,null,null,null,null,null,null,null,null,null,null,null,null,null,null,null,null,null,null,null,7,"D4O21W1IBUE67VXMBQN5FO1RT","D5PZA7P4P42M76FFXYV5496NT","","0","","","","00","X","0","0","",""]
[null,null,null,null,null,null,null,null,null,null,null,null,null,null,null,null,null,null,null,null,null,null,null,null,null,null,null,null,null,null,null,null,null,null,null,null,null,null,null,null,null,null,null,null,null,null,null,null,null,null,null,null,null,null,null,null,null,null,null,null,null,null,null,null,null,null,null,null,null,null,null,null,null,null,null,null,null,null,null,null,null,null,null,null,null,null,null,null,null,null,null,null,null,null,null,null,null,null,null,null,null,null,null,null,null,null,null,null,null,null,null,null,null,null,null,null,null,null,null,null,null,null,null,null,null,null,null,null,null,null,7,"D4O21W1IBUFPL4L4YTIDKIUBD","D5PZA7P4P478AWDZV7GTITKAH","","2","","","","00","X","0","0","",""]
[null,null,null,null,null,null,null,null,null,null,null,null,null,null,null,null,null,null,null,null,null,null,null,null,null,null,null,null,null,null,null,null,null,null,null,null,null,null,null,null,null,null,null,null,null,null,null,null,null,null,null,null,null,null,null,null,null,null,null,null,null,null,null,null,null,null,null,null,null,null,null,null,null,null,null,null,null,null,null,null,null,null,null,null,null,null,null,null,null,null,null,null,null,null,null,null,null,null,null,null,null,null,null,null,null,null,null,null,null,null,null,null,null,null,null,null,null,null,null,null,null,null,null,null,null,null,null,null,null,null,7,"D4O21W1IBUH8YD8NLWDLPDMUX","D5PZA7P4P41UIK3OMFFJ1TSE1","","0","","","","00","X","0","0","",""]
[null,null,null,null,null,null,null,null,null,null,null,null,null,null,null,null,null,null,null,null,null,null,null,null,null,null,null,null,null,null,null,null,null,null,null,null,null,null,null,null,null,null,null,null,null,null,null,null,null,null,null,null,null,null,null,null,null,null,null,null,null,null,null,null,null,null,null,null,null,null,null,null,null,null,null,null,null,null,null,null,null,null,null,null,null,null,null,null,null,null,null,null,null,null,null,null,null,null,null,null,null,null,null,null,null,null,null,null,null,null,null,null,null,null,null,null,null,null,null,null,null,null,null,null,null,null,null,null,null,null,7,"D4O21W1IBUKBOUJOW241Z37Y1","D5PZA7P4P4AB1DP15D79SJ5DL","","0","","","","00","X","0","0","",""]
[null,null,null,null,null,null,null,null,null,null,null,null,null,null,null,null,null,null,null,null,null,null,null,null,null,null,null,null,null,null,null,null,null,null,null,null,null,null,null,null,null,null,null,null,null,null,null,null,null,null,null,null,null,null,null,null,null,null,null,null,null,null,null,null,null,null,null,null,null,null,null,null,null,null,null,null,null,null,null,null,null,null,null,null,null,null,null,null,null,null,null,null,null,null,null,null,null,null,null,null,null,null,null,null,null,null,null,null,null,null,null,null,null,null,null,null,null,null,null,null,null,null,null,null,null,null,null,null,null,null,7,"D4O21W1IBUMMQPIYUOEW6DERD","D5PZAGQNPNJN6QK9OBJM8YLMH","","","","","","00","X","0","0","",""]
[null,null,null,null,null,null,null,null,null,null,null,null,null,null,null,null,null,null,null,null,null,null,null,null,null,null,null,null,null,null,null,null,null,null,null,null,null,null,null,null,null,null,null,null,null,null,null,null,null,null,null,null,null,null,null,null,null,null,null,null,null,null,null,null,null,null,null,null,null,null,null,null,null,null,null,null,null,null,null,null,null,null,null,null,null,null,null,null,null,null,null,null,null,null,null,null,null,null,null,null,null,null,null,null,null,null,null,null,null,null,null,null,null,null,null,null,null,null,null,null,null,null,null,null,null,null,null,null,null,null,7,"D4O21W1IBUO63Y6HHRA4B87AX","D5PZA7P4P4H86YMV183SEDPTL","","","","","","00","X","0","0","",""]
[null,null,null,null,null,null,null,null,null,null,null,null,null,null,null,null,null,null,null,null,null,null,null,null,null,null,null,null,null,null,null,null,null,null,null,null,null,null,null,null,null,null,null,null,null,null,null,null,null,null,null,null,null,null,null,null,null,null,null,null,null,null,null,null,null,null,null,null,null,null,null,null,null,null,null,null,null,null,null,null,null,null,null,null,null,null,null,null,null,null,null,null,null,null,null,null,null,null,null,null,null,null,null,null,null,null,null,null,null,null,null,null,null,null,null,null,null,null,null,null,null,null,null,null,null,null,null,null,null,null,7,"D4O21W1IBUWMMRRU0P1V1XKAH","D5PZA7P4P4B2Q00SGWMVUYJND","","0","","","","00","X","0","0","",""]
[null,null,null,null,null,null,null,null,null,null,null,null,null,null,null,null,null,null,null,null,null,null,null,null,null,null,null,null,null,null,null,null,null,null,null,null,null,null,null,null,null,null,null,null,null,null,null,null,null,null,null,null,null,null,null,null,null,null,null,null,null,null,null,null,null,null,null,null,null,null,null,null,null,null,null,null,null,null,null,null,null,null,null,null,null,null,null,null,null,null,null,null,null,null,null,null,null,null,null,null,null,null,null,null,null,null,null,null,null,null,null,null,null,null,null,null,null,null,null,null,null,null,null,null,null,null,null,null,null,null,7,"D4O21W1IBV0H1VEMME7XE2JND","D5PZA7P4P4AB1DP15D79SJ5DL","","0","","","","00","X","0","0","",""]
[null,null,null,null,null,null,null,null,null,null,null,null,null,null,null,null,null,null,null,null,null,null,null,null,null,null,null,null,null,null,null,null,null,null,null,null,null,null,null,null,null,null,null,null,null,null,null,null,null,null,null,null,null,null,null,null,null,null,null,null,null,null,null,null,null,null,null,null,null,null,null,null,null,null,null,null,null,null,null,null,null,null,null,null,null,null,null,null,null,null,null,null,null,null,null,null,null,null,null,null,null,null,null,null,null,null,null,null,null,null,null,null,null,null,null,null,null,null,null,null,null,null,null,null,null,null,null,null,null,null,7,"D4O21W1IBV8XKOZZ5BZO4RWMX","D5PZA7P4P48RO51IIAC1NOCU1","","","","","","00","X","0","0","",""]
[null,null,null,null,null,null,null,null,null,null,null,null,null,null,null,null,null,null,null,null,null,null,null,null,null,null,null,null,null,null,null,null,null,null,null,null,null,null,null,null,null,null,null,null,null,null,null,null,null,null,null,null,null,null,null,null,null,null,null,null,null,null,null,null,null,null,null,null,null,null,null,null,null,null,null,null,null,null,null,null,null,null,null,null,null,null,null,null,null,null,null,null,null,null,null,null,null,null,null,null,null,null,null,null,null,null,null,null,null,null,null,null,null,null,null,null,null,null,null,null,null,null,null,null,null,null,null,null,null,null,7,"DEN03PYIT5FSSAA2U7ST53H15","D5PZA7P4P4H86YMV183SEDPTL","","","","","","00","X","0","0","",""]
[null,null,null,null,null,null,null,null,null,null,null,null,null,null,null,null,null,null,null,null,null,null,null,null,null,null,null,null,null,null,null,null,null,null,null,null,null,null,null,null,null,null,null,null,null,null,null,null,null,null,null,null,null,null,null,null,null,null,null,null,null,null,null,null,null,null,null,null,null,null,null,null,null,null,null,null,null,null,null,null,null,null,null,null,null,null,null,null,null,null,null,null,null,null,null,null,null,null,null,null,null,null,null,null,null,null,null,null,null,null,null,null,null,null,null,null,null,null,null,null,null,null,null,null,null,null,null,null,null,null,7,"DEN07Y1DTSNAWTLQYCBLILED5","D5PZA7P4P46GMA28JO17GE60P","","0","","","","00","X","0","0","",""]
[null,null,null,null,null,null,null,null,null,null,null,null,null,null,null,null,null,null,null,null,null,null,null,null,null,null,null,null,null,null,null,null,null,null,null,null,null,null,null,null,null,null,null,null,null,null,null,null,null,null,null,null,null,null,null,null,null,null,null,null,null,null,null,null,null,null,null,null,null,null,null,null,null,null,null,null,null,null,null,null,null,null,null,null,null,null,null,null,null,null,null,null,null,null,null,null,null,null,null,null,null,null,null,null,null,null,null,null,null,null,null,null,null,null,null,null,null,null,null,null,null,null,null,null,null,null,null,null,null,null,7,"DEN07Y1DTSOUA299LF6TNG6WP","D5PZA7P4P41UIK3OMFFJ1TSE1","","0","","","","00","X","0","0","",""]
[null,null,null,null,null,null,null,null,null,null,null,null,null,null,null,null,null,null,null,null,null,null,null,null,null,null,null,null,null,null,null,null,null,null,null,null,null,null,null,null,null,null,null,null,null,null,null,null,null,null,null,null,null,null,null,null,null,null,null,null,null,null,null,null,null,null,null,null,null,null,null,null,null,null,null,null,null,null,null,null,null,null,null,null,null,null,null,null,null,null,null,null,null,null,null,null,null,null,null,null,null,null,null,null,null,null,null,null,null,null,null,null,null,null,null,null,null,null,null,null,null,null,null,null,null,null,null,null,null,null,7,"DEN07Y1DTSQDNAWS8I21SAZG9","D5PZA7P4P45OXNQH84LLDYRQX","","0","","","","00","X","0","0","",""]
[null,null,null,null,null,null,null,null,null,null,null,null,null,null,null,null,null,null,null,null,null,null,null,null,null,null,null,null,null,null,null,null,null,null,null,null,null,null,null,null,null,null,null,null,null,null,null,null,null,null,null,null,null,null,null,null,null,null,null,null,null,null,null,null,null,null,null,null,null,null,null,null,null,null,null,null,null,null,null,null,null,null,null,null,null,null,null,null,null,null,null,null,null,null,null,null,null,null,null,null,null,null,null,null,null,null,null,null,null,null,null,null,null,null,null,null,null,null,null,null,null,null,null,null,null,null,null,null,null,null,7,"DEN07Y1DTSSOP5W274CVZL69L","D5PZA7P4P48RO51IIAC1NOCU1","","","","","","00","X","0","0","",""]
[null,null,null,null,null,null,null,null,null,null,null,null,null,null,null,null,null,null,null,null,null,null,null,null,null,null,null,null,null,null,null,null,null,null,null,null,null,null,null,null,null,null,null,null,null,null,null,null,null,null,null,null,null,null,null,null,null,null,null,null,null,null,null,null,null,null,null,null,null,null,null,null,null,null,null,null,null,null,null,null,null,null,null,null,null,null,null,null,null,null,null,null,null,null,null,null,null,null,null,null,null,null,null,null,null,null,null,null,null,null,null,null,null,null,null,null,null,null,null,null,null,null,null,null,null,null,null,null,null,null,7,"DEN0OSIFULDRI056PS9TTR4S9","D5PZA7P4P43DVSR79IAR6OKXL","","0","","","","00","X","0","0","",""]
[null,null,null,null,null,null,null,null,null,null,null,null,null,null,null,null,null,null,null,null,null,null,null,null,null,null,null,null,null,null,null,null,null,null,null,null,null,null,null,null,null,null,null,null,null,null,null,null,null,null,null,null,null,null,null,null,null,null,null,null,null,null,null,null,null,null,null,null,null,null,null,null,null,null,null,null,null,null,null,null,null,null,null,null,null,null,null,null,null,null,null,null,null,null,null,null,null,null,null,null,null,null,null,null,null,null,null,null,null,null,null,null,null,null,null,null,null,null,null,null,null,null,null,null,null,null,null,null,null,null,6,"D4O21W1IBUDEJ9LV077JD8NI1","D5PZA7P4P41UIK3OMFFJ1TSE1","","0","","","","00","X","0","0","",""]
[null,null,null,null,null,null,null,null,null,null,null,null,null,null,null,null,null,null,null,null,null,null,null,null,null,null,null,null,null,null,null,null,null,null,null,null,null,null,null,null,null,null,null,null,null,null,null,null,null,null,null,null,null,null,null,null,null,null,null,null,null,null,null,null,null,null,null,null,null,null,null,null,null,null,null,null,null,null,null,null,null,null,null,null,null,null,null,null,null,null,null,null,null,null,null,null,null,null,null,null,null,null,null,null,null,null,null,null,null,null,null,null,null,null,null,null,null,null,null,null,null,null,null,null,null,null,null,null,null,null,6,"D4O21W1IBUFPL4L4YTIDKIUBD","D5PZA7P4P412TXRXAVZWZEE49","","","","","","00","X","0","0","",""]
[null,null,null,null,null,null,null,null,null,null,null,null,null,null,null,null,null,null,null,null,null,null,null,null,null,null,null,null,null,null,null,null,null,null,null,null,null,null,null,null,null,null,null,null,null,null,null,null,null,null,null,null,null,null,null,null,null,null,null,null,null,null,null,null,null,null,null,null,null,null,null,null,null,null,null,null,null,null,null,null,null,null,null,null,null,null,null,null,null,null,null,null,null,null,null,null,null,null,null,null,null,null,null,null,null,null,null,null,null,null,null,null,null,null,null,null,null,null,null,null,null,null,null,null,null,null,null,null,null,null,6,"D4O21W1IBUH8YD8NLWDLPDMUX","D5PZA7P4P48RO51IIAC1NOCU1","","","","","","00","X","0","0","",""]
[null,null,null,null,null,null,null,null,null,null,null,null,null,null,null,null,null,null,null,null,null,null,null,null,null,null,null,null,null,null,null,null,null,null,null,null,null,null,null,null,null,null,null,null,null,null,null,null,null,null,null,null,null,null,null,null,null,null,null,null,null,null,null,null,null,null,null,null,null,null,null,null,null,null,null,null,null,null,null,null,null,null,null,null,null,null,null,null,null,null,null,null,null,null,null,null,null,null,null,null,null,null,null,null,null,null,null,null,null,null,null,null,null,null,null,null,null,null,null,null,null,null,null,null,null,null,null,null,null,null,6,"D4O21W1IBUL3DGVG7LJO1IM7T","D5PZA7P4P4H86YMV183SEDPTL","","","","","","00","X","0","0","",""]
[null,null,null,null,null,null,null,null,null,null,null,null,null,null,null,null,null,null,null,null,null,null,null,null,null,null,null,null,null,null,null,null,null,null,null,null,null,null,null,null,null,null,null,null,null,null,null,null,null,null,null,null,null,null,null,null,null,null,null,null,null,null,null,null,null,null,null,null,null,null,null,null,null,null,null,null,null,null,null,null,null,null,null,null,null,null,null,null,null,null,null,null,null,null,null,null,null,null,null,null,null,null,null,null,null,null,null,null,null,null,null,null,null,null,null,null,null,null,null,null,null,null,null,null,null,null,null,null,null,null,6,"D4O21W1IBULV2377J4ZA3Y0HL","D5PZA7P4P4BUEMCJSG2HXDXX5","","0","","","","00","X","0","0","",""]
[null,null,null,null,null,null,null,null,null,null,null,null,null,null,null,null,null,null,null,null,null,null,null,null,null,null,null,null,null,null,null,null,null,null,null,null,null,null,null,null,null,null,null,null,null,null,null,null,null,null,null,null,null,null,null,null,null,null,null,null,null,null,null,null,null,null,null,null,null,null,null,null,null,null,null,null,null,null,null,null,null,null,null,null,null,null,null,null,null,null,null,null,null,null,null,null,null,null,null,null,null,null,null,null,null,null,null,null,null,null,null,null,null,null,null,null,null,null,null,null,null,null,null,null,null,null,null,null,null,null,6,"D4O21W1IBUO63Y6HHRA4B87AX","D5PZA7P4P4GGICB3POO6BYBJT","","","","","","00","X","0","0","",""]
[null,null,null,null,null,null,null,null,null,null,null,null,null,null,null,null,null,null,null,null,null,null,null,null,null,null,null,null,null,null,null,null,null,null,null,null,null,null,null,null,null,null,null,null,null,null,null,null,null,null,null,null,null,null,null,null,null,null,null,null,null,null,null,null,null,null,null,null,null,null,null,null,null,null,null,null,null,null,null,null,null,null,null,null,null,null,null,null,null,null,null,null,null,null,null,null,null,null,null,null,null,null,null,null,null,null,null,null,null,null,null,null,null,null,null,null,null,null,null,null,null,null,null,null,null,null,null,null,null,null,6,"D4O21W1IBUY600FCNRX36SCU1","D5PZA7P4P40B5BG5ZCKAWYZUH","","","","","","00","X","0","0","",""]
[null,null,null,null,null,null,null,null,null,null,null,null,null,null,null,null,null,null,null,null,null,null,null,null,null,null,null,null,null,null,null,null,null,null,null,null,null,null,null,null,null,null,null,null,null,null,null,null,null,null,null,null,null,null,null,null,null,null,null,null,null,null,null,null,null,null,null,null,null,null,null,null,null,null,null,null,null,null,null,null,null,null,null,null,null,null,null,null,null,null,null,null,null,null,null,null,null,null,null,null,null,null,null,null,null,null,null,null,null,null,null,null,null,null,null,null,null,null,null,null,null,null,null,null,null,null,null,null,null,null,6,"D4O21W1IBV18QHQDXXNJGHXX5","D5PZA7P4P4E5GHBTR2DC4O4QH","","","","","","00","X","0","0","",""]
[null,null,null,null,null,null,null,null,null,null,null,null,null,null,null,null,null,null,null,null,null,null,null,null,null,null,null,null,null,null,null,null,null,null,null,null,null,null,null,null,null,null,null,null,null,null,null,null,null,null,null,null,null,null,null,null,null,null,null,null,null,null,null,null,null,null,null,null,null,null,null,null,null,null,null,null,null,null,null,null,null,null,null,null,null,null,null,null,null,null,null,null,null,null,null,null,null,null,null,null,null,null,null,null,null,null,null,null,null,null,null,null,null,null,null,null,null,null,null,null,null,null,null,null,null,null,null,null,null,null,6,"D4O21W1IBV8XKOZZ5BZO4RWMX","D5PZA7P4P4BUEMCJSG2HXDXX5","","0","","","","00","X","0","0","",""]
[null,null,null,null,null,null,null,null,null,null,null,null,null,null,null,null,null,null,null,null,null,null,null,null,null,null,null,null,null,null,null,null,null,null,null,null,null,null,null,null,null,null,null,null,null,null,null,null,null,null,null,null,null,null,null,null,null,null,null,null,null,null,null,null,null,null,null,null,null,null,null,null,null,null,null,null,null,null,null,null,null,null,null,null,null,null,null,null,null,null,null,null,null,null,null,null,null,null,null,null,null,null,null,null,null,null,null,null,null,null,null,null,null,null,null,null,null,null,null,null,null,null,null,null,null,null,null,null,null,null,6,"DEN04FDC1K04NBJW47LA7T915","D5PZA7P4P4BUEMCJSG2HXDXX5","","0","","","","00","X","0","0","",""]
[null,null,null,null,null,null,null,null,null,null,null,null,null,null,null,null,null,null,null,null,null,null,null,null,null,null,null,null,null,null,null,null,null,null,null,null,null,null,null,null,null,null,null,null,null,null,null,null,null,null,null,null,null,null,null,null,null,null,null,null,null,null,null,null,null,null,null,null,null,null,null,null,null,null,null,null,null,null,null,null,null,null,null,null,null,null,null,null,null,null,null,null,null,null,null,null,null,null,null,null,null,null,null,null,null,null,null,null,null,null,null,null,null,null,null,null,null,null,null,null,null,null,null,null,null,null,null,null,null,null,6,"DEN07Y1DTSO2LFXI9VR7L0SMX","D5PZA7P4P40B5BG5ZCKAWYZUH","","0","","","","00","X","0","0","",""]
[null,null,null,null,null,null,null,null,null,null,null,null,null,null,null,null,null,null,null,null,null,null,null,null,null,null,null,null,null,null,null,null,null,null,null,null,null,null,null,null,null,null,null,null,null,null,null,null,null,null,null,null,null,null,null,null,null,null,null,null,null,null,null,null,null,null,null,null,null,null,null,null,null,null,null,null,null,null,null,null,null,null,null,null,null,null,null,null,null,null,null,null,null,null,null,null,null,null,null,null,null,null,null,null,null,null,null,null,null,null,null,null,null,null,null,null,null,null,null,null,null,null,null,null,null,null,null,null,null,null,6,"DEN07Y1DTSOUA299LF6TNG6WP","D5PZA7P4P44X91EPWL5ZBJDH5","","","","","","00","X","0","0","",""]
[null,null,null,null,null,null,null,null,null,null,null,null,null,null,null,null,null,null,null,null,null,null,null,null,null,null,null,null,null,null,null,null,null,null,null,null,null,null,null,null,null,null,null,null,null,null,null,null,null,null,null,null,null,null,null,null,null,null,null,null,null,null,null,null,null,null,null,null,null,null,null,null,null,null,null,null,null,null,null,null,null,null,null,null,null,null,null,null,null,null,null,null,null,null,null,null,null,null,null,null,null,null,null,null,null,null,null,null,null,null,null,null,null,null,null,null,null,null,null,null,null,null,null,null,null,null,null,null,null,null,6,"DEN07Y1DTSRX0JKAVKX9X5RZT","D5PZA7P4P478AWDZV7GTITKAH","","2","","","","00","X","0","0","",""]
[null,null,null,null,null,null,null,null,null,null,null,null,null,null,null,null,null,null,null,null,null,null,null,null,null,null,null,null,null,null,null,null,null,null,null,null,null,null,null,null,null,null,null,null,null,null,null,null,null,null,null,null,null,null,null,null,null,null,null,null,null,null,null,null,null,null,null,null,null,null,null,null,null,null,null,null,null,null,null,null,null,null,null,null,null,null,null,null,null,null,null,null,null,null,null,null,null,null,null,null,null,null,null,null,null,null,null,null,null,null,null,null,null,null,null,null,null,null,null,null,null,null,null,null,null,null,null,null,null,null,6,"DEN0OSIFULCZTDTFE8U7RBQIH","D5PZA7P4P48RO51IIAC1NOCU1","","","","","","00","X","0","0","",""]
[null,null,null,null,null,null,null,null,null,null,null,null,null,null,null,null,null,null,null,null,null,null,null,null,null,null,null,null,null,null,null,null,null,null,null,null,null,null,null,null,null,null,null,null,null,null,null,null,null,null,null,null,null,null,null,null,null,null,null,null,null,null,null,null,null,null,null,null,null,null,null,null,null,null,null,null,null,null,null,null,null,null,null,null,null,null,null,null,null,null,null,null,null,null,null,null,null,null,null,null,null,null,null,null,null,null,null,null,null,null,null,null,null,null,null,null,null,null,null,null,null,null,null,null,null,null,null,null,null,null,6,"DEN0OSIFULDRI056PS9TTR4S9","D5PZA7P4P4AB1DP15D79SJ5DL","","0","","","","00","X","0","0","",""]
[null,null,null,null,null,null,null,null,null,null,null,null,null,null,null,null,null,null,null,null,null,null,null,null,null,null,null,null,null,null,null,null,null,null,null,null,null,null,null,null,null,null,null,null,null,null,null,null,null,null,null,null,null,null,null,null,null,null,null,null,null,null,null,null,null,null,null,null,null,null,null,null,null,null,null,null,null,null,null,null,null,null,null,null,null,null,null,null,null,null,null,null,null,null,null,null,null,null,null,null,null,null,null,null,null,null,null,null,null,null,null,null,null,null,null,null,null,null,null,null,null,null,null,null,null,null,null,null,null,null,5,"D4O21W1IBUDEJ9LV077JD8NI1","D5PZA7P4P41UIK3OMFFJ1TSE1","","0","","","","00","X","0","0","",""]
[null,null,null,null,null,null,null,null,null,null,null,null,null,null,null,null,null,null,null,null,null,null,null,null,null,null,null,null,null,null,null,null,null,null,null,null,null,null,null,null,null,null,null,null,null,null,null,null,null,null,null,null,null,null,null,null,null,null,null,null,null,null,null,null,null,null,null,null,null,null,null,null,null,null,null,null,null,null,null,null,null,null,null,null,null,null,null,null,null,null,null,null,null,null,null,null,null,null,null,null,null,null,null,null,null,null,null,null,null,null,null,null,null,null,null,null,null,null,null,null,null,null,null,null,null,null,null,null,null,null,5,"D4O21W1IBUFPL4L4YTIDKIUBD","D5PZA7P4P4H86YMV183SEDPTL","","","","","","00","X","0","0","",""]
[null,null,null,null,null,null,null,null,null,null,null,null,null,null,null,null,null,null,null,null,null,null,null,null,null,null,null,null,null,null,null,null,null,null,null,null,null,null,null,null,null,null,null,null,null,null,null,null,null,null,null,null,null,null,null,null,null,null,null,null,null,null,null,null,null,null,null,null,null,null,null,null,null,null,null,null,null,null,null,null,null,null,null,null,null,null,null,null,null,null,null,null,null,null,null,null,null,null,null,null,null,null,null,null,null,null,null,null,null,null,null,null,null,null,null,null,null,null,null,null,null,null,null,null,null,null,null,null,null,null,5,"D4O21W1IBUGH9QWWACXZMY8L5","D5PZAGQNPNJN6QK9OBJM8YLMH","","","","","","00","X","0","0","",""]
[null,null,null,null,null,null,null,null,null,null,null,null,null,null,null,null,null,null,null,null,null,null,null,null,null,null,null,null,null,null,null,null,null,null,null,null,null,null,null,null,null,null,null,null,null,null,null,null,null,null,null,null,null,null,null,null,null,null,null,null,null,null,null,null,null,null,null,null,null,null,null,null,null,null,null,null,null,null,null,null,null,null,null,null,null,null,null,null,null,null,null,null,null,null,null,null,null,null,null,null,null,null,null,null,null,null,null,null,null,null,null,null,null,null,null,null,null,null,null,null,null,null,null,null,null,null,null,null,null,null,5,"D4O21W1IBUL3DGVG7LJO1IM7T","D5PZA7P4P4AB1DP15D79SJ5DL","","0","","","","00","X","0","0","",""]
[null,null,null,null,null,null,null,null,null,null,null,null,null,null,null,null,null,null,null,null,null,null,null,null,null,null,null,null,null,null,null,null,null,null,null,null,null,null,null,null,null,null,null,null,null,null,null,null,null,null,null,null,null,null,null,null,null,null,null,null,null,null,null,null,null,null,null,null,null,null,null,null,null,null,null,null,null,null,null,null,null,null,null,null,null,null,null,null,null,null,null,null,null,null,null,null,null,null,null,null,null,null,null,null,null,null,null,null,null,null,null,null,null,null,null,null,null,null,null,null,null,null,null,null,null,null,null,null,null,null,5,"D4O21W1IBUMMQPIYUOEW6DERD","D5PZA7P4P4FOTPZCE58K9IXA1","","2","","","","00","X","0","0","",""]
[null,null,null,null,null,null,null,null,null,null,null,null,null,null,null,null,null,null,null,null,null,null,null,null,null,null,null,null,null,null,null,null,null,null,null,null,null,null,null,null,null,null,null,null,null,null,null,null,null,null,null,null,null,null,null,null,null,null,null,null,null,null,null,null,null,null,null,null,null,null,null,null,null,null,null,null,null,null,null,null,null,null,null,null,null,null,null,null,null,null,null,null,null,null,null,null,null,null,null,null,null,null,null,null,null,null,null,null,null,null,null,null,null,null,null,null,null,null,null,null,null,null,null,null,null,null,null,null,null,null,5,"D4O21W1IBUWMMRRU0P1V1XKAH","D5PZA7P4P4H86YMV183SEDPTL","","0","","","","00","X","0","0","",""]
[null,null,null,null,null,null,null,null,null,null,null,null,null,null,null,null,null,null,null,null,null,null,null,null,null,null,null,null,null,null,null,null,null,null,null,null,null,null,null,null,null,null,null,null,null,null,null,null,null,null,null,null,null,null,null,null,null,null,null,null,null,null,null,null,null,null,null,null,null,null,null,null,null,null,null,null,null,null,null,null,null,null,null,null,null,null,null,null,null,null,null,null,null,null,null,null,null,null,null,null,null,null,null,null,null,null,null,null,null,null,null,null,null,null,null,null,null,null,null,null,null,null,null,null,null,null,null,null,null,null,5,"D4O21W1IBUXEBE3LC8HH4CYK9","D5PZA7P4P4EX53NL2LSY73J09","","0","","","","00","X","0","0","",""]
[null,null,null,null,null,null,null,null,null,null,null,null,null,null,null,null,null,null,null,null,null,null,null,null,null,null,null,null,null,null,null,null,null,null,null,null,null,null,null,null,null,null,null,null,null,null,null,null,null,null,null,null,null,null,null,null,null,null,null,null,null,null,null,null,null,null,null,null,null,null,null,null,null,null,null,null,null,null,null,null,null,null,null,null,null,null,null,null,null,null,null,null,null,null,null,null,null,null,null,null,null,null,null,null,null,null,null,null,null,null,null,null,null,null,null,null,null,null,null,null,null,null,null,null,null,null,null,null,null,null,5,"D4O21W1IBV18QHQDXXNJGHXX5","D5PZA7P4P41UIK3OMFFJ1TSE1","","0","","","","00","X","0","0","",""]
[null,null,null,null,null,null,null,null,null,null,null,null,null,null,null,null,null,null,null,null,null,null,null,null,null,null,null,null,null,null,null,null,null,null,null,null,null,null,null,null,null,null,null,null,null,null,null,null,null,null,null,null,null,null,null,null,null,null,null,null,null,null,null,null,null,null,null,null,null,null,null,null,null,null,null,null,null,null,null,null,null,null,null,null,null,null,null,null,null,null,null,null,null,null,null,null,null,null,null,null,null,null,null,null,null,null,null,null,null,null,null,null,null,null,null,null,null,null,null,null,null,null,null,null,null,null,null,null,null,null,5,"DEMAFDB5LZ4S252XBVM7GJP4P","D5PZA7P4P4CM38OB3ZI3ZTC6X","","0","","","","00","X","0","0","",""]
[null,null,null,null,null,null,null,null,null,null,null,null,null,null,null,null,null,null,null,null,null,null,null,null,null,null,null,null,null,null,null,null,null,null,null,null,null,null,null,null,null,null,null,null,null,null,null,null,null,null,null,null,null,null,null,null,null,null,null,null,null,null,null,null,null,null,null,null,null,null,null,null,null,null,null,null,null,null,null,null,null,null,null,null,null,null,null,null,null,null,null,null,null,null,null,null,null,null,null,null,null,null,null,null,null,null,null,null,null,null,null,null,null,null,null,null,null,null,null,null,null,null,null,null,null,null,null,null,null,null,5,"DEN04FDC1K04NBJW47LA7T915","D5PZA7P4P48RO51IIAC1NOCU1","","","","","","00","X","0","0","",""]
[null,null,null,null,null,null,null,null,null,null,null,null,null,null,null,null,null,null,null,null,null,null,null,null,null,null,null,null,null,null,null,null,null,null,null,null,null,null,null,null,null,null,null,null,null,null,null,null,null,null,null,null,null,null,null,null,null,null,null,null,null,null,null,null,null,null,null,null,null,null,null,null,null,null,null,null,null,null,null,null,null,null,null,null,null,null,null,null,null,null,null,null,null,null,null,null,null,null,null,null,null,null,null,null,null,null,null,null,null,null,null,null,null,null,null,null,null,null,null,null,null,null,null,null,null,null,null,null,null,null,5,"DEN07Y1DTSO2LFXI9VR7L0SMX","D5PZA7P4P4AB1DP15D79SJ5DL","","0","","","","00","X","0","0","",""]
[null,null,null,null,null,null,null,null,null,null,null,null,null,null,null,null,null,null,null,null,null,null,null,null,null,null,null,null,null,null,null,null,null,null,null,null,null,null,null,null,null,null,null,null,null,null,null,null,null,null,null,null,null,null,null,null,null,null,null,null,null,null,null,null,null,null,null,null,null,null,null,null,null,null,null,null,null,null,null,null,null,null,null,null,null,null,null,null,null,null,null,null,null,null,null,null,null,null,null,null,null,null,null,null,null,null,null,null,null,null,null,null,null,null,null,null,null,null,null,null,null,null,null,null,null,null,null,null,null,null,5,"DEN07Y1DTSPLYOL0WYMFPVL6H","D5PZA7P4P41UIK3OMFFJ1TSE1","","0","","","","00","X","0","0","",""]
[null,null,null,null,null,null,null,null,null,null,null,null,null,null,null,null,null,null,null,null,null,null,null,null,null,null,null,null,null,null,null,null,null,null,null,null,null,null,null,null,null,null,null,null,null,null,null,null,null,null,null,null,null,null,null,null,null,null,null,null,null,null,null,null,null,null,null,null,null,null,null,null,null,null,null,null,null,null,null,null,null,null,null,null,null,null,null,null,null,null,null,null,null,null,null,null,null,null,null,null,null,null,null,null,null,null,null,null,null,null,null,null,null,null,null,null,null,null,null,null,null,null,null,null,null,null,null,null,null,null,5,"DEN07Y1DTSRX0JKAVKX9X5RZT","D5PZA7P4P47ZZIPR6QWFL8YK9","","","","","","00","X","0","0","",""]
[null,null,null,null,null,null,null,null,null,null,null,null,null,null,null,null,null,null,null,null,null,null,null,null,null,null,null,null,null,null,null,null,null,null,null,null,null,null,null,null,null,null,null,null,null,null,null,null,null,null,null,null,null,null,null,null,null,null,null,null,null,null,null,null,null,null,null,null,null,null,null,null,null,null,null,null,null,null,null,null,null,null,null,null,null,null,null,null,null,null,null,null,null,null,null,null,null,null,null,null,null,null,null,null,null,null,null,null,null,null,null,null,null,null,null,null,null,null,null,null,null,null,null,null,null,null,null,null,null,null,5,"DEN0OSIFULCZTDTFE8U7RBQIH","D5PZA7P4P48RO51IIAC1NOCU1","","","","","","00","X","0","0","",""]
[null,null,null,null,null,null,null,null,null,null,null,null,null,null,null,null,null,null,null,null,null,null,null,null,null,null,null,null,null,null,null,null,null,null,null,null,null,null,null,null,null,null,null,null,null,null,null,null,null,null,null,null,null,null,null,null,null,null,null,null,null,null,null,null,null,null,null,null,null,null,null,null,null,null,null,null,null,null,null,null,null,null,null,null,null,null,null,null,null,null,null,null,null,null,null,null,null,null,null,null,null,null,null,null,null,null,null,null,null,null,null,null,null,null,null,null,null,null,null,null,null,null,null,null,null,null,null,null,null,null,4,"D4O21W1IBUDEJ9LV077JD8NI1","D5PZA7P4P45OXNQH84LLDYRQX","","","","","","00","X","0","0","",""]
[null,null,null,null,null,null,null,null,null,null,null,null,null,null,null,null,null,null,null,null,null,null,null,null,null,null,null,null,null,null,null,null,null,null,null,null,null,null,null,null,null,null,null,null,null,null,null,null,null,null,null,null,null,null,null,null,null,null,null,null,null,null,null,null,null,null,null,null,null,null,null,null,null,null,null,null,null,null,null,null,null,null,null,null,null,null,null,null,null,null,null,null,null,null,null,null,null,null,null,null,null,null,null,null,null,null,null,null,null,null,null,null,null,null,null,null,null,null,null,null,null,null,null,null,null,null,null,null,null,null,4,"D4O21W1IBUDEJ9LV077JD8NI1","D5PZA7P4P4BUEMCJSG2HXDXX5","","0","","","","00","X","0","0","",""]
[null,null,null,null,null,null,null,null,null,null,null,null,null,null,null,null,null,null,null,null,null,null,null,null,null,null,null,null,null,null,null,null,null,null,null,null,null,null,null,null,null,null,null,null,null,null,null,null,null,null,null,null,null,null,null,null,null,null,null,null,null,null,null,null,null,null,null,null,null,null,null,null,null,null,null,null,null,null,null,null,null,null,null,null,null,null,null,null,null,null,null,null,null,null,null,null,null,null,null,null,null,null,null,null,null,null,null,null,null,null,null,null,null,null,null,null,null,null,null,null,null,null,null,null,null,null,null,null,null,null,4,"D4O21W1IBUGH9QWWACXZMY8L5","D5PZA7P4P44X91EPWL5ZBJDH5","","","","","","00","X","0","0","",""]
[null,null,null,null,null,null,null,null,null,null,null,null,null,null,null,null,null,null,null,null,null,null,null,null,null,null,null,null,null,null,null,null,null,null,null,null,null,null,null,null,null,null,null,null,null,null,null,null,null,null,null,null,null,null,null,null,null,null,null,null,null,null,null,null,null,null,null,null,null,null,null,null,null,null,null,null,null,null,null,null,null,null,null,null,null,null,null,null,null,null,null,null,null,null,null,null,null,null,null,null,null,null,null,null,null,null,null,null,null,null,null,null,null,null,null,null,null,null,null,null,null,null,null,null,null,null,null,null,null,null,4,"D4O21W1IBUKBOUJOW241Z37Y1","D5PZA7P4P40B5BG5ZCKAWYZUH","","","","","","00","X","0","0","",""]
[null,null,null,null,null,null,null,null,null,null,null,null,null,null,null,null,null,null,null,null,null,null,null,null,null,null,null,null,null,null,null,null,null,null,null,null,null,null,null,null,null,null,null,null,null,null,null,null,null,null,null,null,null,null,null,null,null,null,null,null,null,null,null,null,null,null,null,null,null,null,null,null,null,null,null,null,null,null,null,null,null,null,null,null,null,null,null,null,null,null,null,null,null,null,null,null,null,null,null,null,null,null,null,null,null,null,null,null,null,null,null,null,null,null,null,null,null,null,null,null,null,null,null,null,null,null,null,null,null,null,4,"D4O21W1IBUMMQPIYUOEW6DERD","D5PZA7P4P42M76FFXYV5496NT","","0","","","","00","X","0","0","",""]
[null,null,null,null,null,null,null,null,null,null,null,null,null,null,null,null,null,null,null,null,null,null,null,null,null,null,null,null,null,null,null,null,null,null,null,null,null,null,null,null,null,null,null,null,null,null,null,null,null,null,null,null,null,null,null,null,null,null,null,null,null,null,null,null,null,null,null,null,null,null,null,null,null,null,null,null,null,null,null,null,null,null,null,null,null,null,null,null,null,null,null,null,null,null,null,null,null,null,null,null,null,null,null,null,null,null,null,null,null,null,null,null,null,null,null,null,null,null,null,null,null,null,null,null,null,null,null,null,null,null,4,"D4O21W1IBUMMQPIYUOEW6DERD","D5PZA7P4P4BUEMCJSG2HXDXX5","","0","","","","00","X","0","0","",""]
[null,null,null,null,null,null,null,null,null,null,null,null,null,null,null,null,null,null,null,null,null,null,null,null,null,null,null,null,null,null,null,null,null,null,null,null,null,null,null,null,null,null,null,null,null,null,null,null,null,null,null,null,null,null,null,null,null,null,null,null,null,null,null,null,null,null,null,null,null,null,null,null,null,null,null,null,null,null,null,null,null,null,null,null,null,null,null,null,null,null,null,null,null,null,null,null,null,null,null,null,null,null,null,null,null,null,null,null,null,null,null,null,null,null,null,null,null,null,null,null,null,null,null,null,null,null,null,null,null,null,4,"D4O21W1IBUO63Y6HHRA4B87AX","D5PZA7P4P4E5GHBTR2DC4O4QH","","","","","","00","X","0","0","",""]
[null,null,null,null,null,null,null,null,null,null,null,null,null,null,null,null,null,null,null,null,null,null,null,null,null,null,null,null,null,null,null,null,null,null,null,null,null,null,null,null,null,null,null,null,null,null,null,null,null,null,null,null,null,null,null,null,null,null,null,null,null,null,null,null,null,null,null,null,null,null,null,null,null,null,null,null,null,null,null,null,null,null,null,null,null,null,null,null,null,null,null,null,null,null,null,null,null,null,null,null,null,null,null,null,null,null,null,null,null,null,null,null,null,null,null,null,null,null,null,null,null,null,null,null,null,null,null,null,null,null,4,"D4O21W1IBV0H1VEMME7XE2JND","D5PZA7P4P40B5BG5ZCKAWYZUH","","","","","","00","X","0","0","",""]
[null,null,null,null,null,null,null,null,null,null,null,null,null,null,null,null,null,null,null,null,null,null,null,null,null,null,null,null,null,null,null,null,null,null,null,null,null,null,null,null,null,null,null,null,null,null,null,null,null,null,null,null,null,null,null,null,null,null,null,null,null,null,null,null,null,null,null,null,null,null,null,null,null,null,null,null,null,null,null,null,null,null,null,null,null,null,null,null,null,null,null,null,null,null,null,null,null,null,null,null,null,null,null,null,null,null,null,null,null,null,null,null,null,null,null,null,null,null,null,null,null,null,null,null,null,null,null,null,null,null,4,"D4O21W1IBV18QHQDXXNJGHXX5","D5PZA7P4P4BUEMCJSG2HXDXX5","","0","","","","00","X","0","0","",""]
[null,null,null,null,null,null,null,null,null,null,null,null,null,null,null,null,null,null,null,null,null,null,null,null,null,null,null,null,null,null,null,null,null,null,null,null,null,null,null,null,null,null,null,null,null,null,null,null,null,null,null,null,null,null,null,null,null,null,null,null,null,null,null,null,null,null,null,null,null,null,null,null,null,null,null,null,null,null,null,null,null,null,null,null,null,null,null,null,null,null,null,null,null,null,null,null,null,null,null,null,null,null,null,null,null,null,null,null,null,null,null,null,null,null,null,null,null,null,null,null,null,null,null,null,null,null,null,null,null,null,4,"DEN03PYIT5FSSAA2U7ST53H15","D5PZA7P4P478AWDZV7GTITKAH","","2","","","","00","X","0","0","",""]
[null,null,null,null,null,null,null,null,null,null,null,null,null,null,null,null,null,null,null,null,null,null,null,null,null,null,null,null,null,null,null,null,null,null,null,null,null,null,null,null,null,null,null,null,null,null,null,null,null,null,null,null,null,null,null,null,null,null,null,null,null,null,null,null,null,null,null,null,null,null,null,null,null,null,null,null,null,null,null,null,null,null,null,null,null,null,null,null,null,null,null,null,null,null,null,null,null,null,null,null,null,null,null,null,null,null,null,null,null,null,null,null,null,null,null,null,null,null,null,null,null,null,null,null,null,null,null,null,null,null,4,"DEN03PYIT5FSSAA2U7ST53H15","D5PZA7P4P4B2Q00SGWMVUYJND","","0","","","","00","X","0","0","",""]
[null,null,null,null,null,null,null,null,null,null,null,null,null,null,null,null,null,null,null,null,null,null,null,null,null,null,null,null,null,null,null,null,null,null,null,null,null,null,null,null,null,null,null,null,null,null,null,null,null,null,null,null,null,null,null,null,null,null,null,null,null,null,null,null,null,null,null,null,null,null,null,null,null,null,null,null,null,null,null,null,null,null,null,null,null,null,null,null,null,null,null,null,null,null,null,null,null,null,null,null,null,null,null,null,null,null,null,null,null,null,null,null,null,null,null,null,null,null,null,null,null,null,null,null,null,null,null,null,null,null,4,"DEN07Y1DTSO2LFXI9VR7L0SMX","D5PZA7P4P4AB1DP15D79SJ5DL","","0","","","","00","X","0","0","",""]
[null,null,null,null,null,null,null,null,null,null,null,null,null,null,null,null,null,null,null,null,null,null,null,null,null,null,null,null,null,null,null,null,null,null,null,null,null,null,null,null,null,null,null,null,null,null,null,null,null,null,null,null,null,null,null,null,null,null,null,null,null,null,null,null,null,null,null,null,null,null,null,null,null,null,null,null,null,null,null,null,null,null,null,null,null,null,null,null,null,null,null,null,null,null,null,null,null,null,null,null,null,null,null,null,null,null,null,null,null,null,null,null,null,null,null,null,null,null,null,null,null,null,null,null,null,null,null,null,null,null,4,"DEN07Y1DTSPLYOL0WYMFPVL6H","D5PZA7P4P48RO51IIAC1NOCU1","","0","","","","00","X","0","0","",""]
[null,null,null,null,null,null,null,null,null,null,null,null,null,null,null,null,null,null,null,null,null,null,null,null,null,null,null,null,null,null,null,null,null,null,null,null,null,null,null,null,null,null,null,null,null,null,null,null,null,null,null,null,null,null,null,null,null,null,null,null,null,null,null,null,null,null,null,null,null,null,null,null,null,null,null,null,null,null,null,null,null,null,null,null,null,null,null,null,null,null,null,null,null,null,null,null,null,null,null,null,null,null,null,null,null,null,null,null,null,null,null,null,null,null,null,null,null,null,null,null,null,null,null,null,null,null,null,null,null,null,4,"DEN07Y1DTSSOP5W274CVZL69L","D5PZA7P4P478AWDZV7GTITKAH","","2","","","","00","X","0","0","",""]
[null,null,null,null,null,null,null,null,null,null,null,null,null,null,null,null,null,null,null,null,null,null,null,null,null,null,null,null,null,null,null,null,null,null,null,null,null,null,null,null,null,null,null,null,null,null,null,null,null,null,null,null,null,null,null,null,null,null,null,null,null,null,null,null,null,null,null,null,null,null,null,null,null,null,null,null,null,null,null,null,null,null,null,null,null,null,null,null,null,null,null,null,null,null,null,null,null,null,null,null,null,null,null,null,null,null,null,null,null,null,null,null,null,null,null,null,null,null,null,null,null,null,null,null,null,null,null,null,null,null,4,"DEN0OSIFULCZTDTFE8U7RBQIH","D5PZA7P4P46GMA28JO17GE60P","","0","","","","00","X","0","0","",""]
[null,null,null,null,null,null,null,null,null,null,null,null,null,null,null,null,null,null,null,null,null,null,null,null,null,null,null,null,null,null,null,null,null,null,null,null,null,null,null,null,null,null,null,null,null,null,null,null,null,null,null,null,null,null,null,null,null,null,null,null,null,null,null,null,null,null,null,null,null,null,null,null,null,null,null,null,null,null,null,null,null,null,null,null,null,null,null,null,null,null,null,null,null,null,null,null,null,null,null,null,null,null,null,null,null,null,null,null,null,null,null,null,null,null,null,null,null,null,null,null,null,null,null,null,null,null,null,null,null,null,4,"DEN0OSIFULDRI056PS9TTR4S9","D5PZA7P4P4DDRV02FIXQ28QGP","","","","","","00","X","0","0","",""]
[null,null,null,null,null,null,null,null,null,null,null,null,null,null,null,null,null,null,null,null,null,null,null,null,null,null,null,null,null,null,null,null,null,null,null,null,null,null,null,null,null,null,null,null,null,null,null,null,null,null,null,null,null,null,null,null,null,null,null,null,null,null,null,null,null,null,null,null,null,null,null,null,null,null,null,null,null,null,null,null,null,null,null,null,null,null,null,null,null,null,null,null,null,null,null,null,null,null,null,null,null,null,null,null,null,null,null,null,null,null,null,null,null,null,null,null,null,null,null,null,null,null,null,null,null,null,null,null,null,null,4,"DEN0OSIFULDRI056PS9TTR4S9","D5PZA7P4P4E5GHBTR2DC4O4QH","","","","","","00","X","0","0","",""]
[null,null,null,null,null,null,null,null,null,null,null,null,null,null,null,null,null,null,null,null,null,null,null,null,null,null,null,null,null,null,null,null,null,null,null,null,null,null,null,null,null,null,null,null,null,null,null,null,null,null,null,null,null,null,null,null,null,null,null,null,null,null,null,null,null,null,null,null,null,null,null,null,null,null,null,null,null,null,null,null,null,null,null,null,null,null,null,null,null,null,null,null,null,null,null,null,null,null,null,null,null,null,null,null,null,null,null,null,null,null,null,null,null,null,null,null,null,null,null,null,null,null,null,null,null,null,null,null,null,null,4,"DEN0OSIFULDRI056PS9TTR4S9","D5PZA7P4P4EX53NL2LSY73J09","","0","","","","00","X","0","0","",""]
[null,null,null,null,null,null,null,null,null,null,null,null,null,null,null,null,null,null,null,null,null,null,null,null,null,null,null,null,null,null,null,null,null,null,null,null,null,null,null,null,null,null,null,null,null,null,null,null,null,null,null,null,null,null,null,null,null,null,null,null,null,null,null,null,null,null,null,null,null,null,null,null,null,null,null,null,null,null,null,null,null,null,null,null,null,null,null,null,null,null,null,null,null,null,null,null,null,null,null,null,null,null,null,null,null,null,null,null,null,null,null,null,null,null,null,null,null,null,null,null,null,null,null,null,null,null,null,null,null,null,4,"DEN0OSIFULDRI056PS9TTR4S9","D5PZA7P4P4FOTPZCE58K9IXA1","","2","","","","00","X","0","0","",""]
[null,null,null,null,null,null,null,null,null,null,null,null,null,null,null,null,null,null,null,null,null,null,null,null,null,null,null,null,null,null,null,null,null,null,null,null,null,null,null,null,null,null,null,null,null,null,null,null,null,null,null,null,null,null,null,null,null,null,null,null,null,null,null,null,null,null,null,null,null,null,null,null,null,null,null,null,null,null,null,null,null,null,null,null,null,null,null,null,null,null,null,null,null,null,null,null,null,null,null,null,null,null,null,null,null,null,null,null,null,null,null,null,null,null,null,null,null,null,null,null,null,null,null,null,null,null,null,null,null,null,4,"DEN0OSIFULDRI056PS9TTR4S9","D5PZA7P4P4GGICB3POO6BYBJT","","","","","","00","X","0","0","",""]
[null,null,null,null,null,null,null,null,null,null,null,null,null,null,null,null,null,null,null,null,null,null,null,null,null,null,null,null,null,null,null,null,null,null,null,null,null,null,null,null,null,null,null,null,null,null,null,null,null,null,null,null,null,null,null,null,null,null,null,null,null,null,null,null,null,null,null,null,null,null,null,null,null,null,null,null,null,null,null,null,null,null,null,null,null,null,null,null,null,null,null,null,null,null,null,null,null,null,null,null,null,null,null,null,null,null,null,null,null,null,null,null,null,null,null,null,null,null,null,null,null,null,null,null,null,null,null,null,null,null,4,"DEN0OSIFULDRI056PS9TTR4S9","D5PZA7P4P4H86YMV183SEDPTL","","","","","","00","X","0","0","",""]
[null,null,null,null,null,null,null,null,null,null,null,null,null,null,null,null,null,null,null,null,null,null,null,null,null,null,null,null,null,null,null,null,null,null,null,null,null,null,null,null,null,null,null,null,null,null,null,null,null,null,null,null,null,null,null,null,null,null,null,null,null,null,null,null,null,null,null,null,null,null,null,null,null,null,null,null,null,null,null,null,null,null,null,null,null,null,null,null,null,null,null,null,null,null,null,null,null,null,null,null,null,null,null,null,null,null,null,null,null,null,null,null,null,null,null,null,null,null,null,null,null,null,null,null,null,null,null,null,null,null,4,"DEN0OSIFULDRI056PS9TTR4S9","D5PZAGQNPNJN6QK9OBJM8YLMH","","","","","","00","X","0","0","",""]
[null,null,null,null,null,null,null,null,null,null,null,null,null,null,null,null,null,null,null,null,null,null,null,null,null,null,null,null,null,null,null,null,null,null,null,null,null,null,null,null,null,null,null,null,null,null,null,null,null,null,null,null,null,null,null,null,null,null,null,null,null,null,null,null,null,null,null,null,null,null,null,null,null,null,null,null,null,null,null,null,null,null,null,null,null,null,null,null,null,null,null,null,null,null,null,null,null,null,null,null,null,null,null,null,null,null,null,null,null,null,null,null,null,null,null,null,null,null,null,null,null,null,null,null,null,null,null,null,null,null,4,"DEN0OSIFULEJ6MGY1BPFW6J21","D5PZA7P4P40B5BG5ZCKAWYZUH","","","","","","00","X","0","0","",""]
[null,null,null,null,null,null,null,null,null,null,null,null,null,null,null,null,null,null,null,null,null,null,null,null,null,null,null,null,null,null,null,null,null,null,null,null,null,null,null,null,null,null,null,null,null,null,null,null,null,null,null,null,null,null,null,null,null,null,null,null,null,null,null,null,null,null,null,null,null,null,null,null,null,null,null,null,null,null,null,null,null,null,null,null,null,null,null,null,null,null,null,null,null,null,null,null,null,null,null,null,null,null,null,null,null,null,null,null,null,null,null,null,null,null,null,null,null,null,null,null,null,null,null,null,null,null,null,null,null,null,4,"DEN0OSIFULEJ6MGY1BPFW6J21","D5PZA7P4P412TXRXAVZWZEE49","","","","","","00","X","0","0","",""]
[null,null,null,null,null,null,null,null,null,null,null,null,null,null,null,null,null,null,null,null,null,null,null,null,null,null,null,null,null,null,null,null,null,null,null,null,null,null,null,null,null,null,null,null,null,null,null,null,null,null,null,null,null,null,null,null,null,null,null,null,null,null,null,null,null,null,null,null,null,null,null,null,null,null,null,null,null,null,null,null,null,null,null,null,null,null,null,null,null,null,null,null,null,null,null,null,null,null,null,null,null,null,null,null,null,null,null,null,null,null,null,null,null,null,null,null,null,null,null,null,null,null,null,null,null,null,null,null,null,null,4,"DEN0OSIFULEJ6MGY1BPFW6J21","D5PZA7P4P41UIK3OMFFJ1TSE1","","0","","","","00","X","0","0","",""]
[null,null,null,null,null,null,null,null,null,null,null,null,null,null,null,null,null,null,null,null,null,null,null,null,null,null,null,null,null,null,null,null,null,null,null,null,null,null,null,null,null,null,null,null,null,null,null,null,null,null,null,null,null,null,null,null,null,null,null,null,null,null,null,null,null,null,null,null,null,null,null,null,null,null,null,null,null,null,null,null,null,null,null,null,null,null,null,null,null,null,null,null,null,null,null,null,null,null,null,null,null,null,null,null,null,null,null,null,null,null,null,null,null,null,null,null,null,null,null,null,null,null,null,null,null,null,null,null,null,null,4,"DEN0OSIFULEJ6MGY1BPFW6J21","D5PZA7P4P42M76FFXYV5496NT","","0","","","","00","X","0","0","",""]
[null,null,null,null,null,null,null,null,null,null,null,null,null,null,null,null,null,null,null,null,null,null,null,null,null,null,null,null,null,null,null,null,null,null,null,null,null,null,null,null,null,null,null,null,null,null,null,null,null,null,null,null,null,null,null,null,null,null,null,null,null,null,null,null,null,null,null,null,null,null,null,null,null,null,null,null,null,null,null,null,null,null,null,null,null,null,null,null,null,null,null,null,null,null,null,null,null,null,null,null,null,null,null,null,null,null,null,null,null,null,null,null,null,null,null,null,null,null,null,null,null,null,null,null,null,null,null,null,null,null,4,"DEN0OSIFULEJ6MGY1BPFW6J21","D5PZA7P4P43DVSR79IAR6OKXL","","0","","","","00","X","0","0","",""]
[null,null,null,null,null,null,null,null,null,null,null,null,null,null,null,null,null,null,null,null,null,null,null,null,null,null,null,null,null,null,null,null,null,null,null,null,null,null,null,null,null,null,null,null,null,null,null,null,null,null,null,null,null,null,null,null,null,null,null,null,null,null,null,null,null,null,null,null,null,null,null,null,null,null,null,null,null,null,null,null,null,null,null,null,null,null,null,null,null,null,null,null,null,null,null,null,null,null,null,null,null,null,null,null,null,null,null,null,null,null,null,null,null,null,null,null,null,null,null,null,null,null,null,null,null,null,null,null,null,null,4,"DEN0OSIFULEJ6MGY1BPFW6J21","D5PZA7P4P445KF2YL1QD93Z7D","","0","","","","00","X","0","0","",""]
[null,null,null,null,null,null,null,null,null,null,null,null,null,null,null,null,null,null,null,null,null,null,null,null,null,null,null,null,null,null,null,null,null,null,null,null,null,null,null,null,null,null,null,null,null,null,null,null,null,null,null,null,null,null,null,null,null,null,null,null,null,null,null,null,null,null,null,null,null,null,null,null,null,null,null,null,null,null,null,null,null,null,null,null,null,null,null,null,null,null,null,null,null,null,null,null,null,null,null,null,null,null,null,null,null,null,null,null,null,null,null,null,null,null,null,null,null,null,null,null,null,null,null,null,null,null,null,null,null,null,4,"DEN0OSIFULEJ6MGY1BPFW6J21","D5PZA7P4P44X91EPWL5ZBJDH5","","","","","","00","X","0","0","",""]
[null,null,null,null,null,null,null,null,null,null,null,null,null,null,null,null,null,null,null,null,null,null,null,null,null,null,null,null,null,null,null,null,null,null,null,null,null,null,null,null,null,null,null,null,null,null,null,null,null,null,null,null,null,null,null,null,null,null,null,null,null,null,null,null,null,null,null,null,null,null,null,null,null,null,null,null,null,null,null,null,null,null,null,null,null,null,null,null,null,null,null,null,null,null,null,null,null,null,null,null,null,null,null,null,null,null,null,null,null,null,null,null,null,null,null,null,null,null,null,null,null,null,null,null,null,null,null,null,null,null,4,"DEN0OSIFULEJ6MGY1BPFW6J21","D5PZA7P4P45OXNQH84LLDYRQX","","","","","","00","X","0","0","",""]
[null,null,null,null,null,null,null,null,null,null,null,null,null,null,null,null,null,null,null,null,null,null,null,null,null,null,null,null,null,null,null,null,null,null,null,null,null,null,null,null,null,null,null,null,null,null,null,null,null,null,null,null,null,null,null,null,null,null,null,null,null,null,null,null,null,null,null,null,null,null,null,null,null,null,null,null,null,null,null,null,null,null,null,null,null,null,null,null,null,null,null,null,null,null,null,null,null,null,null,null,null,null,null,null,null,null,null,null,null,null,null,null,null,null,null,null,null,null,null,null,null,null,null,null,null,null,null,null,null,null,4,"DEN0OSIFULEJ6MGY1BPFW6J21","D5PZA7P4P46GMA28JO17GE60P","","0","","","","00","X","0","0","",""]
[null,null,null,null,null,null,null,null,null,null,null,null,null,null,null,null,null,null,null,null,null,null,null,null,null,null,null,null,null,null,null,null,null,null,null,null,null,null,null,null,null,null,null,null,null,null,null,null,null,null,null,null,null,null,null,null,null,null,null,null,null,null,null,null,null,null,null,null,null,null,null,null,null,null,null,null,null,null,null,null,null,null,null,null,null,null,null,null,null,null,null,null,null,null,null,null,null,null,null,null,null,null,null,null,null,null,null,null,null,null,null,null,null,null,null,null,null,null,null,null,null,null,null,null,null,null,null,null,null,null,4,"DEN0OSIFULEJ6MGY1BPFW6J21","D5PZA7P4P478AWDZV7GTITKAH","","2","","","","00","X","0","0","",""]
[null,null,null,null,null,null,null,null,null,null,null,null,null,null,null,null,null,null,null,null,null,null,null,null,null,null,null,null,null,null,null,null,null,null,null,null,null,null,null,null,null,null,null,null,null,null,null,null,null,null,null,null,null,null,null,null,null,null,null,null,null,null,null,null,null,null,null,null,null,null,null,null,null,null,null,null,null,null,null,null,null,null,null,null,null,null,null,null,null,null,null,null,null,null,null,null,null,null,null,null,null,null,null,null,null,null,null,null,null,null,null,null,null,null,null,null,null,null,null,null,null,null,null,null,null,null,null,null,null,null,4,"DEN0OSIFULEJ6MGY1BPFW6J21","D5PZA7P4P47ZZIPR6QWFL8YK9","","","","","","00","X","0","0","",""]
[null,null,null,null,null,null,null,null,null,null,null,null,null,null,null,null,null,null,null,null,null,null,null,null,null,null,null,null,null,null,null,null,null,null,null,null,null,null,null,null,null,null,null,null,null,null,null,null,null,null,null,null,null,null,null,null,null,null,null,null,null,null,null,null,null,null,null,null,null,null,null,null,null,null,null,null,null,null,null,null,null,null,null,null,null,null,null,null,null,null,null,null,null,null,null,null,null,null,null,null,null,null,null,null,null,null,null,null,null,null,null,null,null,null,null,null,null,null,null,null,null,null,null,null,null,null,null,null,null,null,4,"DEN0OSIFULEJ6MGY1BPFW6J21","D5PZA7P4P48RO51IIAC1NOCU1","","","","","","00","X","0","0","",""]
[null,null,null,null,null,null,null,null,null,null,null,null,null,null,null,null,null,null,null,null,null,null,null,null,null,null,null,null,null,null,null,null,null,null,null,null,null,null,null,null,null,null,null,null,null,null,null,null,null,null,null,null,null,null,null,null,null,null,null,null,null,null,null,null,null,null,null,null,null,null,null,null,null,null,null,null,null,null,null,null,null,null,null,null,null,null,null,null,null,null,null,null,null,null,null,null,null,null,null,null,null,null,null,null,null,null,null,null,null,null,null,null,null,null,null,null,null,null,null,null,null,null,null,null,null,null,null,null,null,null,4,"DEN0OSIFULEJ6MGY1BPFW6J21","D5PZA7P4P49JCRD9TTRNQ3R3T","","","","","","00","X","0","0","",""]
[null,null,null,null,null,null,null,null,null,null,null,null,null,null,null,null,null,null,null,null,null,null,null,null,null,null,null,null,null,null,null,null,null,null,null,null,null,null,null,null,null,null,null,null,null,null,null,null,null,null,null,null,null,null,null,null,null,null,null,null,null,null,null,null,null,null,null,null,null,null,null,null,null,null,null,null,null,null,null,null,null,null,null,null,null,null,null,null,null,null,null,null,null,null,null,null,null,null,null,null,null,null,null,null,null,null,null,null,null,null,null,null,null,null,null,null,null,null,null,null,null,null,null,null,null,null,null,null,null,null,4,"DEN0OSIFULEJ6MGY1BPFW6J21","D5PZA7P4P4AB1DP15D79SJ5DL","","0","","","","00","X","0","0","",""]
[null,null,null,null,null,null,null,null,null,null,null,null,null,null,null,null,null,null,null,null,null,null,null,null,null,null,null,null,null,null,null,null,null,null,null,null,null,null,null,null,null,null,null,null,null,null,null,null,null,null,null,null,null,null,null,null,null,null,null,null,null,null,null,null,null,null,null,null,null,null,null,null,null,null,null,null,null,null,null,null,null,null,null,null,null,null,null,null,null,null,null,null,null,null,null,null,null,null,null,null,null,null,null,null,null,null,null,null,null,null,null,null,null,null,null,null,null,null,null,null,null,null,null,null,null,null,null,null,null,null,4,"DEN0OSIFULEJ6MGY1BPFW6J21","D5PZA7P4P4B2Q00SGWMVUYJND","","0","","","","00","X","0","0","",""]
[null,null,null,null,null,null,null,null,null,null,null,null,null,null,null,null,null,null,null,null,null,null,null,null,null,null,null,null,null,null,null,null,null,null,null,null,null,null,null,null,null,null,null,null,null,null,null,null,null,null,null,null,null,null,null,null,null,null,null,null,null,null,null,null,null,null,null,null,null,null,null,null,null,null,null,null,null,null,null,null,null,null,null,null,null,null,null,null,null,null,null,null,null,null,null,null,null,null,null,null,null,null,null,null,null,null,null,null,null,null,null,null,null,null,null,null,null,null,null,null,null,null,null,null,null,null,null,null,null,null,4,"DEN0OSIFULEJ6MGY1BPFW6J21","D5PZA7P4P4BUEMCJSG2HXDXX5","","0","","","","00","X","0","0","",""]
[null,null,null,null,null,null,null,null,null,null,null,null,null,null,null,null,null,null,null,null,null,null,null,null,null,null,null,null,null,null,null,null,null,null,null,null,null,null,null,null,null,null,null,null,null,null,null,null,null,null,null,null,null,null,null,null,null,null,null,null,null,null,null,null,null,null,null,null,null,null,null,null,null,null,null,null,null,null,null,null,null,null,null,null,null,null,null,null,null,null,null,null,null,null,null,null,null,null,null,null,null,null,null,null,null,null,null,null,null,null,null,null,null,null,null,null,null,null,null,null,null,null,null,null,null,null,null,null,null,null,4,"DEN0OSIFULEJ6MGY1BPFW6J21","D5PZA7P4P4CM38OB3ZI3ZTC6X","","0","","","","00","X","0","0","",""]
[null,null,null,null,null,null,null,null,null,null,null,null,null,null,null,null,null,null,null,null,null,null,null,null,null,null,null,null,null,null,null,null,null,null,null,null,null,null,null,null,null,null,null,null,null,null,null,null,null,null,null,null,null,null,null,null,null,null,null,null,null,null,null,null,null,null,null,null,null,null,null,null,null,null,null,null,null,null,null,null,null,null,null,null,null,null,null,null,null,null,null,null,null,null,null,null,null,null,null,null,null,null,null,null,null,null,null,null,null,null,null,null,null,null,null,null,null,null,null,null,null,null,null,null,null,null,null,null,null,null,4,"DEN0OSIFULEJ6MGY1BPFW6J21","D5PZA7P4P4DDRV02FIXQ28QGP","","","","","","00","X","0","0","",""]
[null,null,null,null,null,null,null,null,null,null,null,null,null,null,null,null,null,null,null,null,null,null,null,null,null,null,null,null,null,null,null,null,null,null,null,null,null,null,null,null,null,null,null,null,null,null,null,null,null,null,null,null,null,null,null,null,null,null,null,null,null,null,null,null,null,null,null,null,null,null,null,null,null,null,null,null,null,null,null,null,null,null,null,null,null,null,null,null,null,null,null,null,null,null,null,null,null,null,null,null,null,null,null,null,null,null,null,null,null,null,null,null,null,null,null,null,null,null,null,null,null,null,null,null,null,null,null,null,null,null,4,"DEN0OSIFULEJ6MGY1BPFW6J21","D5PZA7P4P4E5GHBTR2DC4O4QH","","","","","","00","X","0","0","",""]
[null,null,null,null,null,null,null,null,null,null,null,null,null,null,null,null,null,null,null,null,null,null,null,null,null,null,null,null,null,null,null,null,null,null,null,null,null,null,null,null,null,null,null,null,null,null,null,null,null,null,null,null,null,null,null,null,null,null,null,null,null,null,null,null,null,null,null,null,null,null,null,null,null,null,null,null,null,null,null,null,null,null,null,null,null,null,null,null,null,null,null,null,null,null,null,null,null,null,null,null,null,null,null,null,null,null,null,null,null,null,null,null,null,null,null,null,null,null,null,null,null,null,null,null,null,null,null,null,null,null,4,"DEN0OSIFULEJ6MGY1BPFW6J21","D5PZA7P4P4EX53NL2LSY73J09","","0","","","","00","X","0","0","",""]
[null,null,null,null,null,null,null,null,null,null,null,null,null,null,null,null,null,null,null,null,null,null,null,null,null,null,null,null,null,null,null,null,null,null,null,null,null,null,null,null,null,null,null,null,null,null,null,null,null,null,null,null,null,null,null,null,null,null,null,null,null,null,null,null,null,null,null,null,null,null,null,null,null,null,null,null,null,null,null,null,null,null,null,null,null,null,null,null,null,null,null,null,null,null,null,null,null,null,null,null,null,null,null,null,null,null,null,null,null,null,null,null,null,null,null,null,null,null,null,null,null,null,null,null,null,null,null,null,null,null,4,"DEN0OSIFULEJ6MGY1BPFW6J21","D5PZA7P4P4FOTPZCE58K9IXA1","","2","","","","00","X","0","0","",""]
[null,null,null,null,null,null,null,null,null,null,null,null,null,null,null,null,null,null,null,null,null,null,null,null,null,null,null,null,null,null,null,null,null,null,null,null,null,null,null,null,null,null,null,null,null,null,null,null,null,null,null,null,null,null,null,null,null,null,null,null,null,null,null,null,null,null,null,null,null,null,null,null,null,null,null,null,null,null,null,null,null,null,null,null,null,null,null,null,null,null,null,null,null,null,null,null,null,null,null,null,null,null,null,null,null,null,null,null,null,null,null,null,null,null,null,null,null,null,null,null,null,null,null,null,null,null,null,null,null,null,4,"DEN0OSIFULEJ6MGY1BPFW6J21","D5PZA7P4P4GGICB3POO6BYBJT","","","","","","00","X","0","0","",""]
[null,null,null,null,null,null,null,null,null,null,null,null,null,null,null,null,null,null,null,null,null,null,null,null,null,null,null,null,null,null,null,null,null,null,null,null,null,null,null,null,null,null,null,null,null,null,null,null,null,null,null,null,null,null,null,null,null,null,null,null,null,null,null,null,null,null,null,null,null,null,null,null,null,null,null,null,null,null,null,null,null,null,null,null,null,null,null,null,null,null,null,null,null,null,null,null,null,null,null,null,null,null,null,null,null,null,null,null,null,null,null,null,null,null,null,null,null,null,null,null,null,null,null,null,null,null,null,null,null,null,4,"DEN0OSIFULEJ6MGY1BPFW6J21","D5PZA7P4P4H86YMV183SEDPTL","","","","","","00","X","0","0","",""]
[null,null,null,null,null,null,null,null,null,null,null,null,null,null,null,null,null,null,null,null,null,null,null,null,null,null,null,null,null,null,null,null,null,null,null,null,null,null,null,null,null,null,null,null,null,null,null,null,null,null,null,null,null,null,null,null,null,null,null,null,null,null,null,null,null,null,null,null,null,null,null,null,null,null,null,null,null,null,null,null,null,null,null,null,null,null,null,null,null,null,null,null,null,null,null,null,null,null,null,null,null,null,null,null,null,null,null,null,null,null,null,null,null,null,null,null,null,null,null,null,null,null,null,null,null,null,null,null,null,null,4,"DEN0OSIFULEJ6MGY1BPFW6J21","D5PZAGQNPNJN6QK9OBJM8YLMH","","","","","","00","X","0","0","",""]

{"sheet":"SAPBEXfiltersDefunct","index":1,"n_rows":19,"n_cols":237,"rows_kept":19,"cut":false,"hidden":true,"merged":[]}
[]
[null,null,null,null,null,null,null,null,null,null,null,null,null,null,null,null,null,null,null,null,null,null,null,null,null,null,null,null,null,null,null,null,null,null,null,null,null,null,null,null,null,null,null,null,null,null,null,null,null,null,null,null,null,null,null,null,null,null,null,null,null,null,null,null,null,null,null,null,null,null,null,null,null,null,null,null,null,null,null,null,null,null,null,null,null,null,null,null,null,null,null,null,null,null,null,null,null,null,null,null,0,null,null,null,null,null,null,null,null,null,null,null,null,null,null,null,null,null,null,null,null,null,null,null,null,null,null,null,null,null,null,null,null,null,null,null,null,null,null,null,null,null,null,null,null,null,null,null,null,null,null,null,null,null,null,9,null,null,null,null,null,null,null,null,null,null,null,null,null,null,null,null,null,null,null,null,null,null,null,null,null,null,null,null,null,null,null,null,null,null,null,null,null,null,null,null,null,null,null,null,null,null,null,null,null,16]
[null,null,null,null,null,null,null,null,null,null,null,null,null,null,null,null,null,null,null,null,null,null,null,null,null,null,null,null,null,null,null,null,null,null,null,null,null,null,null,null,null,null,null,null,null,null,null,null,null,null,null,null,null,null,null,null,null,null,null,null,null,null,null,null,null,null,null,null,null,null,null,null,null,null,null,null,null,null,null,null,null,null,null,null,null,null,null,null,null,null,null,null,null,null,null,null,null,null,null,null,8,null,null,null,null,null,null,null,null,null,null,null,null,null,null,null,null,null,null,null,null,null,null,null,null,null,null,null,null,null,null,null,null,null,null,null,null,null,null,null,null,null,null,null,null,null,null,null,null,null,null,null,null,null,null,12,null,null,null,null,null,null,null,null,null,null,null,null,null,null,null,null,null,null,null,null,null,null,null,null,null,null,null,null,null,null,null,null,null,null,null,null,null,null,null,null,null,null,null,null,null,null,null,null,null,31]
[null,null,null,null,null,null,null,null,null,null,null,null,null,null,null,null,null,null,null,null,null,null,null,null,null,null,null,null,null,null,null,null,null,null,null,null,null,null,null,null,null,null,null,null,null,null,null,null,null,null,null,null,null,null,null,null,null,null,null,null,null,null,null,null,null,null,null,null,null,null,null,null,null,null,null,null,null,null,null,null,null,null,null,null,null,null,null,null,null,null,null,null,null,null,null,null,null,null,null,null,null,null,null,null,null,null,null,null,null,null,null,null,null,null,null,null,null,null,null,null,null,null,null,null,null,null,null,null,null,null,null,null,null,null,null,null,null,null,null,null,null,null,null,null,null,null,null,null,null,null,null,null,null,null,null,12,"DKYHCAJDHS3WXNE8MAR8K85IX","","X","3","0","0ORGUNIT","","","0","","","",null,null,null,null,null,null,null,null,null,null,null,null,null,null,null,null,null,null,null,null,null,null,null,null,null,null,null,null,null,null,null,null,null,null,null,null,null,12,"DKYHCAJDHS3WXNE8MAR8K85IX","","","0001","0001","0","0000","I","EQ","50004880","0ORGUNIT","50004880","","1","","4","","Corporate Services","","","","ORGEH","1","","000","1","20150930","1","","","00"]
[null,null,null,null,null,null,null,null,null,null,null,null,null,null,null,null,null,null,null,null,null,null,null,null,null,null,null,null,null,null,null,null,null,null,null,null,null,null,null,null,null,null,null,null,null,null,null,null,null,null,null,null,null,null,null,null,null,null,null,null,null,null,null,null,null,null,null,null,null,null,null,null,null,null,null,null,null,null,null,null,null,null,null,null,null,null,null,null,null,null,null,null,null,null,null,null,null,null,null,null,null,null,null,null,null,null,null,null,null,null,null,null,null,null,null,null,null,null,null,null,null,null,null,null,null,null,null,null,null,null,null,null,null,null,null,null,null,null,null,null,null,null,null,null,null,null,null,null,null,null,null,null,null,null,null,11,"DKYHCBTW55CJFUTQ0FUNHHREH","","X","3","0","0ORGUNIT","","","0","","","",null,null,null,null,null,null,null,null,null,null,null,null,null,null,null,null,null,null,null,null,null,null,null,null,null,null,null,null,null,null,null,null,null,null,null,null,null,11,"DKYHCBTW55CJFUTQ0FUNHHREH","","","0001","0001","0","0000","I","EQ","50004878","","50004878","","1","","0","","Chief Executive Srv","","","","","0","","","0","","0","","","00"]
[null,null,null,null,null,null,null,null,null,null,null,null,null,null,null,null,null,null,null,null,null,null,null,null,null,null,null,null,null,null,null,null,null,null,null,null,null,null,null,null,null,null,null,null,null,null,null,null,null,null,null,null,null,null,null,null,null,null,null,null,null,null,null,null,null,null,null,null,null,null,null,null,null,null,null,null,null,null,null,null,null,null,null,null,null,null,null,null,null,null,null,null,null,null,null,null,null,null,null,null,null,null,null,null,null,null,null,null,null,null,null,null,null,null,null,null,null,null,null,null,null,null,null,null,null,null,null,null,null,null,null,null,null,null,null,null,null,null,null,null,null,null,null,null,null,null,null,null,null,null,null,null,null,null,null,10,"DKYHDLNCYY117C7345A854ZJT","","X","3","0","ZPERSAREA","","","0","","","",null,null,null,null,null,null,null,null,null,null,null,null,null,null,null,null,null,null,null,null,null,null,null,null,null,null,null,null,null,null,null,null,null,null,null,null,null,11,"DKYHCBTW55CJFUTQ0FUNHHREH","","","0002","0001","0","0000","I","EQ","50004879","0ORGUNIT","50004879","","1","","4","","Chief Executive Organisation Structure","","","","ORGEH","1","","000","1","20150930","1","","","00"]
[null,null,null,null,null,null,null,null,null,null,null,null,null,null,null,null,null,null,null,null,null,null,null,null,null,null,null,null,null,null,null,null,null,null,null,null,null,null,null,null,null,null,null,null,null,null,null,null,null,null,null,null,null,null,null,null,null,null,null,null,null,null,null,null,null,null,null,null,null,null,null,null,null,null,null,null,null,null,null,null,null,null,null,null,null,null,null,null,null,null,null,null,null,null,null,null,null,null,null,null,null,null,null,null,null,null,null,null,null,null,null,null,null,null,null,null,null,null,null,null,null,null,null,null,null,null,null,null,null,null,null,null,null,null,null,null,null,null,null,null,null,null,null,null,null,null,null,null,null,null,null,null,null,null,null,9,"DKYHDLNCYYIPXLPJHK9BOZ3SP","","X","3","0","ZPERSAREA","","","0","","","",null,null,null,null,null,null,null,null,null,null,null,null,null,null,null,null,null,null,null,null,null,null,null,null,null,null,null,null,null,null,null,null,null,null,null,null,null,11,"DKYHCBTW55CJFUTQ0FUNHHREH","","","0003","0001","0","0000","I","EQ","50004939","0ORGUNIT","50004939","","1","","4","","Communication & Organisation Development","","","","ORGEH","1","","000","1","20150930","1","","","00"]
[null,null,null,null,null,null,null,null,null,null,null,null,null,null,null,null,null,null,null,null,null,null,null,null,null,null,null,null,null,null,null,null,null,null,null,null,null,null,null,null,null,null,null,null,null,null,null,null,null,null,null,null,null,null,null,null,null,null,null,null,null,null,null,null,null,null,null,null,null,null,null,null,null,null,null,null,null,null,null,null,null,null,null,null,null,null,null,null,null,null,null,null,null,null,null,null,null,null,null,null,null,null,null,null,null,null,null,null,null,null,null,null,null,null,null,null,null,null,null,null,null,null,null,null,null,null,null,null,null,null,null,null,null,null,null,null,null,null,null,null,null,null,null,null,null,null,null,null,null,null,null,null,null,null,null,8,"DKYHDN2I3GO5ISNRM64BXMOE1","","X","3","0","ZPERSAREA","","","0","","","",null,null,null,null,null,null,null,null,null,null,null,null,null,null,null,null,null,null,null,null,null,null,null,null,null,null,null,null,null,null,null,null,null,null,null,null,null,11,"DKYHCBTW55CJFUTQ0FUNHHREH","","","0004","0001","0","0000","I","EQ","50258124","0ORGUNIT","50258124","","1","","4","","CE Corporate Policy","","","","ORGEH","1","","000","1","20150930","1","","","00"]
[null,null,null,null,null,null,null,null,null,null,null,null,null,null,null,null,null,null,null,null,null,null,null,null,null,null,null,null,null,null,null,null,null,null,null,null,null,null,null,null,null,null,null,null,null,null,null,null,null,null,null,null,null,null,null,null,null,null,null,null,null,null,null,null,null,null,null,null,null,null,null,null,null,null,null,null,null,null,null,null,null,null,null,null,null,null,null,null,null,null,null,null,null,null,null,null,null,null,null,null,null,null,null,null,null,null,null,null,null,null,null,null,null,null,null,null,null,null,null,null,null,null,null,null,null,null,null,null,null,null,null,null,null,null,null,null,null,null,null,null,null,null,null,null,null,null,null,null,null,null,null,null,null,null,null,7,"DKYHDN2I3H4AVTIPCI87CM03D","","X","3","0","ZPERSAREA","","","0","","","",null,null,null,null,null,null,null,null,null,null,null,null,null,null,null,null,null,null,null,null,null,null,null,null,null,null,null,null,null,null,null,null,null,null,null,null,null,10,"DKYHDLNCYY117C7345A854ZJT","","","0001","0001","0","0000","I","EQ","0051","","0051","","1","","0","","Education","","","","","0","","","0","","0","","","00"]
[null,null,null,null,null,null,null,null,null,null,null,null,null,null,null,null,null,null,null,null,null,null,null,null,null,null,null,null,null,null,null,null,null,null,null,null,null,null,null,null,null,null,null,null,null,null,null,null,null,null,null,null,null,null,null,null,null,null,null,null,null,null,null,null,null,null,null,null,null,null,null,null,null,null,null,null,null,null,null,null,null,null,null,null,null,null,null,null,null,null,null,null,null,null,null,null,null,null,null,null,null,null,null,null,null,null,null,null,null,null,null,null,null,null,null,null,null,null,null,null,null,null,null,null,null,null,null,null,null,null,null,null,null,null,null,null,null,null,null,null,null,null,null,null,null,null,null,null,null,null,null,null,null,null,null,6,"DKYHDOEPQCJE4X8WVGAN6KGE1","","X","3","0","ZPERSAREA","","","0","","","",null,null,null,null,null,null,null,null,null,null,null,null,null,null,null,null,null,null,null,null,null,null,null,null,null,null,null,null,null,null,null,null,null,null,null,null,null,9,"DKYHDLNCYYIPXLPJHK9BOZ3SP","","","0001","0001","0","0000","I","EQ","0091","","0091","","1","","0","","Social Work","","","","","0","","","0","","0","","","00"]
[null,null,null,null,null,null,null,null,null,null,null,null,null,null,null,null,null,null,null,null,null,null,null,null,null,null,null,null,null,null,null,null,null,null,null,null,null,null,null,null,null,null,null,null,null,null,null,null,null,null,null,null,null,null,null,null,null,null,null,null,null,null,null,null,null,null,null,null,null,null,null,null,null,null,null,null,null,null,null,null,null,null,null,null,null,null,null,null,null,null,null,null,null,null,null,null,null,null,null,null,null,null,null,null,null,null,null,null,null,null,null,null,null,null,null,null,null,null,null,null,null,null,null,null,null,null,null,null,null,null,null,null,null,null,null,null,null,null,null,null,null,null,null,null,null,null,null,null,null,null,null,null,null,null,null,5,"DKYHDOEPQCZJHY3ULSEILJS3D","","X","3","0","ZPERSAREA","","","0","","","",null,null,null,null,null,null,null,null,null,null,null,null,null,null,null,null,null,null,null,null,null,null,null,null,null,null,null,null,null,null,null,null,null,null,null,null,null,8,"DKYHDN2I3GO5ISNRM64BXMOE1","","","0001","0001","0","0000","I","EQ","0081","","0081","","1","","0","","Land and Environmental","","","","","0","","","0","","0","","","00"]
[null,null,null,null,null,null,null,null,null,null,null,null,null,null,null,null,null,null,null,null,null,null,null,null,null,null,null,null,null,null,null,null,null,null,null,null,null,null,null,null,null,null,null,null,null,null,null,null,null,null,null,null,null,null,null,null,null,null,null,null,null,null,null,null,null,null,null,null,null,null,null,null,null,null,null,null,null,null,null,null,null,null,null,null,null,null,null,null,null,null,null,null,null,null,null,null,null,null,null,null,null,null,null,null,null,null,null,null,null,null,null,null,null,null,null,null,null,null,null,null,null,null,null,null,null,null,null,null,null,null,null,null,null,null,null,null,null,null,null,null,null,null,null,null,null,null,null,null,null,null,null,null,null,null,null,4,"DKYHDPT64SL8XHD4MRV8E1IIH","","X","3","0","0ORGUNIT","","","0","","","",null,null,null,null,null,null,null,null,null,null,null,null,null,null,null,null,null,null,null,null,null,null,null,null,null,null,null,null,null,null,null,null,null,null,null,null,null,7,"DKYHDN2I3H4AVTIPCI87CM03D","","","0001","0001","0","0000","I","EQ","0071","","0071","","1","","0","","Financial","","","","","0","","","0","","0","","","00"]
[null,null,null,null,null,null,null,null,null,null,null,null,null,null,null,null,null,null,null,null,null,null,null,null,null,null,null,null,null,null,null,null,null,null,null,null,null,null,null,null,null,null,null,null,null,null,null,null,null,null,null,null,null,null,null,null,null,null,null,null,null,null,null,null,null,null,null,null,null,null,null,null,null,null,null,null,null,null,null,null,null,null,null,null,null,null,null,null,null,null,null,null,null,null,null,null,null,null,null,null,null,null,null,null,null,null,null,null,null,null,null,null,null,null,null,null,null,null,null,null,null,null,null,null,null,null,null,null,null,null,null,null,null,null,null,null,null,null,null,null,null,null,null,null,null,null,null,null,null,null,null,null,null,null,null,null,null,null,null,null,null,null,null,null,null,null,null,null,null,null,null,null,null,null,null,null,null,null,null,null,null,null,null,null,null,null,null,null,null,null,null,null,null,null,null,null,null,null,null,null,null,null,null,null,null,6,"DKYHDOEPQCJE4X8WVGAN6KGE1","","","0001","0001","0","0000","I","EQ","0051","","0051","","1","","0","","Education","","","","","0","","","0","","0","","","00"]
[null,null,null,null,null,null,null,null,null,null,null,null,null,null,null,null,null,null,null,null,null,null,null,null,null,null,null,null,null,null,null,null,null,null,null,null,null,null,null,null,null,null,null,null,null,null,null,null,null,null,null,null,null,null,null,null,null,null,null,null,null,null,null,null,null,null,null,null,null,null,null,null,null,null,null,null,null,null,null,null,null,null,null,null,null,null,null,null,null,null,null,null,null,null,null,null,null,null,null,null,null,null,null,null,null,null,null,null,null,null,null,null,null,null,null,null,null,null,null,null,null,null,null,null,null,null,null,null,null,null,null,null,null,null,null,null,null,null,null,null,null,null,null,null,null,null,null,null,null,null,null,null,null,null,null,null,null,null,null,null,null,null,null,null,null,null,null,null,null,null,null,null,null,null,null,null,null,null,null,null,null,null,null,null,null,null,null,null,null,null,null,null,null,null,null,null,null,null,null,null,null,null,null,null,null,5,"DKYHDOEPQCZJHY3ULSEILJS3D","","","0001","0001","0","0000","I","EQ","0031","","0031","","1","","0","","Development and Regeneration","","","","","0","","","0","","0","","","00"]
[null,null,null,null,null,null,null,null,null,null,null,null,null,null,null,null,null,null,null,null,null,null,null,null,null,null,null,null,null,null,null,null,null,null,null,null,null,null,null,null,null,null,null,null,null,null,null,null,null,null,null,null,null,null,null,null,null,null,null,null,null,null,null,null,null,null,null,null,null,null,null,null,null,null,null,null,null,null,null,null,null,null,null,null,null,null,null,null,null,null,null,null,null,null,null,null,null,null,null,null,null,null,null,null,null,null,null,null,null,null,null,null,null,null,null,null,null,null,null,null,null,null,null,null,null,null,null,null,null,null,null,null,null,null,null,null,null,null,null,null,null,null,null,null,null,null,null,null,null,null,null,null,null,null,null,null,null,null,null,null,null,null,null,null,null,null,null,null,null,null,null,null,null,null,null,null,null,null,null,null,null,null,null,null,null,null,null,null,null,null,null,null,null,null,null,null,null,null,null,null,null,null,null,null,null,4,"DKYHDPT64SL8XHD4MRV8E1IIH","","","0001","0001","0","0000","I","EQ","50004878","","50004878","","1","","0","","Chief Executive Srv","","","","","0","","","0","","0","","","00"]
[null,null,null,null,null,null,null,null,null,null,null,null,null,null,null,null,null,null,null,null,null,null,null,null,null,null,null,null,null,null,null,null,null,null,null,null,null,null,null,null,null,null,null,null,null,null,null,null,null,null,null,null,null,null,null,null,null,null,null,null,null,null,null,null,null,null,null,null,null,null,null,null,null,null,null,null,null,null,null,null,null,null,null,null,null,null,null,null,null,null,null,null,null,null,null,null,null,null,null,null,null,null,null,null,null,null,null,null,null,null,null,null,null,null,null,null,null,null,null,null,null,null,null,null,null,null,null,null,null,null,null,null,null,null,null,null,null,null,null,null,null,null,null,null,null,null,null,null,null,null,null,null,null,null,null,null,null,null,null,null,null,null,null,null,null,null,null,null,null,null,null,null,null,null,null,null,null,null,null,null,null,null,null,null,null,null,null,null,null,null,null,null,null,null,null,null,null,null,null,null,null,null,null,null,null,4,"DKYHDPT64SL8XHD4MRV8E1IIH","","","0002","0001","0","0000","I","EQ","50004879","0ORGUNIT","50004879","","1","","4","","Chief Executive Organisation Structure","","","","ORGEH","1","","000","1","20150930","1","","","00"]
[null,null,null,null,null,null,null,null,null,null,null,null,null,null,null,null,null,null,null,null,null,null,null,null,null,null,null,null,null,null,null,null,null,null,null,null,null,null,null,null,null,null,null,null,null,null,null,null,null,null,null,null,null,null,null,null,null,null,null,null,null,null,null,null,null,null,null,null,null,null,null,null,null,null,null,null,null,null,null,null,null,null,null,null,null,null,null,null,null,null,null,null,null,null,null,null,null,null,null,null,null,null,null,null,null,null,null,null,null,null,null,null,null,null,null,null,null,null,null,null,null,null,null,null,null,null,null,null,null,null,null,null,null,null,null,null,null,null,null,null,null,null,null,null,null,null,null,null,null,null,null,null,null,null,null,null,null,null,null,null,null,null,null,null,null,null,null,null,null,null,null,null,null,null,null,null,null,null,null,null,null,null,null,null,null,null,null,null,null,null,null,null,null,null,null,null,null,null,null,null,null,null,null,null,null,4,"DKYHDPT64SL8XHD4MRV8E1IIH","","","0003","0001","0","0000","I","EQ","50004880","0ORGUNIT","50004880","","1","","4","","Corporate Services","","","","ORGEH","1","","000","1","20150930","1","","","00"]
[null,null,null,null,null,null,null,null,null,null,null,null,null,null,null,null,null,null,null,null,null,null,null,null,null,null,null,null,null,null,null,null,null,null,null,null,null,null,null,null,null,null,null,null,null,null,null,null,null,null,null,null,null,null,null,null,null,null,null,null,null,null,null,null,null,null,null,null,null,null,null,null,null,null,null,null,null,null,null,null,null,null,null,null,null,null,null,null,null,null,null,null,null,null,null,null,null,null,null,null,null,null,null,null,null,null,null,null,null,null,null,null,null,null,null,null,null,null,null,null,null,null,null,null,null,null,null,null,null,null,null,null,null,null,null,null,null,null,null,null,null,null,null,null,null,null,null,null,null,null,null,null,null,null,null,null,null,null,null,null,null,null,null,null,null,null,null,null,null,null,null,null,null,null,null,null,null,null,null,null,null,null,null,null,null,null,null,null,null,null,null,null,null,null,null,null,null,null,null,null,null,null,null,null,null,4,"DKYHDPT64SL8XHD4MRV8E1IIH","","","0004","0001","0","0000","I","EQ","50004939","0ORGUNIT","50004939","","1","","4","","Communication & Organisation Development","","","","ORGEH","1","","000","1","20150930","1","","","00"]
[null,null,null,null,null,null,null,null,null,null,null,null,null,null,null,null,null,null,null,null,null,null,null,null,null,null,null,null,null,null,null,null,null,null,null,null,null,null,null,null,null,null,null,null,null,null,null,null,null,null,null,null,null,null,null,null,null,null,null,null,null,null,null,null,null,null,null,null,null,null,null,null,null,null,null,null,null,null,null,null,null,null,null,null,null,null,null,null,null,null,null,null,null,null,null,null,null,null,null,null,null,null,null,null,null,null,null,null,null,null,null,null,null,null,null,null,null,null,null,null,null,null,null,null,null,null,null,null,null,null,null,null,null,null,null,null,null,null,null,null,null,null,null,null,null,null,null,null,null,null,null,null,null,null,null,null,null,null,null,null,null,null,null,null,null,null,null,null,null,null,null,null,null,null,null,null,null,null,null,null,null,null,null,null,null,null,null,null,null,null,null,null,null,null,null,null,null,null,null,null,null,null,null,null,null,4,"DKYHDPT64SL8XHD4MRV8E1IIH","","","0005","0001","0","0000","I","EQ","50258124","0ORGUNIT","50258124","","1","","4","","CE Corporate Policy","","","","ORGEH","1","","000","1","20150930","1","","","00"]

{"sheet":"BExRepositorySheet","index":2,"n_rows":1,"n_cols":1,"rows_kept":1,"cut":false,"hidden":true,"merged":[]}
[7]

{"sheet":"Summary","index":3,"n_rows":31,"n_cols":12,"rows_kept":31,"cut":false,"hidden":false,"merged":[[27,0,27,1],[28,0,28,1],[29,0,29,1],[30,0,30,1],[20,0,20,1],[21,0,21,1],[22,0,22,1],[23,0,23,1],[24,0,24,1],[26,0,26,1],[19,0,19,1],[2,0,2,3],[4,1,8,11],[12,0,13,1],[12,2,13,3],[12,5,13,6],[12,8,13,9],[12,11,13,11],[14,0,14,1],[15,0,15,1],[16,0,16,1],[17,0,17,1],[18,0,18,1]]}
["WORKFORCE PROFILE BY DISABILITY"]
["GLASGOW LIFE"]
["September 2017"]
[]
[null,"The table below has been simplified to provide a summary of the Company's workforce by disability.  The detailed information to support this is provided on Page 2"]
[]
[]
[]
[]
[]
[]
[]
[null,null,"Disabled",null,null,"Non Disabled",null,null,"Non Disclosed",null,null,"Total Workforce"]
[]
["GRADE & DISABILITY",null,"Number","%",null,"Number","%",null,"Number","%",null,"Number"]
[]
["Grade 1-4 Total",null,{"$f":"SUM(Template!L8)","v":73},{"$f":"SUM(C17/L17)","v":4.5624999999999999E-2},null,{"$f":"Template!AD8","v":502},{"$f":"SUM(F17/L17)","v":0.31374999999999997},null,{"$f":"Template!P8","v":1025},{"$f":"SUM(I17/L17)","v":0.640625},null,{"$f":"SUM(C17+F17+I17)","v":1600}]
[]
["Grade 5-7 Total",null,{"$f":"Template!L12","v":24},{"$f":"SUM(C19/L19)","v":3.0418250950570342E-2},null,{"$f":"Template!AD12","v":188},{"$f":"SUM(F19/L19)","v":0.23827629911280102},null,{"$f":"Template!P12","v":577},{"$f":"SUM(I19/L19)","v":0.7313054499366286},null,{"$f":"SUM(C19+F19+I19)","v":789}]
[null,null," "]
["Grade 8 Total",null,{"$f":"Template!L16","v":3},{"$f":"SUM(C21/L21)","v":5.5555555555555552E-2},null,{"$f":"Template!AD16","v":13},{"$f":"SUM(F21/L21)","v":0.24074074074074073},null,{"$f":"Template!P16","v":38},{"$f":"SUM(I21/L21)","v":0.70370370370370372},null,{"$f":"SUM(C21+F21+I21)","v":54}]
[]
["Grade 9-15 Total",null,{"$f":"Template!L24+Template!L28","v":0},{"$f":"SUM(C23/L23)","v":0},null,{"$f":"Template!AD24+Template!AD28","v":7},{"$f":"SUM(F23/L23)","v":0.22580645161290322},null,{"$f":"Template!P24+Template!P28","v":24},{"$f":"SUM(I23/L23)","v":0.77419354838709675},null,{"$f":"SUM(C23+F23+I23)","v":31}]
[null,null," "]
["Other Non Pay & Grading Structure Total",null,{"$f":"Template!L32","v":0},{"$f":"SUM(C25/L25)","v":0},null,{"$f":"Template!AD32","v":33},{"$f":"SUM(F25/L25)","v":0.40243902439024393},null,{"$f":"Template!P32","v":49},{"$f":"SUM(I25/L25)","v":0.59756097560975607},null,{"$f":"SUM(C25+F25+I25)","v":82}]
[null,null,null,null,null," ",null,null," "]
["Total Workforce F/T",null,{"$f":"Template!L34","v":54},{"$f":"SUM(C27/L27)","v":3.2066508313539195E-2},null,{"$f":"Template!AD34","v":460},{"$f":"SUM(F27/L27)","v":0.27315914489311166},null,{"$f":"Template!P34","v":1170},{"$f":"SUM(I27/L27)","v":0.69477434679334915},null,{"$f":"SUM(C27+F27+I27)","v":1684}]
[]
["Total Workforce P/T",null,{"$f":"Template!L36","v":46},{"$f":"SUM(C29/L29)","v":5.2752293577981654E-2},null,{"$f":"Template!AD36","v":283},{"$f":"SUM(F29/L29)","v":0.32454128440366975},null,{"$f":"Template!P36","v":543},{"$f":"SUM(I29/L29)","v":0.62270642201834858},null,{"$f":"SUM(C29+F29+I29)","v":872}]
[null,null,null,null,null,null," ",null,null," "]
["Total Workforce",null,{"$f":"Template!L38","v":100},{"$f":"SUM(C31/L31)","v":3.912363067292645E-2},null,{"$f":"Template!AD38","v":743},{"$f":"SUM(F31/L31)","v":0.29068857589984348},null,{"$f":"Template!P38","v":1713},{"$f":"SUM(I31/L31)","v":0.67018779342723001},null,{"$f":"SUM(C31+F31+I31)","v":2556}]

{"sheet":"Template","index":4,"n_rows":41,"n_cols":36,"rows_kept":41,"cut":false,"hidden":false,"merged":[[1,0,2,0],[1,33,2,35],[1,1,2,3],[1,5,2,7],[1,9,2,11],[1,19,2,21],[1,23,2,25],[1,27,2,29]]}
[]
[null,"White Disabled",null,null,null,"Black & Minority Ethnic Disabled",null,null,null,"Total Disabled",null,null,null,null,null,null,null,null,null,"Total White Non Disabled",null,null,null,"Total Black & Minority Ethnic Non Disabled",null,null,null,"Total Non Disabled Employees",null,null,null,null,null,"Total Workforce"]
[]
["GLASGOW LIFE BY GRADE & DISABILITY","Total White Male Disabled Employees","Total White Disabled Female Employees","Total White Disabled Employees",null,"Total Ethnic Male Disabled Employees","Total Ethnic Female Disabled Employees","Total Ethnic Disabled Employees",null,"Disabled Male Employees","Disabled Female Employees","Total Disabled Employees",null,"Total Disabled Employees %",null,"Total Non Disclosed",null,"Total Non Disclosed %",null,"Total White Male Non Disabled Employees","Total White Female Non Disabled Employees","Total White Non Disabled Employees",null,"Total Ethnic Male Non Disabled Employees","Total Ethnic Female Non Disabled Employees","Total Ethnic Non Disabled Employees",null,"Total Male Non Disabled Employees","Total Female Non Disabled Employees","Total Non Disabled Employees",null,"Total Non Disabled Employees %",null,"Total Male Employees","Total Female Employees","Total Workforce"]
[]
["Grade 1-4 F/T",{"$f":"Query!B27","v":20},{"$f":"Query!C27","v":9},{"$f":"SUM(B6:C6)","v":29},null,{"$f":"Query!E27","v":2},{"$f":"Query!F27","v":0},{"$f":"SUM(F6:G6)","v":2},null,{"$f":"Query!H27","v":22},{"$f":"Query!I27","v":9},{"$f":"SUM(J6:K6)","v":31},null,{"$f":"SUM(L6/AJ6)","v":3.5028248587570622E-2},null,{"$f":"Query!L27","v":603},null,{"$f":"SUM(P6/AJ6)","v":0.68135593220338986},null,{"$f":"Query!M27","v":145},{"$f":"Query!N27","v":85},{"$f":"SUM(T6:U6)","v":230},null,{"$f":"Query!P27","v":15},{"$f":"Query!Q27","v":6},{"$f":"SUM(X6:Y6)","v":21},null,{"$f":"Query!S27","v":160},{"$f":"Query!T27","v":91},{"$f":"SUM(AB6:AC6)","v":251},null,{"$f":"SUM(AD6/AJ6)","v":0.28361581920903955},null,{"$f":"Query!W27","v":562},{"$f":"Query!X27","v":323},{"$f":"SUM(AH6:AI6)","v":885}]
["Grade 1-4 P/T",{"$f":"Query!B28","v":20},{"$f":"Query!C28","v":18},{"$f":"SUM(B7:C7)","v":38},null,{"$f":"Query!E28","v":2},{"$f":"Query!F28","v":2},{"$f":"SUM(F7:G7)","v":4},null,{"$f":"Query!H28","v":22},{"$f":"Query!I28","v":20},{"$f":"SUM(J7:K7)","v":42},null,{"$f":"SUM(L7/AJ7)","v":5.8741258741258739E-2},null,{"$f":"Query!L28","v":422},null,{"$f":"SUM(P7/AJ7)","v":0.59020979020979025},null,{"$f":"Query!M28","v":94},{"$f":"Query!N28","v":135},{"$f":"SUM(T7:U7)","v":229},null,{"$f":"Query!P28","v":5},{"$f":"Query!Q28","v":17},{"$f":"SUM(X7:Y7)","v":22},null,{"$f":"Query!S28","v":99},{"$f":"Query!T28","v":152},{"$f":"SUM(AB7:AC7)","v":251},null,{"$f":"SUM(AD7/AJ7)","v":0.35104895104895106},null,{"$f":"Query!W28","v":263},{"$f":"Query!X28","v":452},{"$f":"SUM(AH7:AI7)","v":715}]
["Grade 1-4 Total",{"$f":"SUM(B6:B7)","v":40},{"$f":"SUM(C6:C7)","v":27},{"$f":"SUM(D6:D7)","v":67},null,{"$f":"SUM(F6:F7)","v":4},{"$f":"SUM(G6:G7)","v":2},{"$f":"SUM(H6:H7)","v":6},null,{"$f":"SUM(J6:J7)","v":44},{"$f":"SUM(K6:K7)","v":29},{"$f":"SUM(L6:L7)","v":73},null,{"$f":"SUM(L8/AJ8)","v":4.5624999999999999E-2},null,{"$f":"SUM(P6:P7)","v":1025},null,{"$f":"SUM(P8/AJ8)","v":0.640625},null,{"$f":"SUM(T6:T7)","v":239},{"$f":"SUM(U6:U7)","v":220},{"$f":"SUM(V6:V7)","v":459},null,{"$f":"SUM(X6:X7)","v":20},{"$f":"SUM(Y6:Y7)","v":23},{"$f":"SUM(Z6:Z7)","v":43},null,{"$f":"SUM(AB6:AB7)","v":259},{"$f":"SUM(AC6:AC7)","v":243},{"$f":"SUM(AD6:AD7)","v":502},null,{"$f":"SUM(AD8/AJ8)","v":0.31374999999999997},null,{"$f":"SUM(AH6:AH7)","v":825},{"$f":"SUM(AI6:AI7)","v":775},{"$f":"SUM(AJ6:AJ7)","v":1600}]
[]
["Grade 5-7 F/T",{"$f":"Query!B30","v":9},{"$f":"Query!C30","v":12},{"$f":"SUM(B10:C10)","v":21},null,{"$f":"Query!E30","v":0},{"$f":"Query!F30","v":1},{"$f":"SUM(F10:G10)","v":1},null,{"$f":"Query!H30","v":9},{"$f":"Query!I30","v":13},{"$f":"SUM(J10:K10)","v":22},null,{"$f":"SUM(L10/AJ10)","v":3.3950617283950615E-2},null,{"$f":"Query!L30","v":467},null,{"$f":"SUM(P10/AJ10)","v":0.72067901234567899},null,{"$f":"Query!M30","v":72},{"$f":"Query!N30","v":76},{"$f":"SUM(T10:U10)","v":148},null,{"$f":"Query!P30","v":6},{"$f":"Query!Q30","v":5},{"$f":"SUM(X10:Y10)","v":11},null,{"$f":"Query!S30","v":78},{"$f":"Query!T30","v":81},{"$f":"SUM(AB10:AC10)","v":159},null,{"$f":"SUM(AD10/AJ10)","v":0.24537037037037038},null,{"$f":"Query!W30","v":302},{"$f":"Query!X30","v":346},{"$f":"SUM(AH10:AI10)","v":648}]
["Grade 5-7 P/T",{"$f":"Query!B31","v":0},{"$f":"Query!C31","v":2},{"$f":"SUM(B11:C11)","v":2},null,{"$f":"Query!E31","v":0},{"$f":"Query!F31","v":0},{"$f":"SUM(F11:G11)","v":0},null,{"$f":"Query!H31","v":0},{"$f":"Query!I31","v":2},{"$f":"SUM(J11:K11)","v":2},null,{"$f":"SUM(L11/AJ11)","v":1.4184397163120567E-2},null,{"$f":"Query!L31","v":110},null,{"$f":"SUM(P11/AJ11)","v":0.78014184397163122},null,{"$f":"Query!M31","v":3},{"$f":"Query!N31","v":23},{"$f":"SUM(T11:U11)","v":26},null,{"$f":"Query!P31","v":0},{"$f":"Query!Q31","v":3},{"$f":"SUM(X11:Y11)","v":3},null,{"$f":"Query!S31","v":3},{"$f":"Query!T31","v":26},{"$f":"SUM(AB11:AC11)","v":29},null,{"$f":"SUM(AD11/AJ11)","v":0.20567375886524822},null,{"$f":"Query!W31","v":24},{"$f":"Query!X31","v":117},{"$f":"SUM(AH11:AI11)","v":141}]
["Grade 5-7 Total",{"$f":"SUM(B10:B11)","v":9},{"$f":"SUM(C10:C11)","v":14},{"$f":"SUM(D10:D11)","v":23},null,{"$f":"SUM(F10:F11)","v":0},{"$f":"SUM(G10:G11)","v":1},{"$f":"SUM(H10:H11)","v":1},null,{"$f":"SUM(J10:J11)","v":9},{"$f":"SUM(K10:K11)","v":15},{"$f":"SUM(L10:L11)","v":24},null,{"$f":"SUM(L12/AJ12)","v":3.0418250950570342E-2},null,{"$f":"SUM(P10:P11)","v":577},null,{"$f":"SUM(P12/AJ12)","v":0.7313054499366286},null,{"$f":"SUM(T10:T11)","v":75},{"$f":"SUM(U10:U11)","v":99},{"$f":"SUM(V10:V11)","v":174},null,{"$f":"SUM(X10:X11)","v":6},{"$f":"SUM(Y10:Y11)","v":8},{"$f":"SUM(Z10:Z11)","v":14},null,{"$f":"SUM(AB10:AB11)","v":81},{"$f":"SUM(AC10:AC11)","v":107},{"$f":"SUM(AD10:AD11)","v":188},null,{"$f":"SUM(AD12/AJ12)","v":0.23827629911280102},null,{"$f":"SUM(AH10:AH11)","v":326},{"$f":"SUM(AI10:AI11)","v":463},{"$f":"SUM(AJ10:AJ11)","v":789}]
[]
["Grade 8 F/T",{"$f":"Query!B33","v":0},{"$f":"Query!C33","v":1},{"$f":"SUM(B14:C14)","v":1},null,{"$f":"Query!E33","v":0},{"$f":"Query!F33","v":0},{"$f":"SUM(F14:G14)","v":0},null,{"$f":"Query!H33","v":0},{"$f":"Query!I33","v":1},{"$f":"SUM(J14:K14)","v":1},null,{"$f":"SUM(L14/AJ14)","v":2.0408163265306121E-2},null,{"$f":"Query!L33","v":35},null,{"$f":"SUM(P14/AJ14)","v":0.7142857142857143},null,{"$f":"Query!M33","v":6},{"$f":"Query!N33","v":7},{"$f":"SUM(T14:U14)","v":13},null,{"$f":"Query!P33","v":0},{"$f":"Query!Q33","v":0},{"$f":"SUM(X14:Y14)","v":0},null,{"$f":"Query!S33","v":6},{"$f":"Query!T33","v":7},{"$f":"SUM(AB14:AC14)","v":13},null,{"$f":"SUM(AD14/AJ14)","v":0.26530612244897961},null,{"$f":"Query!W33","v":23},{"$f":"Query!X33","v":26},{"$f":"SUM(AH14:AI14)","v":49}]
["Grade 8 P/T",{"$f":"Query!B34","v":0},{"$f":"Query!C34","v":2},{"$f":"SUM(B15:C15)","v":2},null,{"$f":"Query!E34","v":0},{"$f":"Query!F34","v":0},{"$f":"SUM(F15:G15)","v":0},null,{"$f":"Query!H34","v":0},{"$f":"Query!I34","v":2},{"$f":"SUM(J15:K15)","v":2},null,{"$f":"SUM(L15/AJ15)","v":0.4},null,{"$f":"Query!L34","v":3},null,{"$f":"SUM(P15/AJ15)","v":0.6},null,{"$f":"Query!M34","v":0},{"$f":"Query!N34","v":0},{"$f":"SUM(T15:U15)","v":0},null,{"$f":"Query!P34","v":0},{"$f":"Query!Q34","v":0},{"$f":"SUM(X15:Y15)","v":0},null,{"$f":"Query!S34","v":0},{"$f":"Query!T34","v":0},{"$f":"SUM(AB15:AC15)","v":0},null,{"$f":"SUM(AD15/AJ15)","v":0},null,{"$f":"Query!W34","v":0},{"$f":"Query!X34","v":5},{"$f":"SUM(AH15:AI15)","v":5}]
["Grade 8 Total",{"$f":"SUM(B14:B15)","v":0},{"$f":"SUM(C14:C15)","v":3},{"$f":"SUM(D14:D15)","v":3},null,{"$f":"SUM(F14:F15)","v":0},{"$f":"SUM(G14:G15)","v":0},{"$f":"SUM(H14:H15)","v":0},null,{"$f":"SUM(J14:J15)","v":0},{"$f":"SUM(K14:K15)","v":3},{"$f":"SUM(L14:L15)","v":3},null,{"$f":"SUM(L16/AJ16)","v":5.5555555555555552E-2},null,{"$f":"SUM(P14:P15)","v":38},null,{"$f":"SUM(P16/AJ16)","v":0.70370370370370372},null,{"$f":"SUM(T14:T15)","v":6},{"$f":"SUM(U14:U15)","v":7},{"$f":"SUM(V14:V15)","v":13},null,{"$f":"SUM(X14:X15)","v":0},{"$f":"SUM(Y14:Y15)","v":0},{"$f":"SUM(Z14:Z15)","v":0},null,{"$f":"SUM(AB14:AB15)","v":6},{"$f":"SUM(AC14:AC15)","v":7},{"$f":"SUM(AD14:AD15)","v":13},null,{"$f":"SUM(AD16/AJ16)","v":0.24074074074074073},null,{"$f":"SUM(AH14:AH15)","v":23},{"$f":"SUM(AI14:AI15)","v":31},{"$f":"SUM(AJ14:AJ15)","v":54}]
[]
["Grade ACZ 8 F/T",{"$f":"Query!B36","v":0},{"$f":"Query!C36","v":0},{"$f":"SUM(B18:C18)","v":0},null,{"$f":"Query!E36","v":0},{"$f":"Query!F36","v":0},{"$f":"SUM(F18:G18)","v":0},null,{"$f":"Query!H36","v":0},{"$f":"Query!I36","v":0},{"$f":"SUM(J18:K18)","v":0},null,{"$f":"IFERROR(18/AJ18,0)","v":0},null,{"$f":"Query!L36","v":0},null,{"$f":"IFERROR(P18/AJ18,0)","v":0},null,{"$f":"Query!M36","v":0},{"$f":"Query!N36","v":0},{"$f":"SUM(T18:U18)","v":0},null,{"$f":"Query!P36","v":0},{"$f":"Query!Q36","v":0},{"$f":"SUM(X18:Y18)","v":0},null,{"$f":"Query!S36","v":0},{"$f":"Query!T36","v":0},{"$f":"SUM(AB18:AC18)","v":0},null,{"$f":"IFERROR(AD18/AJ18,0)","v":0},null,{"$f":"Query!W36","v":0},{"$f":"Query!X36","v":0},{"$f":"SUM(AH18:AI18)","v":0}]
["Grade ACZ 8 P/T",{"$f":"Query!B37","v":0},{"$f":"Query!C37","v":0},{"$f":"SUM(B19:C19)","v":0},null,{"$f":"Query!E37","v":0},{"$f":"Query!F37","v":0},{"$f":"SUM(F19:G19)","v":0},null,{"$f":"Query!H37","v":0},{"$f":"Query!I37","v":0},{"$f":"SUM(J19:K19)","v":0},null,{"$f":"IFERROR(L19/AJ19,0)","v":0},null,{"$f":"Query!L37","v":0},null,{"$f":"IFERROR(P19/AJ19,0)","v":0},null,{"$f":"Query!M37","v":0},{"$f":"Query!N37","v":0},{"$f":"SUM(T19:U19)","v":0},null,{"$f":"Query!P37","v":0},{"$f":"Query!Q37","v":0},{"$f":"SUM(X19:Y19)","v":0},null,{"$f":"Query!S37","v":0},{"$f":"Query!T37","v":0},{"$f":"SUM(AB19:AC19)","v":0},null,{"$f":"IFERROR(AD19/AJ19,0)","v":0},null,{"$f":"Query!W37","v":0},{"$f":"Query!X37","v":0},{"$f":"SUM(AH19:AI19)","v":0}]
["Grade ACZ 8 Total",{"$f":"SUM(B18:B19)","v":0},{"$f":"SUM(C18:C19)","v":0},{"$f":"SUM(D18:D19)","v":0},null,{"$f":"SUM(F18:F19)","v":0},{"$f":"SUM(G18:G19)","v":0},{"$f":"SUM(H18:H19)","v":0},null,{"$f":"SUM(J18:J19)","v":0},{"$f":"SUM(K18:K19)","v":0},{"$f":"SUM(L18:L19)","v":0},null,{"$f":"IFERROR(L20/AJ20,0)","v":0},null,{"$f":"SUM(P18:P19)","v":0},null,{"$f":"IFERROR(P20/AJ20,0)","v":0},null,{"$f":"SUM(T18:T19)","v":0},{"$f":"SUM(U18:U19)","v":0},{"$f":"SUM(V18:V19)","v":0},null,{"$f":"SUM(X18:X19)","v":0},{"$f":"SUM(Y18:Y19)","v":0},{"$f":"SUM(Z18:Z19)","v":0},null,{"$f":"SUM(AB18:AB19)","v":0},{"$f":"SUM(AC18:AC19)","v":0},{"$f":"SUM(AD18:AD19)","v":0},null,{"$f":"IFERROR(AD20/AJ20,0)","v":0},null,{"$f":"SUM(AH18:AH19)","v":0},{"$f":"SUM(AI18:AI19)","v":0},{"$f":"SUM(AJ18:AJ19)","v":0}]
[]
["Grade 9-15 F/T",{"$f":"Query!B39","v":0},{"$f":"Query!C39","v":0},{"$f":"SUM(B22:C22)","v":0},null,{"$f":"Query!E39","v":0},{"$f":"Query!F39","v":0},{"$f":"SUM(F22:G22)","v":0},null,{"$f":"Query!H39","v":0},{"$f":"Query!I39","v":0},{"$f":"SUM(J22:K22)","v":0},null,{"$f":"SUM(L22/AJ22)","v":0},null,{"$f":"Query!L39","v":23},null,{"$f":"SUM(P22/AJ22)","v":0.76666666666666672},null,{"$f":"Query!M39","v":4},{"$f":"Query!N39","v":3},{"$f":"SUM(T22:U22)","v":7},null,{"$f":"Query!P39","v":0},{"$f":"Query!Q39","v":0},{"$f":"SUM(X22:Y22)","v":0},null,{"$f":"Query!S39","v":4},{"$f":"Query!T39","v":3},{"$f":"SUM(AB22:AC22)","v":7},null,{"$f":"SUM(AD22/AJ22)","v":0.23333333333333334},null,{"$f":"Query!W39","v":15},{"$f":"Query!X39","v":15},{"$f":"SUM(AH22:AI22)","v":30}]
["Grade 9-15 P/T",{"$f":"Query!B40","v":0},{"$f":"Query!C40","v":0},{"$f":"SUM(B23:C23)","v":0},null,{"$f":"Query!E40","v":0},{"$f":"Query!F40","v":0},{"$f":"SUM(F23:G23)","v":0},null,{"$f":"Query!H40","v":0},{"$f":"Query!I40","v":0},{"$f":"SUM(J23:K23)","v":0},null,{"$f":"IFERROR(L23/AJ23,0)","v":0},null,{"$f":"Query!L40","v":0},null,{"$f":"IFERROR(P23/AJ23,0)","v":0},null,{"$f":"Query!M40","v":0},{"$f":"Query!N40","v":0},{"$f":"SUM(T23:U23)","v":0},null,{"$f":"Query!P40","v":0},{"$f":"Query!Q40","v":0},{"$f":"SUM(X23:Y23)","v":0},null,{"$f":"Query!S40","v":0},{"$f":"Query!T40","v":0},{"$f":"SUM(AB23:AC23)","v":0},null,{"$f":"IFERROR(AD23/AJ23,0)","v":0},null,{"$f":"Query!W40","v":0},{"$f":"Query!X40","v":0},{"$f":"SUM(AH23:AI23)","v":0}]
["Grade 9-15 Total",{"$f":"SUM(B22:B23)","v":0},{"$f":"SUM(C22:C23)","v":0},{"$f":"SUM(D22:D23)","v":0},null,{"$f":"SUM(F22:F23)","v":0},{"$f":"SUM(G22:G23)","v":0},{"$f":"SUM(H22:H23)","v":0},null,{"$f":"SUM(J22:J23)","v":0},{"$f":"SUM(K22:K23)","v":0},{"$f":"SUM(L22:L23)","v":0},null,{"$f":"SUM(L24/AJ24)","v":0},null,{"$f":"SUM(P22:P23)","v":23},null,{"$f":"SUM(P24/AJ24)","v":0.76666666666666672},null,{"$f":"SUM(T22:T23)","v":4},{"$f":"SUM(U22:U23)","v":3},{"$f":"SUM(V22:V23)","v":7},null,{"$f":"SUM(X22:X23)","v":0},{"$f":"SUM(Y22:Y23)","v":0},{"$f":"SUM(Z22:Z23)","v":0},null,{"$f":"SUM(AB22:AB23)","v":4},{"$f":"SUM(AC22:AC23)","v":3},{"$f":"SUM(AD22:AD23)","v":7},null,{"$f":"SUM(AD24/AJ24)","v":0.23333333333333334},null,{"$f":"SUM(AH22:AH23)","v":15},{"$f":"SUM(AI22:AI23)","v":15},{"$f":"SUM(AJ22:AJ23)","v":30}]
[]
["Grade ACZ 9-15 F/T",{"$f":"Query!B42","v":0},{"$f":"Query!C42","v":0},{"$f":"SUM(B26:C26)","v":0},null,{"$f":"Query!E42","v":0},{"$f":"Query!F42","v":0},{"$f":"SUM(F26:G26)","v":0},null,{"$f":"Query!H42","v":0},{"$f":"Query!I42","v":0},{"$f":"SUM(J26:K26)","v":0},null,{"$f":"SUM(L26/AJ26)","v":0},null,{"$f":"Query!L42","v":1},null,{"$f":"SUM(P26/AJ26)","v":1},null,{"$f":"Query!M42","v":0},{"$f":"Query!N42","v":0},{"$f":"SUM(T26:U26)","v":0},null,{"$f":"Query!P42","v":0},{"$f":"Query!Q42","v":0},{"$f":"SUM(X26:Y26)","v":0},null,{"$f":"Query!S42","v":0},{"$f":"Query!T42","v":0},{"$f":"SUM(AB26:AC26)","v":0},null,{"$f":"SUM(AD26/AJ26)","v":0},null,{"$f":"Query!W42","v":1},{"$f":"Query!X42","v":0},{"$f":"SUM(AH26:AI26)","v":1}]
["Grade ACZ 9-15 P/T",{"$f":"Query!B43","v":0},{"$f":"Query!C43","v":0},{"$f":"SUM(B27:C27)","v":0},null,{"$f":"Query!E43","v":0},{"$f":"Query!F43","v":0},{"$f":"SUM(F27:G27)","v":0},null,{"$f":"Query!H43","v":0},{"$f":"Query!I43","v":0},{"$f":"SUM(J27:K27)","v":0},null,{"$f":"IFERROR(L27/AJ27,0)","v":0},null,{"$f":"Query!L43","v":0},null,{"$f":"IFERROR(P27/AJ27,0)","v":0},null,{"$f":"Query!M43","v":0},{"$f":"Query!N43","v":0},{"$f":"SUM(T27:U27)","v":0},null,{"$f":"Query!P43","v":0},{"$f":"Query!Q43","v":0},{"$f":"SUM(X27:Y27)","v":0},null,{"$f":"Query!S43","v":0},{"$f":"Query!T43","v":0},{"$f":"SUM(AB27:AC27)","v":0},null,{"$f":"IFERROR(AD27/AJ27,0)","v":0},null,{"$f":"Query!W43","v":0},{"$f":"Query!X43","v":0},{"$f":"SUM(AH27:AI27)","v":0}]
["Grade ACZ 9-15 Total",{"$f":"SUM(B26:B27)","v":0},{"$f":"SUM(C26:C27)","v":0},{"$f":"SUM(D26:D27)","v":0},null,{"$f":"SUM(F26:F27)","v":0},{"$f":"SUM(G26:G27)","v":0},{"$f":"SUM(H26:H27)","v":0},null,{"$f":"SUM(J26:J27)","v":0},{"$f":"SUM(K26:K27)","v":0},{"$f":"SUM(L26:L27)","v":0},null,{"$f":"SUM(L28/AJ28)","v":0},null,{"$f":"SUM(P26:P27)","v":1},null,{"$f":"SUM(P28/AJ28)","v":1},null,{"$f":"SUM(T26:T27)","v":0},{"$f":"SUM(U26:U27)","v":0},{"$f":"SUM(V26:V27)","v":0},null,{"$f":"SUM(X26:X27)","v":0},{"$f":"SUM(Y26:Y27)","v":0},{"$f":"SUM(Z26:Z27)","v":0},null,{"$f":"SUM(AB26:AB27)","v":0},{"$f":"SUM(AC26:AC27)","v":0},{"$f":"SUM(AD26:AD27)","v":0},null,{"$f":"SUM(AD28/AJ28)","v":0},null,{"$f":"SUM(AH26:AH27)","v":1},{"$f":"SUM(AI26:AI27)","v":0},{"$f":"SUM(AJ26:AJ27)","v":1}]
[]
["Other Non Pay & Grading Structure F/T",{"$f":"Query!B45","v":0},{"$f":"Query!C45","v":0},{"$f":"SUM(B30:C30)","v":0},null,{"$f":"Query!E45","v":0},{"$f":"Query!F45","v":0},{"$f":"SUM(F30:G30)","v":0},null,{"$f":"Query!H45","v":0},{"$f":"Query!I45","v":0},{"$f":"SUM(J30:K30)","v":0},null,{"$f":"SUM(L30/AJ30)","v":0},null,{"$f":"Query!L45","v":41},null,{"$f":"SUM(P30/AJ30)","v":0.57746478873239437},null,{"$f":"Query!M45","v":8},{"$f":"Query!N45","v":14},{"$f":"SUM(T30:U30)","v":22},null,{"$f":"Query!P45","v":5},{"$f":"Query!Q45","v":3},{"$f":"SUM(X30:Y30)","v":8},null,{"$f":"Query!S45","v":13},{"$f":"Query!T45","v":17},{"$f":"SUM(AB30:AC30)","v":30},null,{"$f":"SUM(AD30/AJ30)","v":0.42253521126760563},null,{"$f":"Query!W45","v":23},{"$f":"Query!X45","v":48},{"$f":"SUM(AH30:AI30)","v":71}]
["Other Non Pay & Grading Structure P/T",{"$f":"Query!B46","v":0},{"$f":"Query!C46","v":0},{"$f":"SUM(B31:C31)","v":0},null,{"$f":"Query!E46","v":0},{"$f":"Query!F46","v":0},{"$f":"SUM(F31:G31)","v":0},null,{"$f":"Query!H46","v":0},{"$f":"Query!I46","v":0},{"$f":"SUM(J31:K31)","v":0},null,{"$f":"SUM(L31/AJ31)","v":0},null,{"$f":"Query!L46","v":8},null,{"$f":"SUM(P31/AJ31)","v":0.72727272727272729},null,{"$f":"Query!M46","v":0},{"$f":"Query!N46","v":2},{"$f":"SUM(T31:U31)","v":2},null,{"$f":"Query!P46","v":0},{"$f":"Query!Q46","v":1},{"$f":"SUM(X31:Y31)","v":1},null,{"$f":"Query!S46","v":0},{"$f":"Query!T46","v":3},{"$f":"SUM(AB31:AC31)","v":3},null,{"$f":"SUM(AD31/AJ31)","v":0.27272727272727271},null,{"$f":"Query!W46","v":0},{"$f":"Query!X46","v":11},{"$f":"SUM(AH31:AI31)","v":11}]
["Other Non P&G Structure Total",{"$f":"SUM(B30:B31)","v":0},{"$f":"SUM(C30:C31)","v":0},{"$f":"SUM(D30:D31)","v":0},null,{"$f":"SUM(F30:F31)","v":0},{"$f":"SUM(G30:G31)","v":0},{"$f":"SUM(H30:H31)","v":0},null,{"$f":"SUM(J30:J31)","v":0},{"$f":"SUM(K30:K31)","v":0},{"$f":"SUM(L30:L31)","v":0},null,{"$f":"SUM(L32/AJ32)","v":0},null,{"$f":"SUM(P30:P31)","v":49},null,{"$f":"SUM(P32/AJ32)","v":0.59756097560975607},null,{"$f":"SUM(T30:T31)","v":8},{"$f":"SUM(U30:U31)","v":16},{"$f":"SUM(V30:V31)","v":24},null,{"$f":"SUM(X30:X31)","v":5},{"$f":"SUM(Y30:Y31)","v":4},{"$f":"SUM(Z30:Z31)","v":9},null,{"$f":"SUM(AB30:AB31)","v":13},{"$f":"SUM(AC30:AC31)","v":20},{"$f":"SUM(AD30:AD31)","v":33},null,{"$f":"SUM(AD32/AJ32)","v":0.40243902439024393},null,{"$f":"SUM(AH30:AH31)","v":23},{"$f":"SUM(AI30:AI31)","v":59},{"$f":"SUM(AJ30:AJ31)","v":82}]
[]
["Total Workforce F/T",{"$f":"SUM(B6,B10,B14,B18,B22,B26,B30)","v":29},{"$f":"SUM(C6,C10,C14,C18,C22,C26,C30)","v":22},{"$f":"SUM(B34:C34)","v":51},null,{"$f":"SUM(F6,F10,F14,F18,F22,F26,F30)","v":2},{"$f":"SUM(G6,G10,G14,G18,G22,G26,G30)","v":1},{"$f":"SUM(F34:G34)","v":3},null,{"$f":"SUM(J6,J10,J14,J18,J22,J26,J30)","v":31},{"$f":"SUM(K6,K10,K14,K18,K22,K26,K30)","v":23},{"$f":"SUM(J34:K34)","v":54},null,{"$f":"SUM(L34/AJ34)","v":3.2066508313539195E-2},null,{"$f":"SUM(P6,P10,P14,P18,P22,P26,P30)","v":1170},null,{"$f":"SUM(P34/AJ34)","v":0.69477434679334915},null,{"$f":"SUM(T6,T10,T14,T18,T22,T26,T30)","v":235},{"$f":"SUM(U6,U10,U14,U18,U22,U26,U30)","v":185},{"$f":"SUM(T34:U34)","v":420},null,{"$f":"SUM(X6,X10,X14,X18,X22,X26,X30)","v":26},{"$f":"SUM(Y6,Y10,Y14,Y18,Y22,Y26,Y30)","v":14},{"$f":"SUM(X34:Y34)","v":40},null,{"$f":"SUM(AB6,AB10,AB14,AB18,AB22,AB26,AB30)","v":261},{"$f":"SUM(AC6,AC10,AC14,AC18,AC22,AC26,AC30)","v":199},{"$f":"SUM(AB34:AC34)","v":460},null,{"$f":"SUM(AD34/AJ34)","v":0.27315914489311166},null,{"$f":"SUM(AH6,AH10,AH14,AH18,AH22,AH26,AH30)","v":926},{"$f":"SUM(AI6,AI10,AI14,AI18,AI22,AI26,AI30)","v":758},{"$f":"SUM(AH34:AI34)","v":1684}]
[]
["Total Workforce P/T",{"$f":"SUM(B7,B11,B15,B19,B23,B27,B31)","v":20},{"$f":"SUM(C7,C11,C15,C19,C23,C27,C31)","v":22},{"$f":"SUM(B36:C36)","v":42},null,{"$f":"SUM(F7,F11,F15,F19,F23,F27,F31)","v":2},{"$f":"SUM(G7,G11,G15,G19,G23,G27,G31)","v":2},{"$f":"SUM(F36:G36)","v":4},null,{"$f":"SUM(J7,J11,J15,J19,J23,J27,J31)","v":22},{"$f":"SUM(K7,K11,K15,K19,K23,K27,K31)","v":24},{"$f":"SUM(J36:K36)","v":46},null,{"$f":"SUM(L36/AJ36)","v":5.2752293577981654E-2},null,{"$f":"SUM(P7,P11,P15,P19,P23,P27,P31)","v":543},null,{"$f":"SUM(P36/AJ36)","v":0.62270642201834858},null,{"$f":"SUM(T7,T11,T15,T19,T23,T27,T31)","v":97},{"$f":"SUM(U7,U11,U15,U19,U23,U27,U31)","v":160},{"$f":"SUM(T36:U36)","v":257},null,{"$f":"SUM(X7,X11,X15,X19,X23,X27,X31)","v":5},{"$f":"SUM(Y7,Y11,Y15,Y19,Y23,Y27,Y31)","v":21},{"$f":"SUM(X36:Y36)","v":26},null,{"$f":"SUM(AB7,AB11,AB15,AB19,AB23,AB27,AB31)","v":102},{"$f":"SUM(AC7,AC11,AC15,AC19,AC23,AC27,AC31)","v":181},{"$f":"SUM(AB36:AC36)","v":283},null,{"$f":"SUM(AD36/AJ36)","v":0.32454128440366975},null,{"$f":"SUM(AH7,AH11,AH15,AH19,AH23,AH27,AH31)","v":287},{"$f":"SUM(AI7,AI11,AI15,AI19,AI23,AI27,AI31)","v":585},{"$f":"SUM(AH36:AI36)","v":872}]
[]
["Total Workforce",{"$f":"SUM(B36,B34)","v":49},{"$f":"SUM(C36,C34)","v":44},{"$f":"SUM(B38:C38)","v":93},null,{"$f":"SUM(F36,F34)","v":4},{"$f":"SUM(G36,G34)","v":3},{"$f":"SUM(F38:G38)","v":7},null,{"$f":"SUM(J36,J34)","v":53},{"$f":"SUM(K36,K34)","v":47},{"$f":"SUM(J38:K38)","v":100},null,{"$f":"SUM(L38/AJ38)","v":3.912363067292645E-2},null,{"$f":"SUM(P36,P34)","v":1713},null,{"$f":"SUM(P38/AJ38)","v":0.67018779342723001},null,{"$f":"SUM(T36,T34)","v":332},{"$f":"SUM(U36,U34)","v":345},{"$f":"SUM(T38:U38)","v":677},null,{"$f":"SUM(X36,X34)","v":31},{"$f":"SUM(Y36,Y34)","v":35},{"$f":"SUM(X38:Y38)","v":66},null,{"$f":"SUM(AB36,AB34)","v":363},{"$f":"SUM(AC36,AC34)","v":380},{"$f":"SUM(AB38:AC38)","v":743},null,{"$f":"SUM(AD38/AJ38)","v":0.29068857589984348},null,{"$f":"SUM(AH36,AH34)","v":1213},{"$f":"SUM(AI36,AI34)","v":1343},{"$f":"SUM(AH38:AI38)","v":2556}]
[null,{"$f":"B38/$AJ$38","v":1.9170579029733958E-2},{"$f":"C38/$AJ$38","v":1.7214397496087636E-2},3.6384976525821594E-2,0,1.5649452269170579E-3,1.1737089201877935E-3,2.7386541471048514E-3,0,2.0735524256651018E-2,1.8388106416275432E-2,3.912363067292645E-2,0,1.5306584770315513E-5,0,0.67018779342723001,0,2.6220179711550467E-4,0,0.12989045383411579,0.13497652582159625,0.26486697965571204,0,1.2128325508607199E-2,1.3693270735524257E-2,2.5821596244131457E-2,0,0.142018779342723,0.14866979655712051,0.29068857589984348,0,1.1372792484344424E-4,0,0.47456964006259783,0.52543035993740217,1]
["Fields update automatically"]
["SSC Complete"]

{"sheet":"Query","index":5,"n_rows":59,"n_cols":25,"rows_kept":59,"cut":false,"hidden":true,"merged":[]}
[]
[]
["Workforce Profile Disability Excl Casual & Sessional"]
[]
["Payroll Area",""]
["ZPersonal Area",""]
["Organizational Unit","Culture & Sport Glasgow"]
["Personnel Subarea","]GL Bank["]
["Checkbox for Part-Ti",""]
["ZPrimary Employee ID",""]
[]
["WP Bandings",""]
[]
["Employee Subgroup","]Teachers 35.00 M1[, ]Teachers 35.00 M2[, ]Skillseekers[, ]External Non Payroll[, ]Traineeship Program["]
["Employment Status","Active"]
["Organizational Unit","]DR00000029[, ]DR00000035[, ]EP10000000[, ]LS00000500[, ]GL00000001[, ]DR00000145[, ]L000000A00[, ]DR00000029[, ]DR00000035[..."]
["Personnel Subarea","]ZZZZ["]
["Employment End",">= 30/09/2017"]
["Employment Start","<= 30/09/2017"]
["ZPersonal Area","]9980..9991[, ]0021[, 0161"]
[]
["WP Disability/Ethnicity Bandings Rev",""]
[]
["Contract Type",""]
[]
["","Total White Male Disabled Employees","Total White Female Disabled Employees","Total White Disabled Employees","Total Ethnic Male Disabled Employees","Total Ethnic Female Disabled Employees","Total Ethnic Disabled Employees","Disabled Male Employees","Disabled Female Employees","Total Disabled Employees","Total Disabled Employees %","Not Disclosed","Total White Male Non Disabled Employees","Total White Female Non Disabled Employees","Total White Non Disabled Employees","Total Ethnic Male Non Disabled Employees","Total Ethnic Female Non Disabled Employees","Total Ethnic Non Disabled Employees","Total Male Non Disabled Employees","Total Female Non Disabled Employees","Total Non Disabled Employees","Total Non Disabled Employees %","Total Male Employees","Total Female Employees","Total Workforce"]
["Grade 1 - 4 F/T",20,9,29,2,null,2,22,9,31,3.5028248587569998E-2,603,145,85,230,15,6,21,160,91,251,0.28361581920904,562,323,885]
["Grade 1 - 4 P/T",20,18,38,2,2,4,22,20,42,5.8741258741260002E-2,422,94,135,229,5,17,22,99,152,251,0.35104895104895001,263,452,715]
["Grade 1 - 4 Total",40,27,67,4,2,6,44,29,73,4.5624999999999999E-2,1025,239,220,459,20,23,43,259,243,502,0.31374999999999997,825,775,1600]
["Grade 5 - 7 F/T",9,12,21,null,1,1,9,13,22,3.3950617283949998E-2,467,72,76,148,6,5,11,78,81,159,0.24537037037036999,302,346,648]
["Grade 5 - 7 P/T",null,2,2,null,null,null,null,2,2,1.418439716312E-2,110,3,23,26,null,3,3,3,26,29,0.20567375886524999,24,117,141]
["Grade 5 - 7 Total",9,14,23,null,1,1,9,15,24,3.0418250950569999E-2,577,75,99,174,6,8,14,81,107,188,0.23827629911279999,326,463,789]
["Grade 8 F/T",null,1,1,null,null,null,null,1,1,2.040816326531E-2,35,6,7,13,null,null,null,6,7,13,0.26530612244898,23,26,49]
["Grade 8 P/T",null,2,2,null,null,null,null,2,2,0.4,3,null,null,null,null,null,null,null,null,null,null,null,5,5]
["Grade 8 Total",null,3,3,null,null,null,null,3,3,5.555555555556E-2,38,6,7,13,null,null,null,6,7,13,0.24074074074074001,23,31,54]
["ACZ Grade 8 F/T"]
["ACZ Grade 8 P/T"]
["ACZ Grade 8 Total"]
["Grade 9 - 15 F/T",null,null,null,null,null,null,null,null,null,null,23,4,3,7,null,null,null,4,3,7,0.23333333333333001,15,15,30]
["Grade 9 - 15 P/T"]
["Grade 9 - 15 Total",null,null,null,null,null,null,null,null,null,null,23,4,3,7,null,null,null,4,3,7,0.23333333333333001,15,15,30]
["ACZ Grade 9 - 15 F/T",null,null,null,null,null,null,null,null,null,null,1,null,null,null,null,null,null,null,null,null,null,1,null,1]
["ACZ Grade 9 - 15 P/T"]
["ACZ Grade 9 - 15 Total",null,null,null,null,null,null,null,null,null,null,1,null,null,null,null,null,null,null,null,null,null,1,null,1]
["Other (Not Migrated) F/T",0,0,0,0,0,0,0,0,0,0,41,8,14,22,5,3,8,13,17,30,0.42253521126761001,23,48,71]
["Other (Not Migrated) P/T",0,0,0,0,0,0,0,0,0,0,8,0,2,2,0,1,1,0,3,3,0.27272727272726999,0,11,11]
["Other (Not Migrated) Total",0,0,0,0,0,0,0,0,0,0,49,8,16,24,5,4,9,13,20,33,0.40243902439023999,23,59,82]
["Total Teaching Staff F/T"]
["Total Teaching Staff P/T"]
["Total Teaching Staff"]
["Total Non-Teaching Staff F/T",29,22,51,2,1,3,31,23,54,3.206650831354E-2,1170,235,185,420,26,14,40,261,199,460,0.27315914489311,926,758,1684]
["Total Non-Teaching Staff P/T",20,22,42,2,2,4,22,24,46,5.2752293577980003E-2,543,97,160,257,5,21,26,102,181,283,0.32454128440367003,287,585,872]
["Total Non-Teaching Staff",49,44,93,4,3,7,53,47,100,3.9123630672930003E-2,1713,332,345,677,31,35,66,363,380,743,0.29068857589983998,1213,1343,2556]
["Total - All WPBR Grades F/T",29,22,51,2,1,3,31,23,54,3.3477991320519998E-2,1129,227,171,398,21,11,32,248,182,430,0.26658400495970003,903,710,1613]
["Total - All WPBR Grades P/T",20,22,42,2,2,4,22,24,46,5.3426248548200002E-2,535,97,158,255,5,20,25,102,178,280,0.32520325203251998,287,574,861]
["Total Workforce - All WPBR Grades",49,44,93,4,3,7,53,47,100,4.042037186742E-2,1664,324,329,653,26,31,57,350,360,710,0.28698464025869003,1190,1284,2474]
["Total Workforce (All) F/T",29,22,51,2,1,3,31,23,54,3.206650831354E-2,1170,235,185,420,26,14,40,261,199,460,0.27315914489311,926,758,1684]
["Total Workforce (All) P/T",20,22,42,2,2,4,22,24,46,5.2752293577980003E-2,543,97,160,257,5,21,26,102,181,283,0.32454128440367003,287,585,872]
["Total Workforce (All)",49,44,93,4,3,7,53,47,100,3.9123630672930003E-2,1713,332,345,677,31,35,66,363,380,743,0.29068857589983998,1213,1343,2556]